Workbook

Sheet Homepage
B1: Tax Wrapper Comparison Tool built by M&G | E1: Tax Year 2022/23
B5: This tool is for UK financial advisers only. | R5: Assumptions
R6: Uses UK rates for NSND
B7: Important information about this tool | R7: Will be issue for SRIT if PA lost
B8: This calculator is designed to give an estimation of a person’s tax liability for the differing investments that are used. It does not take into account all the possible individual circumstances that may impact on the tax position of the individual. It should not be taken as offering advice or any recommendation. You should be satisfied that the information you have entered into the calculator is correct, for example this tool will assume that any pension contributions and/or gift aid contributions are valid. You should ensure that the outputs are correct for your client. The information in this modeller is based on our current understanding of legislation and HMRC practice as at January 2023 all which is subject to change without notice. Every care has been taken as to its accuracy, but it must be appreciated that neither M&G nor its representatives can accept any responsibility for loss, however caused, suffered by any person who has acted or refrained from acting as a result of material contained in this tool. Certain areas have been omitted from this model for simplicity and ease of use including National Insurance, some sources of income and other reliefs, allowances and tax charges. | R8: AMC & platform charges same wrapped or not
R9: Wrapper charge for bonds taken at end of year
R10: Rounding to 0 DP
R11: Beneficial ordering caveat, 11k NSND, £100 savings gives onshore tax bill that wouldn't exist.
R12: BRB left for offshore won't factor in divis going into HRT
B23: Important information about the calculations
B25: Personal allowance is allocated to taxable income following the statutory order of income taxation, more beneficial ordering may be possible in some cases. Beneficial ordering is not applied to the top-slicing calculations. The tool assumes UK rates for the non-savings, non-dividend income that is inputted. Scottish taxpayers may have differing tax to pay for investments where personal allowance is lost. Annual Managemernt Charges and platform charges are assumed to be the same, any platform charge for bonds is assumed to be taken at the end of the year. The tool runs in tax years from 6 April to 5 April inclusive. The CGT allowance in year one is £6,000, thereafter this is £3,000. The Dividend Nil Rate in year one is £1,000, thereafter this is £500. The CGT annual exempt amount is used each year (bed and breakfast rules avoided). Net investment income is reinvested. UK rates of income tax apply.

Sheet Inputs
B1: Tax Wrapper Comparison Tool built by M&G | H1: =AND(C3>0,C5>0,SUM(L4:L6)>0%) -> FALSE | L1: =Homepage!E1 -> Tax Year 2022/23
B3: Invested Amount | C3: 0 | I3: Investment Yields
I4: Savings income | L4: 0 | N4: Onshore Bond Internal Tax Rate
B5: Year of encashment (5 to 10 only) | I5: Dividend Return | L5: 0
I6: Capital Gain | L6: 0 | N6: =IF(H1=FALSE,0%,Bonds!F5) -> 0
I8: Additional Cost for Bond Wrapper | L8: 0
B10: Exisiting income | E10: Increase assumption per annum | I10: Expected Income year of encashment | R10: Net income reinvested via income units
B11: Non Savings Non Dividend | C11: 0 | E11: 0 | I11: Non Savings Non Dividend | L11: 0 | R11: No surrender reinvest costs
B12: Savings | C12: 0 | E12: 0 | I12: Savings | L12: 0
B13: Dividend | C13: 0 | E13: 0 | I13: Dividend | L13: 0
B15: Taxation over Term | I15: Encashment Values
C17: Collectives | E17: Onshore | G17: Offshore | J17: =C17 -> Collectives | L17: Onshore | N17: Offshore
B18: Savings Income | I18: Surrender Value | J18: =CGT!Q28 -> 0 | L18: =IF(H1=FALSE,0,Bonds!R16) -> 0 | N18: =IF(H1=FALSE,0,Bonds!R36) -> 0
B19: Amount | C19: =Income!W17 -> 0 | E19: =Bonds!O10 -> 0 | G19: =Bonds!O35 -> 0 | I19: Gain (Cumulative) | J19: =IF(H1=FALSE,0,HLOOKUP(CGT!G7,CGT!G10:Q28,7)) -> 0 | L19: =IF(H1=FALSE,0,Bonds!R17) -> 0 | N19: =IF(H1=FALSE,0,Bonds!R37) -> 0
B20: Tax | C20: =Income!X17 -> 0 | E20: =Bonds!O11 -> 0 | G20: 0 | I20: Slice | J20: N/A | L20: =IF(H1=FALSE,0,Bonds!R18) -> 0 | N20: =IF(H1=FALSE,0,Bonds!R38) -> 0
B21: Dividend Income | I21: Tax payable | J21: =CGT!Q26 -> 0 | L21: =IF(H1=FALSE,0,'Onshore Bond Calcs'!J74) -> 0 | N21: =IF(H1=FALSE,0,'Offshore Bond Calcs'!I74) -> 0
B22: Amount | C22: =Income!W18 -> 0 | E22: =Bonds!O14 -> 0 | G22: =Bonds!O37 -> 0
B23: Tax | C23: =Income!X18 -> 0 | E23: 0 | G23: 0 | I23: Net return | J23: =J18-J21 -> 0 | L23: =L18-L21 -> 0 | N23: =N18-N21 -> 0
B24: Capital Gain
B25: Amount | C25: =CGT!Q17 -> 0 | E25: =Bonds!O16 -> 0 | G25: =Bonds!O39 -> 0
B26: Tax | C26: N/A | E26: =Bonds!O17 -> 0 | G26: 0 | I26: Available Bands and Allowances in year of encashment (prior to investments being surrendered)
B28: Key Assumptions
J29: =J17 -> Collectives | L29: Onshore | N29: Offshore
B30: Cells with red tags contain further information | I30: Personal Allowance | J30: N/A | L30: ='Allowances Remaining'!$C$16 -> 12570 | N30: ='Allowances Remaining'!$C$20 -> 12570
B31: The tool runs in tax years from 6 April to 5 April inclusive. | I31: Starter Rate for Savings | J31: N/A | L31: ='Allowances Remaining'!$D$16 -> 5000 | N31: ='Allowances Remaining'!$D$20 -> 5000
B32: The CGT allowance in year one is £6,000, thereafter this is £3,000. | I32: Personal Savings Allowance | J32: N/A | L32: ='Allowances Remaining'!$E$16 -> 1000 | N32: ='Allowances Remaining'!$E$20 -> 1000
B33: The Dividend Nil Rate in year one is £1,000, thereafter this is £500. | I33: Basic Rate | J33: =IF(H1=FALSE,L33,VLOOKUP($C$5,'Allowances Remaining'!$B$3:$H$12,5,FALSE)) -> 37700 | L33: ='Allowances Remaining'!$F$16 -> 37700 | N33: ='Allowances Remaining'!$F$20 -> 37700
B34: The CGT annual exempt amount is used each year (bed and breakfast rules avoided). | I34: Higher Rate | J34: N/A | L34: ='Allowances Remaining'!$G$16 -> 87440 | N34: ='Allowances Remaining'!$G$20 -> 87440
B35: Net investment income is reinvested. | I35: CGT Allowance | J35: =IF(H1=FALSE,3000,VLOOKUP($C$5,'Allowances Remaining'!$B$3:$H$12,7,FALSE)) -> 3000 | L35: N/A | N35: N/A
B36: UK rates of income tax apply.

Sheet Summary
E2: Year
E3: 1 | F3: =E3+1 -> 2 | G3: =F3+1 -> 3 | H3: 4 | I3: 5 | J3: 6 | K3: 7 | L3: 8 | M3: 9 | N3: 10
B4: Client Income | D4: Non Savings, Non Dividend | E4: ='Yr 1'!$F$9 -> 0 | F4: ='Yr 2'!$F$9 -> 0 | G4: ='Yr 3'!$F$9 -> 0 | H4: ='Yr 4'!$F$9 -> 0 | I4: ='Yr 5'!$F$9 -> 0 | J4: ='Yr 6'!$F$9 -> 0 | K4: ='Yr 7'!$F$9 -> 0 | L4: ='Yr 8'!$F$9 -> 0 | M4: ='Yr 9'!$F$9 -> 0 | N4: ='Yr 10'!$F$9 -> 0
D5: Existing Savings | E5: ='Yr 1'!$F$10 -> 0 | F5: ='Yr 2'!$F$10 -> 0 | G5: ='Yr 3'!$F$10 -> 0 | H5: ='Yr 4'!$F$10 -> 0 | I5: ='Yr 5'!$F$10 -> 0 | J5: ='Yr 6'!$F$10 -> 0 | K5: ='Yr 7'!$F$10 -> 0 | L5: ='Yr 8'!$F$10 -> 0 | M5: ='Yr 9'!$F$10 -> 0 | N5: ='Yr 10'!$F$10 -> 0
D6: Existing Dividend | E6: ='Yr 1'!$F$11 -> 0 | F6: ='Yr 2'!$F$11 -> 0 | G6: ='Yr 3'!$F$11 -> 0 | H6: ='Yr 4'!$F$11 -> 0 | I6: ='Yr 5'!$F$11 -> 0 | J6: ='Yr 6'!$F$11 -> 0 | K6: ='Yr 7'!$F$11 -> 0 | L6: ='Yr 8'!$F$11 -> 0 | M6: ='Yr 9'!$F$11 -> 0 | N6: ='Yr 10'!$F$11 -> 0
D7: New Savings | E7: ='Yr 1'!$F$12 -> 0 | F7: ='Yr 2'!$F$12 -> 0 | G7: ='Yr 3'!$F$12 -> 0 | H7: ='Yr 4'!$F$12 -> 0 | I7: ='Yr 5'!$F$12 -> 0 | J7: ='Yr 6'!$F$12 -> 0 | K7: ='Yr 7'!$F$12 -> 0 | L7: ='Yr 8'!$F$12 -> 0 | M7: ='Yr 9'!$F$12 -> 0 | N7: ='Yr 10'!$F$12 -> 0
D8: New Dividend | E8: ='Yr 1'!$F$13 -> 0 | F8: ='Yr 2'!$F$13 -> 0 | G8: ='Yr 3'!$F$13 -> 0 | H8: ='Yr 4'!$F$13 -> 0 | I8: ='Yr 5'!$F$13 -> 0 | J8: ='Yr 6'!$F$13 -> 0 | K8: ='Yr 7'!$F$13 -> 0 | L8: ='Yr 8'!$F$13 -> 0 | M8: ='Yr 9'!$F$13 -> 0 | N8: ='Yr 10'!$F$13 -> 0
D9: Total | E9: ='Yr 1'!$F$14 -> 0 | F9: ='Yr 2'!$F$14 -> 0 | G9: ='Yr 3'!$F$14 -> 0 | H9: ='Yr 4'!$F$14 -> 0 | I9: ='Yr 5'!$F$14 -> 0 | J9: ='Yr 6'!$F$14 -> 0 | K9: ='Yr 7'!$F$14 -> 0 | L9: ='Yr 8'!$F$14 -> 0 | M9: ='Yr 9'!$F$14 -> 0 | N9: ='Yr 10'!$F$14 -> 0
B13: Collectives | D13: Starting Value | E13: =CGT!G12 -> 0 | F13: =CGT!H12 -> 0 | G13: =CGT!I12 -> 0 | H13: =CGT!J12 -> 0 | I13: =CGT!K12 -> 0 | J13: =CGT!L12 -> 0 | K13: =CGT!M12 -> 0 | L13: =CGT!N12 -> 0 | M13: =CGT!O12 -> 0 | N13: =CGT!P12 -> 0
D14: Fund plus growth (no income reinvested) | E14: =CGT!G14 -> 0 | F14: =CGT!H14 -> 0 | G14: =CGT!I14 -> 0 | H14: =CGT!J14 -> 0 | I14: =CGT!K14 -> 0 | J14: =CGT!L14 -> 0 | K14: =CGT!M14 -> 0 | L14: =CGT!N14 -> 0 | M14: =CGT!O14 -> 0 | N14: =CGT!P14 -> 0
D15: Gain | E15: =CGT!G15 -> 0 | F15: =CGT!H15 -> 0 | G15: =CGT!I15 -> 0 | H15: =CGT!J15 -> 0 | I15: =CGT!K15 -> 0 | J15: =CGT!L15 -> 0 | K15: =CGT!M15 -> 0 | L15: =CGT!N15 -> 0 | M15: =CGT!O15 -> 0 | N15: =CGT!P15 -> 0
D16: AEA for year | E16: ='Parameters_Inc Calcs'!D16 -> 6000 | F16: ='Parameters_Inc Calcs'!$D$17 -> 3000 | G16: ='Parameters_Inc Calcs'!$D$17 -> 3000 | H16: ='Parameters_Inc Calcs'!$D$17 -> 3000 | I16: ='Parameters_Inc Calcs'!$D$17 -> 3000 | J16: ='Parameters_Inc Calcs'!$D$17 -> 3000 | K16: ='Parameters_Inc Calcs'!$D$17 -> 3000 | L16: ='Parameters_Inc Calcs'!$D$17 -> 3000 | M16: ='Parameters_Inc Calcs'!$D$17 -> 3000 | N16: ='Parameters_Inc Calcs'!$D$17 -> 3000
D17: Surrender to realise gains up to the AEA | E17: =CGT!G19 -> 0 | F17: =CGT!H19 -> 0 | G17: =CGT!I19 -> 0 | H17: =CGT!J19 -> 0 | I17: =CGT!K19 -> 0 | J17: =CGT!L19 -> 0 | K17: =CGT!M19 -> 0 | L17: =CGT!N19 -> 0 | M17: =CGT!O19 -> 0 | N17: =CGT!P19 -> 0
D18: AEA used | E18: =CGT!G17 -> 0 | F18: =CGT!H17 -> 0 | G18: =CGT!I17 -> 0 | H18: =CGT!J17 -> 0 | I18: =CGT!K17 -> 0 | J18: =CGT!L17 -> 0 | K18: =CGT!M17 -> 0 | L18: =CGT!N17 -> 0 | M18: =CGT!O17 -> 0 | N18: =CGT!P17 -> 0
D19: Carried Gain | E19: =CGT!G20 -> 0 | F19: =CGT!H20 -> 0 | G19: =CGT!I20 -> 0 | H19: =CGT!J20 -> 0 | I19: =CGT!K20 -> 0 | J19: =CGT!L20 -> 0 | K19: =CGT!M20 -> 0 | L19: =CGT!N20 -> 0 | M19: =CGT!O20 -> 0 | N19: =CGT!P20 -> 0
D20: Net income to be reinvested | E20: =CGT!G24 -> 0 | F20: =CGT!H24 -> 0 | G20: =CGT!I24 -> 0 | H20: =CGT!J24 -> 0 | I20: =CGT!K24 -> 0 | J20: =CGT!L24 -> 0 | K20: =CGT!M24 -> 0 | L20: =CGT!N24 -> 0 | M20: =CGT!O24 -> 0 | N20: =CGT!P24 -> 0
D21: Closing Value | E21: =CGT!G31 -> 0 | F21: =CGT!H31 -> 0 | G21: =CGT!I31 -> 0 | H21: =CGT!J31 -> 0 | I21: =CGT!K31 -> 0 | J21: =CGT!L31 -> 0 | K21: =CGT!M31 -> 0 | L21: =CGT!N31 -> 0 | M21: =CGT!O31 -> 0 | N21: =CGT!P31 -> 0
B25: Onshore bond | D25: =D13 -> Starting Value | E25: =Bonds!E8 -> 0 | F25: =Bonds!F8 -> 0 | G25: =Bonds!G8 -> 0 | H25: =Bonds!H8 -> 0 | I25: =Bonds!I8 -> 0 | J25: =Bonds!J8 -> 0 | K25: =Bonds!K8 -> 0 | L25: =Bonds!L8 -> 0 | M25: =Bonds!M8 -> 0 | N25: =Bonds!N8 -> 0
D26: Internal Taxation | E26: =Bonds!E11+Bonds!E17 -> 0 | F26: =Bonds!F11+Bonds!F17 -> 0 | G26: =Bonds!G11+Bonds!G17 -> 0 | H26: =Bonds!H11+Bonds!H17 -> 0 | I26: =Bonds!I11+Bonds!I17 -> 0 | J26: =Bonds!J11+Bonds!J17 -> 0 | K26: =Bonds!K11+Bonds!K17 -> 0 | L26: =Bonds!L11+Bonds!L17 -> 0 | M26: =Bonds!M11+Bonds!M17 -> 0 | N26: =Bonds!N11+Bonds!N17 -> 0
D27: Closing Value | E27: =Bonds!E21 -> 0 | F27: =Bonds!F21 -> 0 | G27: =Bonds!G21 -> 0 | H27: =Bonds!H21 -> 0 | I27: =Bonds!I21 -> 0 | J27: =Bonds!J21 -> 0 | K27: =Bonds!K21 -> 0 | L27: =Bonds!L21 -> 0 | M27: =Bonds!M21 -> 0 | N27: =Bonds!N21 -> 0
B28: Internal Tax Rate | D28: Gain | E28: =Bonds!E23 -> 0 | F28: =Bonds!F23 -> 0 | G28: =Bonds!G23 -> 0 | H28: =Bonds!H23 -> 0 | I28: =Bonds!I23 -> 0 | J28: =Bonds!J23 -> 0 | K28: =Bonds!K23 -> 0 | L28: =Bonds!L23 -> 0 | M28: =Bonds!M23 -> 0 | N28: =Bonds!N23 -> 0
B29: =Bonds!F5 ->  | D29: Slice | E29: =Bonds!E24 -> 0 | F29: =Bonds!F24 -> 0 | G29: =Bonds!G24 -> 0 | H29: =Bonds!H24 -> 0 | I29: =Bonds!I24 -> 0 | J29: =Bonds!J24 -> 0 | K29: =Bonds!K24 -> 0 | L29: =Bonds!L24 -> 0 | M29: =Bonds!M24 -> 0 | N29: =Bonds!N24 -> 0
B33: Offshore Bond | D33: =D25 -> Starting Value | E33: =Bonds!E33 -> 0 | F33: =Bonds!F33 -> 0 | G33: =Bonds!G33 -> 0 | H33: =Bonds!H33 -> 0 | I33: =Bonds!I33 -> 0 | J33: =Bonds!J33 -> 0 | K33: =Bonds!K33 -> 0 | L33: =Bonds!L33 -> 0 | M33: =Bonds!M33 -> 0 | N33: =Bonds!N33 -> 0
D34: Closing Value | E34: =Bonds!E42 -> 0 | F34: =Bonds!F42 -> 0 | G34: =Bonds!G42 -> 0 | H34: =Bonds!H42 -> 0 | I34: =Bonds!I42 -> 0 | J34: =Bonds!J42 -> 0 | K34: =Bonds!K42 -> 0 | L34: =Bonds!L42 -> 0 | M34: =Bonds!M42 -> 0 | N34: =Bonds!N42 -> 0
D35: Gain | E35: =Bonds!E44 -> 0 | F35: =Bonds!F44 -> 0 | G35: =Bonds!G44 -> 0 | H35: =Bonds!H44 -> 0 | I35: =Bonds!I44 -> 0 | J35: =Bonds!J44 -> 0 | K35: =Bonds!K44 -> 0 | L35: =Bonds!L44 -> 0 | M35: =Bonds!M44 -> 0 | N35: =Bonds!N44 -> 0
D36: Slice | E36: =Bonds!E45 -> 0 | F36: =Bonds!F45 -> 0 | G36: =Bonds!G45 -> 0 | H36: =Bonds!H45 -> 0 | I36: =Bonds!I45 -> 0 | J36: =Bonds!J45 -> 0 | K36: =Bonds!K45 -> 0 | L36: =Bonds!L45 -> 0 | M36: =Bonds!M45 -> 0 | N36: =Bonds!N45 -> 0
E40: =E3 -> 1 | F40: =F3 -> 2 | G40: 3 | H40: 4 | I40: 5 | J40: 6 | K40: 7 | L40: 8 | M40: 9 | N40: 10
D41: =B13 -> Collectives | E41: =E21 -> 0 | F41: =F21 -> 0 | G41: 0 | H41: 0 | I41: 0 | J41: 0 | K41: 0 | L41: 0 | M41: 0 | N41: 0
D42: =B25 -> Onshore bond | E42: =E27 -> 0 | F42: =F27 -> 0 | G42: 0 | H42: 0 | I42: 0 | J42: 0 | K42: 0 | L42: 0 | M42: 0 | N42: 0
D43: =B33 -> Offshore Bond | E43: =E34 -> 0 | F43: =F34 -> 0 | G43: 0 | H43: 0 | I43: 0 | J43: 0 | K43: 0 | L43: 0 | M43: 0 | N43: 0

Sheet Inputs - Printer Friendly
B1: Tax Wrapper Comparison Tool built by M&G | L1: =Homepage!E1 -> Tax Year 2022/23
B3: Invested Amount | C3: =Inputs!C3 -> 0 | I3: Investment Yields
I4: Savings income | L4: =Inputs!L4 -> 0 | N4: Onshore Bond Internal Tax Rate
B5: Year of encashment (5 to 10 only) | C5: =Inputs!C5 -> 0 | I5: Dividend Return | L5: =Inputs!L5 -> 0
I6: Capital Gain | L6: =Inputs!L6 -> 0 | N6: =Inputs!N6 -> 0
I8: Bonds wrapper charge | L8: =Inputs!L8 -> 0
B10: Exisiting income | E10: Increase assumption per annum | I10: Expected Income year of encashment | R10: Net income reinvested via income units
B11: Non Savings Non Dividend | C11: =Inputs!C11 -> 0 | E11: =Inputs!E11 -> 0 | I11: Non Savings Non Dividend | L11: =Inputs!L11 -> 0 | R11: No surrender reinvest costs
B12: Savings | C12: =Inputs!C12 -> 0 | E12: =Inputs!E12 -> 0 | I12: Savings | L12: =Inputs!L12 -> 0
B13: Dividend | C13: =Inputs!C13 -> 0 | E13: =Inputs!E13 -> 0 | I13: Dividend | L13: =Inputs!L13 -> 0
B15: Taxation over Term | I15: Encashment Values
C17: Collectives | E17: Onshore | G17: Offshore | J17: =C17 -> Collectives | L17: Onshore | N17: Offshore
B18: Savings Income | I18: Surrender Value | J18: =CGT!Q28 -> 0 | L18: =Bonds!R16 ->  | N18: =Bonds!R36 -> 
B19: Amount | C19: =Income!W17 -> 0 | E19: =Bonds!O10 -> 0 | G19: =Bonds!O35 -> 0 | I19: Gain (Cumulative) | J19: =HLOOKUP(CGT!G7,CGT!G10:Q28,7) ->  | L19: =Bonds!R17 ->  | N19: =Bonds!R37 -> 
B20: Tax | C20: =Income!X17 -> 0 | E20: =Bonds!O11 -> 0 | G20: 0 | I20: Slice | J20: N/A | L20: =Bonds!R18 ->  | N20: =Bonds!R38 -> 
B21: Dividend Income | I21: Tax payable | J21: =CGT!Q26 -> 0 | L21: ='Onshore Bond Calcs'!J74 ->  | N21: ='Offshore Bond Calcs'!I74 -> 
B22: Amount | C22: =Income!W18 -> 0 | E22: =Bonds!O14 -> 0 | G22: =Bonds!O37 -> 0
B23: Tax | C23: =Income!X18 -> 0 | E23: 0 | G23: 0 | I23: Net return | J23: =J18-J21 -> 0 | L23: =L18-L21 ->  | N23: =N18-N21 -> 
B24: Capital Gain
B25: Amount | C25: =CGT!Q17 -> 0 | E25: =Bonds!O16 -> 0 | G25: =Bonds!O39 -> 0
B26: Tax | C26: N/A | E26: =Bonds!O17 -> 0 | G26: 0 | I26: Available Bands and Allowances in year of encashment (prior to investments being surrendered)
B28: =Inputs!B28 -> Key Assumptions
J29: =J17 -> Collectives | L29: Onshore | N29: Offshore
B30: =Inputs!B30 -> Cells with red tags contain further information | I30: Personal Allowance | J30: N/A | L30: ='Allowances Remaining'!$C$16 -> 12570 | N30: ='Allowances Remaining'!$C$20 -> 12570
B31: =Inputs!B31 -> The tool runs in tax years from 6 April to 5 April inclusive. | I31: Starter Rate for Savings | J31: N/A | L31: ='Allowances Remaining'!$D$16 -> 5000 | N31: ='Allowances Remaining'!$D$20 -> 5000
B32: =Inputs!B32 -> The CGT allowance in year one is £6,000, thereafter this is £3,000. | I32: Personal Savings Allowance | J32: N/A | L32: ='Allowances Remaining'!$E$16 -> 1000 | N32: ='Allowances Remaining'!$E$20 -> 1000
B33: =Inputs!B33 -> The Dividend Nil Rate in year one is £1,000, thereafter this is £500. | I33: Basic Rate | J33: =VLOOKUP($C$5,'Allowances Remaining'!$B$3:$H$12,5,FALSE) ->  | L33: ='Allowances Remaining'!$F$16 -> 37700 | N33: ='Allowances Remaining'!$F$20 -> 37700
B34: =Inputs!B34 -> The CGT annual exempt amount is used each year (bed and breakfast rules avoided). | I34: Higher Rate | J34: N/A | L34: ='Allowances Remaining'!$G$16 -> 87440 | N34: ='Allowances Remaining'!$G$20 -> 87440
B35: =Inputs!B35 -> Net investment income is reinvested. | I35: CGT Allowance | J35: =VLOOKUP($C$5,'Allowances Remaining'!$B$3:$H$12,7,FALSE) ->  | L35: N/A | N35: N/A
B36: =Inputs!B36 -> UK rates of income tax apply.

Sheet Summary - Printer Friendly
E2: Year
E3: 1 | F3: =E3+1 -> 2 | G3: =F3+1 -> 3 | H3: 4 | I3: 5 | J3: 6 | K3: 7 | L3: 8 | M3: 9 | N3: 10
B4: Client Income | D4: Non Savings, Non Dividend | E4: ='Yr 1'!$F$9 -> 0 | F4: ='Yr 2'!$F$9 -> 0 | G4: ='Yr 3'!$F$9 -> 0 | H4: ='Yr 4'!$F$9 -> 0 | I4: ='Yr 5'!$F$9 -> 0 | J4: ='Yr 6'!$F$9 -> 0 | K4: ='Yr 7'!$F$9 -> 0 | L4: ='Yr 8'!$F$9 -> 0 | M4: ='Yr 9'!$F$9 -> 0 | N4: ='Yr 10'!$F$9 -> 0
D5: Existing Savings | E5: ='Yr 1'!$F$10 -> 0 | F5: ='Yr 2'!$F$10 -> 0 | G5: ='Yr 3'!$F$10 -> 0 | H5: ='Yr 4'!$F$10 -> 0 | I5: ='Yr 5'!$F$10 -> 0 | J5: ='Yr 6'!$F$10 -> 0 | K5: ='Yr 7'!$F$10 -> 0 | L5: ='Yr 8'!$F$10 -> 0 | M5: ='Yr 9'!$F$10 -> 0 | N5: ='Yr 10'!$F$10 -> 0
D6: Existing Dividend | E6: ='Yr 1'!$F$11 -> 0 | F6: ='Yr 2'!$F$11 -> 0 | G6: ='Yr 3'!$F$11 -> 0 | H6: ='Yr 4'!$F$11 -> 0 | I6: ='Yr 5'!$F$11 -> 0 | J6: ='Yr 6'!$F$11 -> 0 | K6: ='Yr 7'!$F$11 -> 0 | L6: ='Yr 8'!$F$11 -> 0 | M6: ='Yr 9'!$F$11 -> 0 | N6: ='Yr 10'!$F$11 -> 0
D7: New Savings | E7: ='Yr 1'!$F$12 -> 0 | F7: ='Yr 2'!$F$12 -> 0 | G7: ='Yr 3'!$F$12 -> 0 | H7: ='Yr 4'!$F$12 -> 0 | I7: ='Yr 5'!$F$12 -> 0 | J7: ='Yr 6'!$F$12 -> 0 | K7: ='Yr 7'!$F$12 -> 0 | L7: ='Yr 8'!$F$12 -> 0 | M7: ='Yr 9'!$F$12 -> 0 | N7: ='Yr 10'!$F$12 -> 0
D8: New Dividend | E8: ='Yr 1'!$F$13 -> 0 | F8: ='Yr 2'!$F$13 -> 0 | G8: ='Yr 3'!$F$13 -> 0 | H8: ='Yr 4'!$F$13 -> 0 | I8: ='Yr 5'!$F$13 -> 0 | J8: ='Yr 6'!$F$13 -> 0 | K8: ='Yr 7'!$F$13 -> 0 | L8: ='Yr 8'!$F$13 -> 0 | M8: ='Yr 9'!$F$13 -> 0 | N8: ='Yr 10'!$F$13 -> 0
D9: Total | E9: ='Yr 1'!$F$14 -> 0 | F9: ='Yr 2'!$F$14 -> 0 | G9: ='Yr 3'!$F$14 -> 0 | H9: ='Yr 4'!$F$14 -> 0 | I9: ='Yr 5'!$F$14 -> 0 | J9: ='Yr 6'!$F$14 -> 0 | K9: ='Yr 7'!$F$14 -> 0 | L9: ='Yr 8'!$F$14 -> 0 | M9: ='Yr 9'!$F$14 -> 0 | N9: ='Yr 10'!$F$14 -> 0
B13: Collectives | D13: Starting Value | E13: =CGT!G12 -> 0 | F13: =CGT!H12 -> 0 | G13: =CGT!I12 -> 0 | H13: =CGT!J12 -> 0 | I13: =CGT!K12 -> 0 | J13: =CGT!L12 -> 0 | K13: =CGT!M12 -> 0 | L13: =CGT!N12 -> 0 | M13: =CGT!O12 -> 0 | N13: =CGT!P12 -> 0
D14: Fund plus growth (no income reinvested) | E14: =CGT!G14 -> 0 | F14: =CGT!H14 -> 0 | G14: =CGT!I14 -> 0 | H14: =CGT!J14 -> 0 | I14: =CGT!K14 -> 0 | J14: =CGT!L14 -> 0 | K14: =CGT!M14 -> 0 | L14: =CGT!N14 -> 0 | M14: =CGT!O14 -> 0 | N14: =CGT!P14 -> 0
D15: Gain | E15: =CGT!G15 -> 0 | F15: =CGT!H15 -> 0 | G15: =CGT!I15 -> 0 | H15: =CGT!J15 -> 0 | I15: =CGT!K15 -> 0 | J15: =CGT!L15 -> 0 | K15: =CGT!M15 -> 0 | L15: =CGT!N15 -> 0 | M15: =CGT!O15 -> 0 | N15: =CGT!P15 -> 0
D16: AEA for year | E16: ='Parameters_Inc Calcs'!D16 -> 6000 | F16: ='Parameters_Inc Calcs'!$D$17 -> 3000 | G16: ='Parameters_Inc Calcs'!$D$17 -> 3000 | H16: ='Parameters_Inc Calcs'!$D$17 -> 3000 | I16: ='Parameters_Inc Calcs'!$D$17 -> 3000 | J16: ='Parameters_Inc Calcs'!$D$17 -> 3000 | K16: ='Parameters_Inc Calcs'!$D$17 -> 3000 | L16: ='Parameters_Inc Calcs'!$D$17 -> 3000 | M16: ='Parameters_Inc Calcs'!$D$17 -> 3000 | N16: ='Parameters_Inc Calcs'!$D$17 -> 3000
D17: Surrender to realise gains up to the AEA | E17: =CGT!G19 -> 0 | F17: =CGT!H19 -> 0 | G17: =CGT!I19 -> 0 | H17: =CGT!J19 -> 0 | I17: =CGT!K19 -> 0 | J17: =CGT!L19 -> 0 | K17: =CGT!M19 -> 0 | L17: =CGT!N19 -> 0 | M17: =CGT!O19 -> 0 | N17: =CGT!P19 -> 0
D18: AEA used | E18: =CGT!G17 -> 0 | F18: =CGT!H17 -> 0 | G18: =CGT!I17 -> 0 | H18: =CGT!J17 -> 0 | I18: =CGT!K17 -> 0 | J18: =CGT!L17 -> 0 | K18: =CGT!M17 -> 0 | L18: =CGT!N17 -> 0 | M18: =CGT!O17 -> 0 | N18: =CGT!P17 -> 0
D19: Carried Gain | E19: =CGT!G20 -> 0 | F19: =CGT!H20 -> 0 | G19: =CGT!I20 -> 0 | H19: =CGT!J20 -> 0 | I19: =CGT!K20 -> 0 | J19: =CGT!L20 -> 0 | K19: =CGT!M20 -> 0 | L19: =CGT!N20 -> 0 | M19: =CGT!O20 -> 0 | N19: =CGT!P20 -> 0
D20: Net income to be reinvested | E20: =CGT!G24 -> 0 | F20: =CGT!H24 -> 0 | G20: =CGT!I24 -> 0 | H20: =CGT!J24 -> 0 | I20: =CGT!K24 -> 0 | J20: =CGT!L24 -> 0 | K20: =CGT!M24 -> 0 | L20: =CGT!N24 -> 0 | M20: =CGT!O24 -> 0 | N20: =CGT!P24 -> 0
D21: Closing Value | E21: =CGT!G31 -> 0 | F21: =CGT!H31 -> 0 | G21: =CGT!I31 -> 0 | H21: =CGT!J31 -> 0 | I21: =CGT!K31 -> 0 | J21: =CGT!L31 -> 0 | K21: =CGT!M31 -> 0 | L21: =CGT!N31 -> 0 | M21: =CGT!O31 -> 0 | N21: =CGT!P31 -> 0
B25: Onshore bond | D25: =D13 -> Starting Value | E25: =Bonds!E8 -> 0 | F25: =Bonds!F8 -> 0 | G25: =Bonds!G8 -> 0 | H25: =Bonds!H8 -> 0 | I25: =Bonds!I8 -> 0 | J25: =Bonds!J8 -> 0 | K25: =Bonds!K8 -> 0 | L25: =Bonds!L8 -> 0 | M25: =Bonds!M8 -> 0 | N25: =Bonds!N8 -> 0
D26: Internal Taxation | E26: =Bonds!E11+Bonds!E17 -> 0 | F26: =Bonds!F11+Bonds!F17 -> 0 | G26: =Bonds!G11+Bonds!G17 -> 0 | H26: =Bonds!H11+Bonds!H17 -> 0 | I26: =Bonds!I11+Bonds!I17 -> 0 | J26: =Bonds!J11+Bonds!J17 -> 0 | K26: =Bonds!K11+Bonds!K17 -> 0 | L26: =Bonds!L11+Bonds!L17 -> 0 | M26: =Bonds!M11+Bonds!M17 -> 0 | N26: =Bonds!N11+Bonds!N17 -> 0
D27: Closing Value | E27: =Bonds!E21 -> 0 | F27: =Bonds!F21 -> 0 | G27: =Bonds!G21 -> 0 | H27: =Bonds!H21 -> 0 | I27: =Bonds!I21 -> 0 | J27: =Bonds!J21 -> 0 | K27: =Bonds!K21 -> 0 | L27: =Bonds!L21 -> 0 | M27: =Bonds!M21 -> 0 | N27: =Bonds!N21 -> 0
B28: Internal Tax Rate | D28: Gain | E28: =Bonds!E23 -> 0 | F28: =Bonds!F23 -> 0 | G28: =Bonds!G23 -> 0 | H28: =Bonds!H23 -> 0 | I28: =Bonds!I23 -> 0 | J28: =Bonds!J23 -> 0 | K28: =Bonds!K23 -> 0 | L28: =Bonds!L23 -> 0 | M28: =Bonds!M23 -> 0 | N28: =Bonds!N23 -> 0
B29: =Bonds!F5 ->  | D29: Slice | E29: =Bonds!E24 -> 0 | F29: =Bonds!F24 -> 0 | G29: =Bonds!G24 -> 0 | H29: =Bonds!H24 -> 0 | I29: =Bonds!I24 -> 0 | J29: =Bonds!J24 -> 0 | K29: =Bonds!K24 -> 0 | L29: =Bonds!L24 -> 0 | M29: =Bonds!M24 -> 0 | N29: =Bonds!N24 -> 0
B33: Offshore Bond | D33: =D25 -> Starting Value | E33: =Bonds!E33 -> 0 | F33: =Bonds!F33 -> 0 | G33: =Bonds!G33 -> 0 | H33: =Bonds!H33 -> 0 | I33: =Bonds!I33 -> 0 | J33: =Bonds!J33 -> 0 | K33: =Bonds!K33 -> 0 | L33: =Bonds!L33 -> 0 | M33: =Bonds!M33 -> 0 | N33: =Bonds!N33 -> 0
D34: Closing Value | E34: =Bonds!E42 -> 0 | F34: =Bonds!F42 -> 0 | G34: =Bonds!G42 -> 0 | H34: =Bonds!H42 -> 0 | I34: =Bonds!I42 -> 0 | J34: =Bonds!J42 -> 0 | K34: =Bonds!K42 -> 0 | L34: =Bonds!L42 -> 0 | M34: =Bonds!M42 -> 0 | N34: =Bonds!N42 -> 0
D35: Gain | E35: =Bonds!E44 -> 0 | F35: =Bonds!F44 -> 0 | G35: =Bonds!G44 -> 0 | H35: =Bonds!H44 -> 0 | I35: =Bonds!I44 -> 0 | J35: =Bonds!J44 -> 0 | K35: =Bonds!K44 -> 0 | L35: =Bonds!L44 -> 0 | M35: =Bonds!M44 -> 0 | N35: =Bonds!N44 -> 0
D36: Slice | E36: =Bonds!E45 -> 0 | F36: =Bonds!F45 -> 0 | G36: =Bonds!G45 -> 0 | H36: =Bonds!H45 -> 0 | I36: =Bonds!I45 -> 0 | J36: =Bonds!J45 -> 0 | K36: =Bonds!K45 -> 0 | L36: =Bonds!L45 -> 0 | M36: =Bonds!M45 -> 0 | N36: =Bonds!N45 -> 0
E40: =E3 -> 1 | F40: =F3 -> 2 | G40: 3 | H40: 4 | I40: 5 | J40: 6 | K40: 7 | L40: 8 | M40: 9 | N40: 10
D41: =B13 -> Collectives | E41: =E21 -> 0 | F41: =F21 -> 0 | G41: 0 | H41: 0 | I41: 0 | J41: 0 | K41: 0 | L41: 0 | M41: 0 | N41: 0
D42: =B25 -> Onshore bond | E42: =E27 -> 0 | F42: =F27 -> 0 | G42: 0 | H42: 0 | I42: 0 | J42: 0 | K42: 0 | L42: 0 | M42: 0 | N42: 0
D43: =B33 -> Offshore Bond | E43: =E34 -> 0 | F43: =F34 -> 0 | G43: 0 | H43: 0 | I43: 0 | J43: 0 | K43: 0 | L43: 0 | M43: 0 | N43: 0

Sheet Parameters_Inc Calcs (hidden)
B2: PA standard | C2: 12570
B3: ANI Limit | C3: 100000 | D3: Divis | E3: Other | F3: Gains | I3: Suicide Code | J3: =TODAY() -> 2023-01-17
B4: Basic Rate Band | C4: 37700 | D4: 0.0875 | E4: 0.2 | F4: 0.1 | J4: 2023-04-05
B5: Higher Threshold | C5: 50270 | D5: 0.3375 | E5: 0.4 | F5: 0.2
B6: Higher Rate Band Year 1 | C6: 112300 | D6: %
B7: Higher Rate Band | C7: =C8-C4 -> 87440
B8: Additional Threshold | C8: 125140 | D8: 0.3935 | E8: 0.45
B9: PSA Basic | C9: 1000
B10: PSA Higher | C10: 500
B11: PSA Add | C11: 0
B12: Starting Rate for Savings | C12: 5000
C14: Div | D14: CGT
B15: 2022/23 | C15: 2000 | D15: 12300 | M15: Notes
B16: 2023/24 | C16: 1000 | D16: 6000
B17: 2024/25 | C17: 500 | D17: 3000 | M17: Assueminvestments bought 6th Apriland Sold 5th April
M18: Net income is reinvested (income units)

Sheet Allowances Remaining (hidden)
C1: Collectives
B2: Year | C2: Unused PA (from divi after) | D2: Unused SSR (from savings after) | E2: Unused PSA (from savings after) | F2: Remaining Basic Rate (from Divi After) | G2: Remaining Higher Rate (from Divi After) | H2: CGT Allowance
B3: 1 | C3: ='Yr 1'!T30 -> 12570 | D3: ='Yr 1'!$T$18 -> 5000 | E3: ='Yr 1'!$T$19 -> 1000 | F3: ='Yr 1'!$T$31 -> 37700 | G3: ='Yr 1'!$T$32 -> 87440 | H3: ='Yr 1'!$D$43 -> 6000
B4: =B3+1 -> 2 | C4: ='Yr 2'!T30 -> 12570 | D4: ='Yr 2'!$T$18 -> 5000 | E4: ='Yr 2'!$T$19 -> 1000 | F4: ='Yr 2'!$T$31 -> 37700 | G4: ='Yr 2'!$T$32 -> 87440 | H4: ='Yr 2'!$D$43 -> 3000
B5: =B4+1 -> 3 | C5: ='Yr 3'!T30 -> 12570 | D5: ='Yr 3'!$T$18 -> 5000 | E5: ='Yr 3'!$T$19 -> 1000 | F5: ='Yr 3'!$T$31 -> 37700 | G5: ='Yr 3'!$T$32 -> 87440 | H5: ='Yr 3'!$D$43 -> 3000
B6: 4 | C6: ='Yr 4'!T30 -> 12570 | D6: ='Yr 4'!$T$18 -> 5000 | E6: ='Yr 4'!$T$19 -> 1000 | F6: ='Yr 4'!$T$31 -> 37700 | G6: ='Yr 4'!$T$32 -> 87440 | H6: ='Yr 4'!$D$43 -> 3000
B7: 5 | C7: ='Yr 5'!T30 -> 12570 | D7: ='Yr 5'!$T$18 -> 5000 | E7: ='Yr 5'!$T$19 -> 1000 | F7: ='Yr 5'!$T$31 -> 37700 | G7: ='Yr 5'!$T$32 -> 87440 | H7: ='Yr 5'!$D$43 -> 3000
B8: 6 | C8: ='Yr 6'!T30 -> 12570 | D8: ='Yr 6'!$T$18 -> 5000 | E8: ='Yr 6'!$T$19 -> 1000 | F8: ='Yr 6'!$T$31 -> 37700 | G8: ='Yr 6'!$T$32 -> 87440 | H8: ='Yr 6'!$D$43 -> 3000
B9: 7 | C9: ='Yr 7'!T30 -> 12570 | D9: ='Yr 7'!$T$18 -> 5000 | E9: ='Yr 7'!$T$19 -> 1000 | F9: ='Yr 7'!$T$31 -> 37700 | G9: ='Yr 7'!$T$32 -> 87440 | H9: ='Yr 7'!$D$43 -> 3000
B10: 8 | C10: ='Yr 8'!T30 -> 12570 | D10: ='Yr 8'!$T$18 -> 5000 | E10: ='Yr 8'!$T$19 -> 1000 | F10: ='Yr 8'!$T$31 -> 37700 | G10: ='Yr 8'!$T$32 -> 87440 | H10: ='Yr 8'!$D$43 -> 3000
B11: =B10+1 -> 9 | C11: ='Yr 9'!T30 -> 12570 | D11: ='Yr 9'!$T$18 -> 5000 | E11: ='Yr 9'!$T$19 -> 1000 | F11: ='Yr 9'!$T$31 -> 37700 | G11: ='Yr 9'!$T$32 -> 87440 | H11: ='Yr 9'!$D$43 -> 3000
B12: 10 | C12: ='Yr 10'!T30 -> 12570 | D12: ='Yr 10'!$T$18 -> 5000 | E12: ='Yr 10'!$T$19 -> 1000 | F12: ='Yr 10'!$T$31 -> 37700 | G12: ='Yr 10'!$T$32 -> 87440 | H12: ='Yr 8'!$D$43 -> 3000
C14: Onshore
C15: Unused PA (from divi before) | D15: Unused SSR (from savings before) | E15: Unused PSA (from savings before) | F15: Remaining Basic Rate (from Divi before) | G15: Remaining Higher Rate (from Divi before)
C16: ='Onshore Bond Calcs'!E42 -> 12570 | D16: ='Onshore Bond Calcs'!E22 -> 5000 | E16: ='Onshore Bond Calcs'!E23 -> 1000 | F16: ='Onshore Bond Calcs'!E43 -> 37700 | G16: ='Onshore Bond Calcs'!E44 -> 87440
C18: Offshore
C19: Unused PA (from divi before) | D19: Unused SSR (from savings before) | E19: Unused PSA (from savings before) | F19: Remaining Basic Rate (from Divi before) | G19: Remaining Higher Rate (from Divi before)
C20: ='Offshore Bond Calcs'!E42 -> 12570 | D20: ='Offshore Bond Calcs'!E22 -> 5000 | E20: ='Offshore Bond Calcs'!E32 -> 1000 | F20: ='Offshore Bond Calcs'!E34 -> 37700 | G20: ='Offshore Bond Calcs'!E44 -> 87440

Sheet CGT (hidden)
D7: =Inputs!B3 -> Invested Amount | E7: =Inputs!C3 -> 0 | F7: Term | G7: =Inputs!C5 -> 0
D8: =Inputs!I6 -> Capital Gain | E8: =Inputs!L6 -> 0
F9: Past final year | G9: =AND(G10>$G$7) -> TRUE | H9: TRUE | I9: TRUE | J9: TRUE | K9: TRUE | L9: TRUE | M9: TRUE | N9: TRUE | O9: TRUE | P9: TRUE
G10: 1 | H10: 2 | I10: 3 | J10: 4 | K10: 5 | L10: 6 | M10: 7 | N10: 8 | O10: 9 | P10: 10 | Q10: Total
F11: CGT Base | G11: =IF(G9=TRUE,0,E7) -> 0 | H11: =IF(H9=TRUE,0,G22+G19+G24) -> 0 | I11: =IF(I9=TRUE,0,H22+H19+H24) -> 0 | J11: 0 | K11: 0 | L11: 0 | M11: 0 | N11: 0 | O11: 0 | P11: 0 | Q11: =SUM(G11:P11) -> 0
F12: Starting value | G12: =G11 -> 0 | H12: =IF(H9=TRUE,0,G14+G24) -> 0 | I12: 0 | J12: 0 | K12: 0 | L12: 0 | M12: 0 | N12: 0 | O12: 0 | P12: 0 | Q12: =SUM(G12:P12) -> 0
A13: =400000*1.05^10 -> 651557.8507 | F13: Growth | G13: =1+E8 -> 1 | H13: =IF(H9=TRUE,0,G13) -> 0 | I13: 0 | J13: 0 | K13: 0 | L13: 0 | M13: 0 | N13: 0 | O13: 0 | P13: 0
A14: 400000 | F14: SV | G14: =G12*G13 -> 0 | H14: 0 | I14: 0 | J14: 0 | K14: 0 | L14: 0 | M14: 0 | N14: 0 | O14: 0 | P14: 0 | Q14: =SUM(G14:P14) -> 0
A15: =A13-A14 -> 251557.8507 | F15: Gain | G15: =G14-G12 -> 0 | H15: =H14-H12 -> 0 | I15: 0 | J15: 0 | K15: 0 | L15: 0 | M15: 0 | N15: =N14-N12 -> 0 | O15: 0 | P15: 0 | Q15: =SUM(G15:P15) -> 0
A16: =SUM(G17:P17) -> 0 | F16: Cum Gain | G16: =G15 -> 0 | H16: =IF(H9=TRUE,0,H15+G20) -> 0 | I16: 0 | J16: 0 | K16: 0 | L16: 0 | M16: 0 | N16: =IF(N9=TRUE,0,N15+M20) -> 0 | O16: 0 | P16: 0 | Q16: =SUM(G16:P16) -> 0
A17: =A15-A16 -> 251557.8507 | F17: AEA | G17: =MIN(G16,'Parameters_Inc Calcs'!D16) -> 0 | H17: =IF(H9=TRUE,0,MIN(H16,'Parameters_Inc Calcs'!D17)) -> 0 | I17: =IF(I9=TRUE,0,MIN(I16,'Parameters_Inc Calcs'!D17)) -> 0 | J17: =IF(J9=TRUE,0,MIN(J16,'Parameters_Inc Calcs'!D17)) -> 0 | K17: =IF(K9=TRUE,0,MIN(K16,'Parameters_Inc Calcs'!D17)) -> 0 | L17: =IF(L9=TRUE,0,MIN(L16,'Parameters_Inc Calcs'!D17)) -> 0 | M17: =IF(M9=TRUE,0,MIN(M16,'Parameters_Inc Calcs'!D17)) -> 0 | N17: =IF(N9=TRUE,0,MIN(N16,'Parameters_Inc Calcs'!D17)) -> 0 | O17: =IF(O9=TRUE,0,MIN(O16,'Parameters_Inc Calcs'!D17)) -> 0 | P17: =IF(P9=TRUE,0,MIN(P16,'Parameters_Inc Calcs'!D17)) -> 0 | Q17: =SUM(G17:P17) -> 0
F18: AEA/Gain | G18: =IF(G15=0,0,G17/G16) -> 0 | H18: =IF(H15=0,0,H17/H16) -> 0 | I18: 0 | J18: 0 | K18: 0 | L18: 0 | M18: 0 | N18: 0 | O18: 0 | P18: 0
F19: Surrender | G19: =G18*G14 -> 0 | H19: =IF(H9=TRUE,0,H18*H14) -> 0 | I19: 0 | J19: 0 | K19: 0 | L19: 0 | M19: 0 | N19: 0 | O19: 0 | P19: 0 | Q19: =SUM(G19:P19) -> 0
F20: Carried Gain | G20: =G16-G17 -> 0 | H20: =IF(H9=TRUE,0,H16-H17) -> 0 | I20: 0 | J20: 0 | K20: 0 | L20: 0 | M20: 0 | N20: 0 | O20: 0 | P20: 0 | Q20: =SUM(G20:P20) -> 0
F21: Base Surrendered | G21: =G11*G18 -> 0 | H21: 0 | I21: 0 | J21: 0 | K21: 0 | L21: 0 | M21: 0 | N21: 0 | O21: 0 | P21: 0 | Q21: =SUM(G21:P21) -> 0
F22: Base remaining | G22: =G11-G21 -> 0 | H22: 0 | I22: 0 | J22: 0 | K22: 0 | L22: 0 | M22: 0 | N22: 0 | O22: 0 | P22: 0 | Q22: =SUM(G22:P22) -> 0
F24: Net income to be reinvested | G24: ='Yr 1'!$AD$23 -> 0 | H24: ='Yr 2'!$AD$23 -> 0 | I24: ='Yr 3'!$AD$23 -> 0 | J24: ='Yr 4'!$AD$23 -> 0 | K24: ='Yr 5'!AD23 -> 0 | L24: ='Yr 6'!$AD$23 -> 0 | M24: ='Yr 7'!$AD$23 -> 0 | N24: ='Yr 8'!$AD$23 -> 0 | O24: ='Yr 9'!$AD$23 -> 0 | P24: ='Yr 10'!$AD$23 -> 0 | Q24: 0
F26: CGT Bill | G26: =IF(G10=$G$7,'Yr 1'!$AA$40,0) -> 0 | H26: =IF(H10=$G$7,'Yr 2'!$AA$40,0) -> 0 | I26: =IF(I10=$G$7,'Yr 3'!$AA$40,0) -> 0 | J26: =IF(J10=$G$7,'Yr 4'!$AA$40,0) -> 0 | K26: =IF(K10=$G$7,'Yr 5'!$AA$40,0) -> 0 | L26: =IF(L10=$G$7,'Yr 6'!$AA$40,0) -> 0 | M26: =IF(M10=$G$7,'Yr 7'!$AA$40,0) -> 0 | N26: =IF(N10=$G$7,'Yr 8'!$AA$40,0) -> 0 | O26: =IF(O10=$G$7,'Yr 9'!$AA$40,0) -> 0 | P26: =IF(P10=$G$7,'Yr 10'!$AA$40,0) -> 0 | Q26: =SUM(G26:P26) -> 0
F28: Surrender value incl Reinvested inc in final year | G28: =IF(G10=$G$7,G14+G24,0) -> 0 | H28: =IF(H10=$G$7,H14+H24,0) -> 0 | I28: 0 | J28: 0 | K28: 0 | L28: 0 | M28: 0 | N28: =IF(N10=$G$7,N14+N24,0) -> 0 | O28: 0 | P28: 0 | Q28: 0
F31: Year end value | G31: =G14+G24 -> 0 | H31: =H14+H24 -> 0 | I31: 0 | J31: 0 | K31: 0 | L31: =L14+L24 -> 0 | M31: 0 | N31: =N14+N24 -> 0 | O31: 0 | P31: 0
H33: =H31-G31 -> 0 | I33: =I31-H31 -> 0 | J33: 0 | K33: 0 | L33: 0 | M33: 0 | N33: 0

Sheet Yr 1 (hidden)
I1: Before | P1: AFTER
B2: Year | C2: 1 | D2: move year on 1 | I2: Allowances: | P2: Allowances:
B3: Final Year | C3: =IF(C2=Inputs!C5,"Yes","No") -> No | I3: Pers_Allow_Adj | P3: Pers_Allow_Adj
B4: After Final Year | C4: =AND(C2>Inputs!C5) -> TRUE | I4: Tot_Pers_Allow | J4: =D22 -> 12570 | P4: Tot_Pers_Allow | Q4: =F22 -> 12570
B5: Investment | C5: =CGT!G12 -> 0 | D5: move col on 1 | I5: Pers_Sav_Allow | J5: =D40 -> 1000 | P5: Pers_Sav_Allow | Q5: =F40 -> 1000
B6: Cum Gain | C6: =CGT!G16 -> 0 | D6: move col on 1
B8: Factor | C8: Before | E8: After | I8: Non Savings Income Apportionment | P8: Non Savings Income Apportionment
B9: 1 | C9: NSND | D9: =IF(OR($C$3="Yes",$C$4=TRUE),Inputs!L11,Inputs!C11*B9) -> 0 | E9: Total Income | F9: =IF(C3="Yes",Inputs!L11,D9) -> 0
B10: 1 | C10: Savings | D10: =IF(OR($C$3="Yes",$C$4=TRUE),Inputs!L12,Inputs!C12*B10) -> 0 | E10: Savings | F10: =IF(C3="Yes",Inputs!L12,D10) -> 0 | J10: Allowances | K10: Still to tax | L10: Used | M10: Unused | Q10: Allowances | R10: Still to tax | S10: Used | T10: Unused | W10: Before | X10: After | Y10: Amount | Z10: Rate | AA10: Add Tax
B11: 1 | C11: Divi | D11: =IF(OR($C$3="Yes",$C$4=TRUE),Inputs!L13,Inputs!C13*B11) -> 0 | E11: Divi | F11: =IF(C3="Yes",Inputs!L13,D11) -> 0 | I11: Personal Allowance | J11: =J4 -> 12570 | K11: =D9 -> 0 | L11: =MIN(J11,K11) -> 0 | M11: =MAX(0,J11-L11) -> 12570 | P11: Personal Allowance | Q11: =Q4 -> 12570 | R11: =K11 -> 0 | S11: =MIN(Q11,R11) -> 0 | T11: =MAX(0,Q11-S11) -> 12570 | W11: =L11*Z11 -> 0 | X11: =S11*Z11 -> 0 | Y11: =S11-L11 -> 0 | Z11: 0 | AA11: =Y11*Z11 -> 0
B12: =Inputs!L4 -> 0 | E12: New Savings | F12: =IF(C4=TRUE,0,C5*B12) -> 0 | I12: Basic Rate | J12: =$D$26 -> 37700 | K12: =MAX(0,K11-L11) -> 0 | L12: =MIN(J12,K12) -> 0 | M12: =MAX(0,J12-L12) -> 37700 | P12: Basic Rate | Q12: =$F$26 -> 37700 | R12: =MAX(0,R11-S11) -> 0 | S12: =MIN(Q12,R12) -> 0 | T12: =MAX(0,Q12-S12) -> 37700 | W12: =L12*Z12 -> 0 | X12: =S12*Z12 -> 0 | Y12: =S12-L12 -> 0 | Z12: ='Parameters_Inc Calcs'!E4 -> 0.2 | AA12: =Y12*Z12 -> 0
B13: =Inputs!L5 -> 0 | E13: New Divi | F13: =IF(C4=TRUE,0,C5*B13) -> 0 | I13: Higher Rate | J13: =$D$28 -> 87440 | K13: =MAX(0,K12-L12) -> 0 | L13: =MIN(J13,K13) -> 0 | M13: =MAX(0,J13-L13) -> 87440 | P13: Higher Rate | Q13: =$F$28 -> 87440 | R13: =MAX(0,R12-S12) -> 0 | S13: =MIN(Q13,R13) -> 0 | T13: =MAX(0,Q13-S13) -> 87440 | W13: =L13*Z13 -> 0 | X13: =S13*Z13 -> 0 | Y13: 0 | Z13: ='Parameters_Inc Calcs'!E5 -> 0.4 | AA13: =Y13*Z13 -> 0
C14: ANI | D14: =SUM(D9:D13) -> 0 | E14: ANI | F14: =SUM(F9:F13) -> 0 | I14: Additional Rate | K14: =MAX(0,K13-L13) -> 0 | L14: =K14 -> 0 | M14: NA | P14: Additional Rate | R14: =MAX(0,R13-S13) -> 0 | S14: =R14 -> 0 | T14: NA | W14: =L14*Z14 -> 0 | X14: =S14*Z14 -> 0 | Y14: 0 | Z14: ='Parameters_Inc Calcs'!E8 -> 0.45 | AA14: =Y14*Z14 -> 0
W15: =SUM(W11:W14) -> 0 | X15: =SUM(X11:X14) -> 0 | AA15: =SUM(AA11:AA14) -> 0
E16: New Gain | F16: =CGT!G15 -> 0 | I16: Savings Income Tax Band Apportionment | P16: Savings Income Tax Band Apportionment
J17: Allowances | K17: Still to tax | L17: Used | M17: Unused | Q17: Allowances | R17: Still to tax | S17: Used | T17: Unused | W17: Before | X17: After | Y17: Amount | Z17: Rate | AA17: Add Tax
C18: ANI Limit | D18: ='Parameters_Inc Calcs'!$C$3 -> 100000 | E18: ANI Limit | F18: ='Parameters_Inc Calcs'!$C$3 -> 100000 | I18: Starting Rate | J18: =$D$38 -> 5000 | K18: =D10 -> 0 | L18: =MIN(J18,K18) -> 0 | M18: =MAX(0,J18-L18) -> 5000 | P18: Starting Rate | Q18: =$F$38 -> 5000 | R18: =F10+F12 -> 0 | S18: =MIN(Q18,R18) -> 0 | T18: =MAX(0,Q18-S18) -> 5000 | W18: =L18*Z18 -> 0 | X18: =S18*Z18 -> 0 | Y18: 0 | Z18: 0 | AA18: =Y18*Z18 -> 0
C19: ANI Excess | D19: =MAX(0,D14-D18) -> 0 | E19: ANI Excess | F19: =MAX(0,F14-F18) -> 0 | I19: Personal Savings Allowance | J19: =D40 -> 1000 | K19: =MAX(0,K18-L18) -> 0 | L19: 0 | M19: =MAX(0,J19-L19) -> 1000 | N19: Higher Rate Adjustment for PSA and SRS Bands | P19: Personal Savings Allowance | Q19: =$F$40 -> 1000 | R19: =MAX(0,R18-S18) -> 0 | S19: 0 | T19: =MAX(0,Q19-S19) -> 1000 | U19: Higher Rate Adjustment for PSA and SRS Bands | W19: 0 | X19: 0 | Y19: 0 | Z19: 0 | AA19: 0
C20: PA adjustment | D20: =D19/2 -> 0 | E20: PA adjustment | F20: =F19/2 -> 0 | I20: Personal Allowance | J20: =M11 -> 12570 | K20: =MAX(0,K19-L19) -> 0 | L20: 0 | M20: =MAX(0,J20-L20) -> 12570 | P20: Personal Allowance | Q20: =T11 -> 12570 | R20: =MAX(0,R19-S19) -> 0 | S20: 0 | T20: =MAX(0,Q20-S20) -> 12570 | W20: 0 | X20: 0 | Y20: 0 | Z20: 0 | AA20: 0
I21: Basic Rate | J21: =MAX(0,M12-SUM(L18:L19)) -> 37700 | K21: =MAX(0,K20-L20) -> 0 | L21: 0 | M21: =MAX(0,J21-L21) -> 37700 | P21: Basic Rate | Q21: =MAX(0,T12-SUM(S18:S19)) -> 37700 | R21: =MAX(0,R20-S20) -> 0 | S21: 0 | T21: =MAX(0,Q21-S21) -> 37700 | W21: 0 | X21: 0 | Y21: 0 | Z21: =Z12 -> 0.2 | AA21: 0 | AC21: Investment income | AD21: =Y24+Y34 -> 0
C22: Personal Allowance | D22: =MAX(0,D31-D20) -> 12570 | E22: Personal Allowance | F22: =MAX(0,F31-F20) -> 12570 | I22: Higher Rate | J22: =M13-N22 -> 87440 | K22: =MAX(0,K21-L21) -> 0 | L22: 0 | M22: =MAX(0,J22-L22) -> 87440 | N22: =MIN(M13,MAX(L19-M12,0)) -> 0 | P22: Higher Rate | Q22: =T13-U22 -> 87440 | R22: =MAX(0,R21-S21) -> 0 | S22: 0 | T22: =MAX(0,Q22-S22) -> 87440 | U22: =MIN(T13,MAX(S19-T12,0)) -> 0 | W22: 0 | X22: 0 | Y22: 0 | Z22: =Z13 -> 0.4 | AA22: 0 | AC22: Tax | AD22: =AA15+AA24+AA34 -> 0
I23: Additional Rate | K23: =MAX(0,K22-L22) -> 0 | L23: 0 | M23: NA | P23: Additional Rate | R23: =MAX(0,R22-S22) -> 0 | S23: 0 | T23: NA | W23: 0 | X23: 0 | Y23: 0 | Z23: =Z14 -> 0.45 | AA23: 0 | AC23: Net Income Reinvested | AD23: =MAX(0,AD21-AD22) -> 0
C24: Taxable Income | D24: =D9-D22 -> -12570 | E24: Taxable Income | F24: =F9-F22 -> -12570 | I24: Nil Rate available | J24: =SUM(J18:J20) -> 18570 | P24: Nil Rate available | Q24: =SUM(Q18:Q20) -> 18570 | W24: =SUM(W18:W23) -> 0 | X24: =SUM(X18:X23) -> 0 | Y24: =SUM(Y18:Y23) -> 0 | AA24: =SUM(AA18:AA23) -> 0 | AD24: =AD22/AD21 -> 
C26: Basic Rate Band | D26: ='Parameters_Inc Calcs'!$C$4 -> 37700 | E26: Basic Rate Band | F26: ='Parameters_Inc Calcs'!$C$4 -> 37700
C27: Higher Threshold | D27: ='Parameters_Inc Calcs'!$C$5 -> 50270 | E27: Higher Threshold | F27: ='Parameters_Inc Calcs'!$C$5 -> 50270 | I27: Dividend Income Tax Band Apportionment | P27: Dividend Income Tax Band Apportionment
C28: Higher Rate Band | D28: ='Parameters_Inc Calcs'!$C$7 -> 87440 | E28: Higher Rate Band | F28: ='Parameters_Inc Calcs'!$C$7 -> 87440 | J28: Allowances | K28: Still to tax | L28: Used | M28: Unused | Q28: Allowances | R28: Still to tax | S28: Used | T28: Unused | W28: Before | X28: After | Y28: Amount | Z28: Rate | AA28: Add Tax
C29: Additional Threshold | D29: ='Parameters_Inc Calcs'!$C$8 -> 125140 | E29: Additional Threshold | F29: ='Parameters_Inc Calcs'!$C$8 -> 125140 | I29: Dividend Allowance | J29: =D42 -> 1000 | K29: =D11 -> 0 | L29: =MIN(J29,K29) -> 0 | M29: =MAX(0,J29-L29) -> 1000 | N29: Higher Rate Adjustment for PSA and SRS Bands | P29: Dividend Allowance | Q29: =D42 -> 1000 | R29: =F11+F13 -> 0 | S29: =MIN(Q29,R29) -> 0 | T29: =MAX(0,Q29-S29) -> 1000 | U29: Higher Rate Adjustment for PSA and SRS Bands | W29: =L29*Z29 -> 0 | X29: =S29*Z29 -> 0 | Y29: 0 | Z29: 0 | AA29: =Y29*Z29 -> 0
I30: Personal Allowance | J30: =M20 -> 12570 | K30: =MAX(0,K29-L29) -> 0 | L30: =MIN(J30,K30) -> 0 | M30: =MAX(0,J30-L30) -> 12570 | P30: Personal Allowance | Q30: =T20 -> 12570 | R30: =MAX(0,R29-S29) -> 0 | S30: =MIN(Q30,R30) -> 0 | T30: =MAX(0,Q30-S30) -> 12570 | W30: =L30*Z30 -> 0 | X30: =S30*Z30 -> 0 | Y30: 0 | Z30: 0 | AA30: =Y30*Z30 -> 0
C31: PA standard | D31: ='Parameters_Inc Calcs'!$C$2 -> 12570 | E31: PA standard | F31: ='Parameters_Inc Calcs'!$C$2 -> 12570 | I31: Basic Rate | J31: =MAX(0,M21-L29) -> 37700 | K31: =MAX(0,K30-L30) -> 0 | L31: =MIN(J31,K31) -> 0 | M31: =MAX(0,J31-L31) -> 37700 | P31: Basic Rate | Q31: =MAX(0,T21-S29) -> 37700 | R31: =MAX(0,R30-S30) -> 0 | S31: =MIN(Q31,R31) -> 0 | T31: =MAX(0,Q31-S31) -> 37700 | W31: =L31*Z31 -> 0 | X31: =S31*Z31 -> 0 | Y31: 0 | Z31: ='Parameters_Inc Calcs'!D4 -> 0.0875 | AA31: =Y31*Z31 -> 0
I32: Higher Rate | J32: =M22-N32 -> 87440 | K32: =MAX(0,K31-L31) -> 0 | L32: =MIN(J32,K32) -> 0 | M32: =MAX(0,J32-L32) -> 87440 | N32: =MIN(M22,MAX(L29-M21,0)) -> 0 | P32: Higher Rate | Q32: =T22-U32 -> 87440 | R32: =MAX(0,R31-S31) -> 0 | S32: =MIN(Q32,R32) -> 0 | T32: =MAX(0,Q32-S32) -> 87440 | U32: =MIN(T22,MAX(S29-T21,0)) -> 0 | W32: =L32*Z32 -> 0 | X32: =S32*Z32 -> 0 | Y32: =S32-L32 -> 0 | Z32: ='Parameters_Inc Calcs'!D5 -> 0.3375 | AA32: =Y32*Z32 -> 0
C33: PSA Basic | D33: ='Parameters_Inc Calcs'!$C$9 -> 1000 | E33: PSA Basic | F33: ='Parameters_Inc Calcs'!$C$9 -> 1000 | I33: Additional Rate | K33: =MAX(0,K32-L32) -> 0 | L33: =MIN(J33,K33) -> 0 | M33: NA | P33: Additional Rate | R33: =MAX(0,R32-S32) -> 0 | S33: =MIN(Q33,R33) -> 0 | T33: NA | W33: =L33*Z33 -> 0 | X33: =S33*Z33 -> 0 | Y33: 0 | Z33: ='Parameters_Inc Calcs'!D8 -> 0.3935 | AA33: =Y33*Z33 -> 0
C34: PSA Higher | D34: ='Parameters_Inc Calcs'!$C$10 -> 500 | E34: PSA Higher | F34: ='Parameters_Inc Calcs'!$C$10 -> 500 | I34: Nil Rate available | J34: =J29+J30 -> 13570 | P34: Nil Rate available | Q34: =Q29+Q30 -> 13570 | W34: =SUM(W29:W33) -> 0 | X34: =SUM(X29:X33) -> 0 | Y34: =SUM(Y29:Y33) -> 0 | AA34: =SUM(AA29:AA33) -> 0 | AC34: External Tax Rate
C35: PSA Add | D35: ='Parameters_Inc Calcs'!$C$11 -> 0 | E35: PSA Add | F35: ='Parameters_Inc Calcs'!$C$11 -> 0
I36: Capital Gains Tax Band Apportionment | P36: Capital Gains Tax Band Apportionment | W36: Before | X36: After | Y36: Amount | Z36: Rate | AA36: Add Tax | AC36: Growth | AD36: =Y24+Y34+Y40 -> 0
C37: Starting Rate for Savings | D37: ='Parameters_Inc Calcs'!C12 -> 5000 | E37: Starting Rate for Savings | F37: ='Parameters_Inc Calcs'!C12 -> 5000 | I37: Annual Exemption | J37: =D43 -> 6000 | K37: 0 | L37: =MIN(J37,K37) -> 0 | M37: =MAX(0,J37-L37) -> 6000 | P37: Annual Exemption | Q37: =D43 -> 6000 | R37: =IF(C3="Yes",C6,F16) -> 0 | S37: =MIN(Q37,R37) -> 0 | T37: =MAX(0,Q37-S37) -> 6000 | W37: =L37*Z37 -> 0 | X37: =S37*Z37 -> 0 | Y37: 0 | Z37: 0 | AA37: =Y37*Z37 -> 0 | AC37: Tax inc CGT | AD37: =AA40+AA34+AA24 -> 0
C38: Available | D38: =MAX(0,MIN(D37,(D22+D37)-D9)) -> 5000 | E38: Available | F38: =MAX(0,MIN(F37,(F22+F37)-F9)) -> 5000 | I38: Basic Rate | J38: =M31 -> 37700 | K38: =MAX(0,K37-L37) -> 0 | L38: =MIN(J38,K38) -> 0 | M38: 37700 | P38: Basic Rate | Q38: =T31 -> 37700 | R38: =MAX(0,R37-S37) -> 0 | S38: =MIN(Q38,R38) -> 0 | T38: =MAX(0,Q38-S38) -> 37700 | W38: =L38*Z38 -> 0 | X38: =S38*Z38 -> 0 | Y38: 0 | Z38: ='Parameters_Inc Calcs'!F4 -> 0.1 | AA38: =Y38*Z38 -> 0 | AC38: Tax Exc CGT | AD38: =AD22 -> 0
I39: Higher Rate | K39: =K38-L38 -> 0 | L39: =MIN(J39,K39) -> 0 | M39: 0 | P39: Higher Rate | R39: =R38-S38 -> 0 | S39: =MIN(Q39,R39) -> 0 | T39: 0 | W39: =L39*Z39 -> 0 | X39: =S39*Z39 -> 0 | Y39: 0 | Z39: ='Parameters_Inc Calcs'!F5 -> 0.2 | AA39: =Y39*Z39 -> 0
C40: PSA | D40: =IF(D14>D29,D35,IF(D14>D27,D34,D33)) -> 1000 | E40: PSA | F40: =IF(F14>F29,F35,IF(F14>F27,F34,F33)) -> 1000 | I40: Nil Rate available | J40: =J37 -> 6000 | P40: Nil Rate available | Q40: =Q37 -> 6000 | W40: =SUM(W37:W39) -> 0 | X40: =SUM(X37:X39) -> 0 | Y40: =SUM(Y37:Y39) -> 0 | AA40: =SUM(AA37:AA39) -> 0 | AC40: Inc CGT rate | AD40: =AD37/AD36 -> 
AC41: Exc CGT rate | AD41: =AD38/AD36 -> 
C42: Div All | D42: ='Parameters_Inc Calcs'!C16 -> 1000
C43: CGT All | D43: ='Parameters_Inc Calcs'!D16 -> 6000

Sheet Yr 2 (hidden)
I1: Before | P1: AFTER
B2: Year | C2: 2 | D2: move year on 1 | I2: Allowances: | P2: Allowances:
B3: Final Year | C3: =IF(C2=Inputs!C5,"Yes","No") -> No | I3: Pers_Allow_Adj | P3: Pers_Allow_Adj
B4: After Final Year | C4: =AND(C2>Inputs!C5) -> TRUE | I4: Tot_Pers_Allow | J4: =D22 -> 12570 | P4: Tot_Pers_Allow | Q4: =F22 -> 12570
B5: Investment | C5: =CGT!H12 -> 0 | D5: move col on 1 | I5: Pers_Sav_Allow | J5: =D40 -> 1000 | P5: Pers_Sav_Allow | Q5: =F40 -> 1000
B6: Cum Gain | C6: =CGT!H16 -> 0 | D6: move col on 1
B8: Factor | C8: Before | E8: After | I8: Non Savings Income Apportionment | P8: Non Savings Income Apportionment
B9: =1+Inputs!E11 -> 1 | C9: NSND | D9: =IF(C4=TRUE,0,IF(OR($C$3="Yes",$C$4=TRUE),Inputs!L11,'Yr 1'!D9*B9)) -> 0 | E9: Total Income | F9: =IF(C3="Yes",Inputs!L11,D9) -> 0
B10: =1+Inputs!E12 -> 1 | C10: Savings | D10: =IF(C4=TRUE,0,IF(OR($C$3="Yes",$C$4=TRUE),Inputs!L12,'Yr 1'!D10*B10)) -> 0 | E10: Savings | F10: =IF(C3="Yes",Inputs!L12,D10) -> 0 | J10: Allowances | K10: Still to tax | L10: Used | M10: Unused | Q10: Allowances | R10: Still to tax | S10: Used | T10: Unused | W10: Before | X10: After | Y10: Amount | Z10: Rate | AA10: Add Tax
B11: =1+Inputs!E13 -> 1 | C11: Divi | D11: =IF(C4=TRUE,0,IF(OR($C$3="Yes",$C$4=TRUE),Inputs!L13,'Yr 1'!D11*B11)) -> 0 | E11: Divi | F11: =IF(C3="Yes",Inputs!L13,D11) -> 0 | I11: Personal Allowance | J11: =J4 -> 12570 | K11: =D9 -> 0 | L11: =MIN(J11,K11) -> 0 | M11: =MAX(0,J11-L11) -> 12570 | P11: Personal Allowance | Q11: =Q4 -> 12570 | R11: =K11 -> 0 | S11: =MIN(Q11,R11) -> 0 | T11: =MAX(0,Q11-S11) -> 12570 | W11: =L11*Z11 -> 0 | X11: =S11*Z11 -> 0 | Y11: =S11-L11 -> 0 | Z11: 0 | AA11: =Y11*Z11 -> 0
B12: =Inputs!L4 -> 0 | E12: New Savings | F12: =IF(C4=TRUE,0,C5*B12) -> 0 | I12: Basic Rate | J12: =$D$26 -> 37700 | K12: =MAX(0,K11-L11) -> 0 | L12: =MIN(J12,K12) -> 0 | M12: =MAX(0,J12-L12) -> 37700 | P12: Basic Rate | Q12: =$F$26 -> 37700 | R12: =MAX(0,R11-S11) -> 0 | S12: =MIN(Q12,R12) -> 0 | T12: =MAX(0,Q12-S12) -> 37700 | W12: =L12*Z12 -> 0 | X12: =S12*Z12 -> 0 | Y12: =S12-L12 -> 0 | Z12: ='Parameters_Inc Calcs'!E4 -> 0.2 | AA12: =Y12*Z12 -> 0
B13: =Inputs!L5 -> 0 | E13: New Divi | F13: =IF(C4=TRUE,0,C5*B13) -> 0 | I13: Higher Rate | J13: =$D$28 -> 87440 | K13: =MAX(0,K12-L12) -> 0 | L13: =MIN(J13,K13) -> 0 | M13: =MAX(0,J13-L13) -> 87440 | P13: Higher Rate | Q13: =$F$28 -> 87440 | R13: =MAX(0,R12-S12) -> 0 | S13: =MIN(Q13,R13) -> 0 | T13: =MAX(0,Q13-S13) -> 87440 | W13: =L13*Z13 -> 0 | X13: =S13*Z13 -> 0 | Y13: =S13-L13 -> 0 | Z13: ='Parameters_Inc Calcs'!E5 -> 0.4 | AA13: =Y13*Z13 -> 0
C14: ANI | D14: =SUM(D9:D13) -> 0 | E14: ANI | F14: =SUM(F9:F13) -> 0 | I14: Additional Rate | K14: =MAX(0,K13-L13) -> 0 | L14: =K14 -> 0 | M14: NA | P14: Additional Rate | R14: =MAX(0,R13-S13) -> 0 | S14: =R14 -> 0 | T14: NA | W14: =L14*Z14 -> 0 | X14: =S14*Z14 -> 0 | Y14: =S14-L14 -> 0 | Z14: ='Parameters_Inc Calcs'!E8 -> 0.45 | AA14: =Y14*Z14 -> 0
W15: =SUM(W11:W14) -> 0 | X15: =SUM(X11:X14) -> 0 | AA15: =SUM(AA11:AA14) -> 0
E16: New Gain | F16: =CGT!H15 -> 0 | I16: Savings Income Tax Band Apportionment | P16: Savings Income Tax Band Apportionment
J17: Allowances | K17: Still to tax | L17: Used | M17: Unused | Q17: Allowances | R17: Still to tax | S17: Used | T17: Unused | W17: Before | X17: After | Y17: Amount | Z17: Rate | AA17: Add Tax
C18: ANI Limit | D18: ='Parameters_Inc Calcs'!$C$3 -> 100000 | E18: ANI Limit | F18: ='Parameters_Inc Calcs'!$C$3 -> 100000 | I18: Starting Rate | J18: =$D$38 -> 5000 | K18: =D10 -> 0 | L18: =MIN(J18,K18) -> 0 | M18: =MAX(0,J18-L18) -> 5000 | P18: Starting Rate | Q18: =$F$38 -> 5000 | R18: =F10+F12 -> 0 | S18: =MIN(Q18,R18) -> 0 | T18: =MAX(0,Q18-S18) -> 5000 | W18: =L18*Z18 -> 0 | X18: =S18*Z18 -> 0 | Y18: =S18-L18 -> 0 | Z18: 0 | AA18: =Y18*Z18 -> 0
C19: ANI Excess | D19: =MAX(0,D14-D18) -> 0 | E19: ANI Excess | F19: =MAX(0,F14-F18) -> 0 | I19: Personal Savings Allowance | J19: =D40 -> 1000 | K19: =MAX(0,K18-L18) -> 0 | L19: 0 | M19: =MAX(0,J19-L19) -> 1000 | N19: Higher Rate Adjustment for PSA and SRS Bands | P19: Personal Savings Allowance | Q19: =$F$40 -> 1000 | R19: =MAX(0,R18-S18) -> 0 | S19: 0 | T19: =MAX(0,Q19-S19) -> 1000 | U19: Higher Rate Adjustment for PSA and SRS Bands | W19: 0 | X19: 0 | Y19: 0 | Z19: 0 | AA19: 0
C20: PA adjustment | D20: =D19/2 -> 0 | E20: PA adjustment | F20: =F19/2 -> 0 | I20: Personal Allowance | J20: =M11 -> 12570 | K20: =MAX(0,K19-L19) -> 0 | L20: 0 | M20: =MAX(0,J20-L20) -> 12570 | P20: Personal Allowance | Q20: =T11 -> 12570 | R20: =MAX(0,R19-S19) -> 0 | S20: 0 | T20: =MAX(0,Q20-S20) -> 12570 | W20: 0 | X20: 0 | Y20: 0 | Z20: 0 | AA20: 0
I21: Basic Rate | J21: =MAX(0,M12-SUM(L18:L19)) -> 37700 | K21: =MAX(0,K20-L20) -> 0 | L21: 0 | M21: =MAX(0,J21-L21) -> 37700 | P21: Basic Rate | Q21: =MAX(0,T12-SUM(S18:S19)) -> 37700 | R21: =MAX(0,R20-S20) -> 0 | S21: 0 | T21: =MAX(0,Q21-S21) -> 37700 | W21: 0 | X21: 0 | Y21: 0 | Z21: =Z12 -> 0.2 | AA21: 0 | AC21: Investment income | AD21: =Y24+Y34 -> 0
C22: Personal Allowance | D22: =MAX(0,D31-D20) -> 12570 | E22: Personal Allowance | F22: =MAX(0,F31-F20) -> 12570 | I22: Higher Rate | J22: =M13-N22 -> 87440 | K22: =MAX(0,K21-L21) -> 0 | L22: 0 | M22: =MAX(0,J22-L22) -> 87440 | N22: =MIN(M13,MAX(L19-M12,0)) -> 0 | P22: Higher Rate | Q22: =T13-U22 -> 87440 | R22: =MAX(0,R21-S21) -> 0 | S22: 0 | T22: =MAX(0,Q22-S22) -> 87440 | U22: =MIN(T13,MAX(S19-T12,0)) -> 0 | W22: 0 | X22: 0 | Y22: 0 | Z22: =Z13 -> 0.4 | AA22: 0 | AC22: Tax | AD22: =AA15+AA24+AA34 -> 0
I23: Additional Rate | K23: =MAX(0,K22-L22) -> 0 | L23: 0 | M23: NA | P23: Additional Rate | R23: =MAX(0,R22-S22) -> 0 | S23: 0 | T23: NA | W23: 0 | X23: 0 | Y23: 0 | Z23: =Z14 -> 0.45 | AA23: 0 | AC23: Net Income Reinvested | AD23: =MAX(0,AD21-AD22) -> 0
C24: Taxable Income | D24: =D9-D22 -> -12570 | E24: Taxable Income | F24: =F9-F22 -> -12570 | I24: Nil Rate available | J24: =SUM(J18:J20) -> 18570 | P24: Nil Rate available | Q24: =SUM(Q18:Q20) -> 18570 | W24: =SUM(W18:W23) -> 0 | X24: =SUM(X18:X23) -> 0 | Y24: =SUM(Y18:Y23) -> 0 | AA24: =SUM(AA18:AA23) -> 0 | AD24: =AD22/AD21 -> 
C26: Basic Rate Band | D26: ='Parameters_Inc Calcs'!$C$4 -> 37700 | E26: Basic Rate Band | F26: ='Parameters_Inc Calcs'!$C$4 -> 37700
C27: Higher Threshold | D27: ='Parameters_Inc Calcs'!$C$5 -> 50270 | E27: Higher Threshold | F27: ='Parameters_Inc Calcs'!$C$5 -> 50270 | I27: Dividend Income Tax Band Apportionment | P27: Dividend Income Tax Band Apportionment
C28: Higher Rate Band | D28: ='Parameters_Inc Calcs'!$C$7 -> 87440 | E28: Higher Rate Band | F28: ='Parameters_Inc Calcs'!$C$7 -> 87440 | J28: Allowances | K28: Still to tax | L28: Used | M28: Unused | Q28: Allowances | R28: Still to tax | S28: Used | T28: Unused | W28: Before | X28: After | Y28: Amount | Z28: Rate | AA28: Add Tax
C29: Additional Threshold | D29: ='Parameters_Inc Calcs'!$C$8 -> 125140 | E29: Additional Threshold | F29: ='Parameters_Inc Calcs'!$C$8 -> 125140 | I29: Dividend Allowance | J29: =D42 -> 500 | K29: =D11 -> 0 | L29: =MIN(J29,K29) -> 0 | M29: =MAX(0,J29-L29) -> 500 | N29: Higher Rate Adjustment for PSA and SRS Bands | P29: Dividend Allowance | Q29: =$D$42 -> 500 | R29: =F11+F13 -> 0 | S29: =MIN(Q29,R29) -> 0 | T29: =MAX(0,Q29-S29) -> 500 | U29: Higher Rate Adjustment for PSA and SRS Bands | W29: =L29*Z29 -> 0 | X29: =S29*Z29 -> 0 | Y29: =S29-L29 -> 0 | Z29: 0 | AA29: =Y29*Z29 -> 0
I30: Personal Allowance | J30: =M20 -> 12570 | K30: =MAX(0,K29-L29) -> 0 | L30: =MIN(J30,K30) -> 0 | M30: =MAX(0,J30-L30) -> 12570 | P30: Personal Allowance | Q30: =T20 -> 12570 | R30: =MAX(0,R29-S29) -> 0 | S30: =MIN(Q30,R30) -> 0 | T30: =MAX(0,Q30-S30) -> 12570 | W30: =L30*Z30 -> 0 | X30: =S30*Z30 -> 0 | Y30: =S30-L30 -> 0 | Z30: 0 | AA30: =Y30*Z30 -> 0
C31: PA standard | D31: ='Parameters_Inc Calcs'!$C$2 -> 12570 | E31: PA standard | F31: ='Parameters_Inc Calcs'!$C$2 -> 12570 | I31: Basic Rate | J31: =MAX(0,M21-L29) -> 37700 | K31: =MAX(0,K30-L30) -> 0 | L31: =MIN(J31,K31) -> 0 | M31: =MAX(0,J31-L31) -> 37700 | P31: Basic Rate | Q31: =MAX(0,T21-S29) -> 37700 | R31: =MAX(0,R30-S30) -> 0 | S31: =MIN(Q31,R31) -> 0 | T31: =MAX(0,Q31-S31) -> 37700 | W31: =L31*Z31 -> 0 | X31: =S31*Z31 -> 0 | Y31: =S31-L31 -> 0 | Z31: ='Parameters_Inc Calcs'!D4 -> 0.0875 | AA31: =Y31*Z31 -> 0
I32: Higher Rate | J32: =M22-N32 -> 87440 | K32: =MAX(0,K31-L31) -> 0 | L32: =MIN(J32,K32) -> 0 | M32: =MAX(0,J32-L32) -> 87440 | N32: =MIN(M22,MAX(L29-M21,0)) -> 0 | P32: Higher Rate | Q32: =T22-U32 -> 87440 | R32: =MAX(0,R31-S31) -> 0 | S32: =MIN(Q32,R32) -> 0 | T32: =MAX(0,Q32-S32) -> 87440 | U32: =MIN(T22,MAX(S29-T21,0)) -> 0 | W32: =L32*Z32 -> 0 | X32: =S32*Z32 -> 0 | Y32: =S32-L32 -> 0 | Z32: ='Parameters_Inc Calcs'!D5 -> 0.3375 | AA32: =Y32*Z32 -> 0
C33: PSA Basic | D33: ='Parameters_Inc Calcs'!$C$9 -> 1000 | E33: PSA Basic | F33: ='Parameters_Inc Calcs'!$C$9 -> 1000 | I33: Additional Rate | K33: =MAX(0,K32-L32) -> 0 | L33: =MIN(J33,K33) -> 0 | M33: NA | P33: Additional Rate | R33: =MAX(0,R32-S32) -> 0 | S33: =MIN(Q33,R33) -> 0 | T33: NA | W33: =L33*Z33 -> 0 | X33: =S33*Z33 -> 0 | Y33: =S33-L33 -> 0 | Z33: ='Parameters_Inc Calcs'!D8 -> 0.3935 | AA33: =Y33*Z33 -> 0
C34: PSA Higher | D34: ='Parameters_Inc Calcs'!$C$10 -> 500 | E34: PSA Higher | F34: ='Parameters_Inc Calcs'!$C$10 -> 500 | I34: Nil Rate available | J34: =J29+J30 -> 13070 | P34: Nil Rate available | Q34: =Q29+Q30 -> 13070 | W34: =SUM(W29:W33) -> 0 | X34: =SUM(X29:X33) -> 0 | Y34: =SUM(Y29:Y33) -> 0 | AA34: =SUM(AA29:AA33) -> 0 | AC34: External Tax Rate
C35: PSA Add | D35: ='Parameters_Inc Calcs'!$C$11 -> 0 | E35: PSA Add | F35: ='Parameters_Inc Calcs'!$C$11 -> 0
I36: Capital Gains Tax Band Apportionment | P36: Capital Gains Tax Band Apportionment | W36: Before | X36: After | Y36: Amount | Z36: Rate | AA36: Add Tax | AC36: Growth | AD36: =Y24+Y34+Y40 -> 0
C37: Starting Rate for Savings | D37: ='Parameters_Inc Calcs'!C12 -> 5000 | E37: Starting Rate for Savings | F37: ='Parameters_Inc Calcs'!C12 -> 5000 | I37: Annual Exemption | J37: =D43 -> 3000 | K37: 0 | L37: =MIN(J37,K37) -> 0 | M37: =MAX(0,J37-L37) -> 3000 | P37: Annual Exemption | Q37: =D43 -> 3000 | R37: =IF(C3="Yes",C6,F16) -> 0 | S37: =MIN(Q37,R37) -> 0 | T37: =MAX(0,Q37-S37) -> 3000 | W37: =L37*Z37 -> 0 | X37: =S37*Z37 -> 0 | Y37: =S37-L37 -> 0 | Z37: 0 | AA37: =Y37*Z37 -> 0 | AC37: Tax inc CGT | AD37: =AA40+AA34+AA24 -> 0
C38: Available | D38: =MAX(0,MIN(D37,(D22+D37)-D9)) -> 5000 | E38: Available | F38: =MAX(0,MIN(F37,(F22+F37)-F9)) -> 5000 | I38: Basic Rate | J38: =M31 -> 37700 | K38: =MAX(0,K37-L37) -> 0 | L38: =MIN(J38,K38) -> 0 | M38: 37700 | P38: Basic Rate | Q38: =T31 -> 37700 | R38: =MAX(0,R37-S37) -> 0 | S38: =MIN(Q38,R38) -> 0 | T38: =MAX(0,Q38-S38) -> 37700 | W38: =L38*Z38 -> 0 | X38: =S38*Z38 -> 0 | Y38: =S38-L38 -> 0 | Z38: ='Parameters_Inc Calcs'!F4 -> 0.1 | AA38: =Y38*Z38 -> 0 | AC38: Tax Exc CGT | AD38: =AD22 -> 0
I39: Higher Rate | K39: =K38-L38 -> 0 | L39: =MIN(J39,K39) -> 0 | M39: 0 | P39: Higher Rate | R39: =R38-S38 -> 0 | S39: =MIN(Q39,R39) -> 0 | T39: 0 | W39: =L39*Z39 -> 0 | X39: =S39*Z39 -> 0 | Y39: =S39-L39 -> 0 | Z39: ='Parameters_Inc Calcs'!F5 -> 0.2 | AA39: =Y39*Z39 -> 0
C40: PSA | D40: =IF(D14>D29,D35,IF(D14>D27,D34,D33)) -> 1000 | E40: PSA | F40: =IF(F14>F29,F35,IF(F14>F27,F34,F33)) -> 1000 | I40: Nil Rate available | J40: =J37 -> 3000 | P40: Nil Rate available | Q40: =Q37 -> 3000 | W40: =SUM(W37:W39) -> 0 | X40: =SUM(X37:X39) -> 0 | Y40: =SUM(Y37:Y39) -> 0 | AA40: =SUM(AA37:AA39) -> 0 | AC40: Inc CGT rate | AD40: =AD37/AD36 -> 
AC41: Exc CGT rate | AD41: =AD38/AD36 -> 
C42: Div All | D42: ='Parameters_Inc Calcs'!C17 -> 500
C43: CGT All | D43: ='Parameters_Inc Calcs'!D17 -> 3000

Sheet Yr 3 (hidden)
I1: Before | P1: AFTER
B2: Year | C2: 3 | E2: Amber needs amended when new sheet created | I2: Allowances: | P2: Allowances:
B3: Final Year | C3: =IF(C2=Inputs!C5,"Yes","No") -> No | I3: Pers_Allow_Adj | P3: Pers_Allow_Adj
B4: After Final Year | C4: =AND(C2>Inputs!C5) -> TRUE | I4: Tot_Pers_Allow | J4: =D22 -> 12570 | P4: Tot_Pers_Allow | Q4: =F22 -> 12570
B5: Investment | C5: =CGT!I12 -> 0 | I5: Pers_Sav_Allow | J5: =D40 -> 1000 | P5: Pers_Sav_Allow | Q5: =F40 -> 1000
B6: Cum Gain | C6: =CGT!I16 -> 0
B8: Factor | C8: Before | E8: After | I8: Non Savings Income Apportionment | P8: Non Savings Income Apportionment
B9: =1+Inputs!E11 -> 1 | C9: NSND | D9: =IF(C4=TRUE,0,IF(OR($C$3="Yes",$C$4=TRUE),Inputs!L11,'Yr 2'!D9*B9)) -> 0 | E9: Total Income | F9: =IF(C3="Yes",Inputs!L11,D9) -> 0
B10: =1+Inputs!E12 -> 1 | C10: Savings | D10: =IF(C4=TRUE,0,IF(OR($C$3="Yes",$C$4=TRUE),Inputs!L12,'Yr 2'!D10*B10)) -> 0 | E10: Savings | F10: =IF(C3="Yes",Inputs!L12,D10) -> 0 | J10: Allowances | K10: Still to tax | L10: Used | M10: Unused | Q10: Allowances | R10: Still to tax | S10: Used | T10: Unused | W10: Before | X10: After | Y10: Amount | Z10: Rate | AA10: Add Tax
B11: =1+Inputs!E13 -> 1 | C11: Divi | D11: =IF(C4=TRUE,0,IF(OR($C$3="Yes",$C$4=TRUE),Inputs!L13,'Yr 2'!D11*B11)) -> 0 | E11: Divi | F11: =IF(C3="Yes",Inputs!L13,D11) -> 0 | I11: Personal Allowance | J11: =J4 -> 12570 | K11: =D9 -> 0 | L11: =MIN(J11,K11) -> 0 | M11: =MAX(0,J11-L11) -> 12570 | P11: Personal Allowance | Q11: =Q4 -> 12570 | R11: =K11 -> 0 | S11: =MIN(Q11,R11) -> 0 | T11: =MAX(0,Q11-S11) -> 12570 | W11: =L11*Z11 -> 0 | X11: =S11*Z11 -> 0 | Y11: =S11-L11 -> 0 | Z11: 0 | AA11: =Y11*Z11 -> 0
B12: =Inputs!L4 -> 0 | E12: New Savings | F12: =IF(C4=TRUE,0,C5*B12) -> 0 | I12: Basic Rate | J12: =$D$26 -> 37700 | K12: =MAX(0,K11-L11) -> 0 | L12: =MIN(J12,K12) -> 0 | M12: =MAX(0,J12-L12) -> 37700 | P12: Basic Rate | Q12: =$F$26 -> 37700 | R12: =MAX(0,R11-S11) -> 0 | S12: =MIN(Q12,R12) -> 0 | T12: =MAX(0,Q12-S12) -> 37700 | W12: =L12*Z12 -> 0 | X12: =S12*Z12 -> 0 | Y12: =S12-L12 -> 0 | Z12: ='Parameters_Inc Calcs'!E4 -> 0.2 | AA12: =Y12*Z12 -> 0
B13: =Inputs!L5 -> 0 | E13: New Divi | F13: =IF(C4=TRUE,0,C5*B13) -> 0 | I13: Higher Rate | J13: =$D$28 -> 87440 | K13: =MAX(0,K12-L12) -> 0 | L13: =MIN(J13,K13) -> 0 | M13: =MAX(0,J13-L13) -> 87440 | P13: Higher Rate | Q13: =$F$28 -> 87440 | R13: =MAX(0,R12-S12) -> 0 | S13: =MIN(Q13,R13) -> 0 | T13: =MAX(0,Q13-S13) -> 87440 | W13: =L13*Z13 -> 0 | X13: =S13*Z13 -> 0 | Y13: =S13-L13 -> 0 | Z13: ='Parameters_Inc Calcs'!E5 -> 0.4 | AA13: =Y13*Z13 -> 0
C14: ANI | D14: =SUM(D9:D13) -> 0 | E14: ANI | F14: =SUM(F9:F13) -> 0 | I14: Additional Rate | K14: =MAX(0,K13-L13) -> 0 | L14: =K14 -> 0 | M14: NA | P14: Additional Rate | R14: =MAX(0,R13-S13) -> 0 | S14: =R14 -> 0 | T14: NA | W14: =L14*Z14 -> 0 | X14: =S14*Z14 -> 0 | Y14: =S14-L14 -> 0 | Z14: ='Parameters_Inc Calcs'!E8 -> 0.45 | AA14: =Y14*Z14 -> 0
W15: =SUM(W11:W14) -> 0 | X15: =SUM(X11:X14) -> 0 | AA15: =SUM(AA11:AA14) -> 0
E16: New Gain | F16: =CGT!I15 -> 0 | I16: Savings Income Tax Band Apportionment | P16: Savings Income Tax Band Apportionment
J17: Allowances | K17: Still to tax | L17: Used | M17: Unused | Q17: Allowances | R17: Still to tax | S17: Used | T17: Unused | W17: Before | X17: After | Y17: Amount | Z17: Rate | AA17: Add Tax
C18: ANI Limit | D18: ='Parameters_Inc Calcs'!$C$3 -> 100000 | E18: ANI Limit | F18: ='Parameters_Inc Calcs'!$C$3 -> 100000 | I18: Starting Rate | J18: =$D$38 -> 5000 | K18: =D10 -> 0 | L18: =MIN(J18,K18) -> 0 | M18: =MAX(0,J18-L18) -> 5000 | P18: Starting Rate | Q18: =$F$38 -> 5000 | R18: =F10+F12 -> 0 | S18: =MIN(Q18,R18) -> 0 | T18: =MAX(0,Q18-S18) -> 5000 | W18: =L18*Z18 -> 0 | X18: =S18*Z18 -> 0 | Y18: =S18-L18 -> 0 | Z18: 0 | AA18: =Y18*Z18 -> 0
C19: ANI Excess | D19: =MAX(0,D14-D18) -> 0 | E19: ANI Excess | F19: =MAX(0,F14-F18) -> 0 | I19: Personal Savings Allowance | J19: =D40 -> 1000 | K19: =MAX(0,K18-L18) -> 0 | L19: 0 | M19: =MAX(0,J19-L19) -> 1000 | N19: Higher Rate Adjustment for PSA and SRS Bands | P19: Personal Savings Allowance | Q19: =$F$40 -> 1000 | R19: =MAX(0,R18-S18) -> 0 | S19: 0 | T19: =MAX(0,Q19-S19) -> 1000 | U19: Higher Rate Adjustment for PSA and SRS Bands | W19: 0 | X19: 0 | Y19: 0 | Z19: 0 | AA19: 0
C20: PA adjustment | D20: =D19/2 -> 0 | E20: PA adjustment | F20: =F19/2 -> 0 | I20: Personal Allowance | J20: =M11 -> 12570 | K20: =MAX(0,K19-L19) -> 0 | L20: 0 | M20: =MAX(0,J20-L20) -> 12570 | P20: Personal Allowance | Q20: =T11 -> 12570 | R20: =MAX(0,R19-S19) -> 0 | S20: 0 | T20: =MAX(0,Q20-S20) -> 12570 | W20: 0 | X20: 0 | Y20: 0 | Z20: 0 | AA20: 0
I21: Basic Rate | J21: =MAX(0,M12-SUM(L18:L19)) -> 37700 | K21: =MAX(0,K20-L20) -> 0 | L21: 0 | M21: =MAX(0,J21-L21) -> 37700 | P21: Basic Rate | Q21: =MAX(0,T12-SUM(S18:S19)) -> 37700 | R21: =MAX(0,R20-S20) -> 0 | S21: 0 | T21: =MAX(0,Q21-S21) -> 37700 | W21: 0 | X21: 0 | Y21: 0 | Z21: =Z12 -> 0.2 | AA21: 0 | AC21: Investment income | AD21: =Y24+Y34 -> 0
C22: Personal Allowance | D22: =MAX(0,D31-D20) -> 12570 | E22: Personal Allowance | F22: =MAX(0,F31-F20) -> 12570 | I22: Higher Rate | J22: =M13-N22 -> 87440 | K22: =MAX(0,K21-L21) -> 0 | L22: 0 | M22: =MAX(0,J22-L22) -> 87440 | N22: =MIN(M13,MAX(L19-M12,0)) -> 0 | P22: Higher Rate | Q22: =T13-U22 -> 87440 | R22: =MAX(0,R21-S21) -> 0 | S22: 0 | T22: =MAX(0,Q22-S22) -> 87440 | U22: =MIN(T13,MAX(S19-T12,0)) -> 0 | W22: 0 | X22: 0 | Y22: 0 | Z22: =Z13 -> 0.4 | AA22: 0 | AC22: Tax | AD22: =AA15+AA24+AA34 -> 0
I23: Additional Rate | K23: =MAX(0,K22-L22) -> 0 | L23: 0 | M23: NA | P23: Additional Rate | R23: =MAX(0,R22-S22) -> 0 | S23: 0 | T23: NA | W23: 0 | X23: 0 | Y23: 0 | Z23: =Z14 -> 0.45 | AA23: 0 | AC23: Net Income Reinvested | AD23: =MAX(0,AD21-AD22) -> 0
C24: Taxable Income | D24: =D9-D22 -> -12570 | E24: Taxable Income | F24: =F9-F22 -> -12570 | I24: Nil Rate available | J24: =SUM(J18:J20) -> 18570 | P24: Nil Rate available | Q24: =SUM(Q18:Q20) -> 18570 | W24: =SUM(W18:W23) -> 0 | X24: =SUM(X18:X23) -> 0 | Y24: =SUM(Y18:Y23) -> 0 | AA24: =SUM(AA18:AA23) -> 0 | AD24: =AD22/AD21 -> 
C26: Basic Rate Band | D26: ='Parameters_Inc Calcs'!$C$4 -> 37700 | E26: Basic Rate Band | F26: ='Parameters_Inc Calcs'!$C$4 -> 37700
C27: Higher Threshold | D27: ='Parameters_Inc Calcs'!$C$5 -> 50270 | E27: Higher Threshold | F27: ='Parameters_Inc Calcs'!$C$5 -> 50270 | I27: Dividend Income Tax Band Apportionment | P27: Dividend Income Tax Band Apportionment
C28: Higher Rate Band | D28: ='Parameters_Inc Calcs'!$C$7 -> 87440 | E28: Higher Rate Band | F28: ='Parameters_Inc Calcs'!$C$7 -> 87440 | J28: Allowances | K28: Still to tax | L28: Used | M28: Unused | Q28: Allowances | R28: Still to tax | S28: Used | T28: Unused | W28: Before | X28: After | Y28: Amount | Z28: Rate | AA28: Add Tax
C29: Additional Threshold | D29: ='Parameters_Inc Calcs'!$C$8 -> 125140 | E29: Additional Threshold | F29: ='Parameters_Inc Calcs'!$C$8 -> 125140 | I29: Dividend Allowance | J29: =D42 -> 500 | K29: =D11 -> 0 | L29: =MIN(J29,K29) -> 0 | M29: =MAX(0,J29-L29) -> 500 | N29: Higher Rate Adjustment for PSA and SRS Bands | P29: Dividend Allowance | Q29: =$D$42 -> 500 | R29: =F11+F13 -> 0 | S29: =MIN(Q29,R29) -> 0 | T29: =MAX(0,Q29-S29) -> 500 | U29: Higher Rate Adjustment for PSA and SRS Bands | W29: =L29*Z29 -> 0 | X29: =S29*Z29 -> 0 | Y29: =S29-L29 -> 0 | Z29: 0 | AA29: =Y29*Z29 -> 0
I30: Personal Allowance | J30: =M20 -> 12570 | K30: =MAX(0,K29-L29) -> 0 | L30: =MIN(J30,K30) -> 0 | M30: =MAX(0,J30-L30) -> 12570 | P30: Personal Allowance | Q30: =T20 -> 12570 | R30: =MAX(0,R29-S29) -> 0 | S30: =MIN(Q30,R30) -> 0 | T30: =MAX(0,Q30-S30) -> 12570 | W30: =L30*Z30 -> 0 | X30: =S30*Z30 -> 0 | Y30: =S30-L30 -> 0 | Z30: 0 | AA30: =Y30*Z30 -> 0
C31: PA standard | D31: ='Parameters_Inc Calcs'!$C$2 -> 12570 | E31: PA standard | F31: ='Parameters_Inc Calcs'!$C$2 -> 12570 | I31: Basic Rate | J31: =MAX(0,M21-L29) -> 37700 | K31: =MAX(0,K30-L30) -> 0 | L31: =MIN(J31,K31) -> 0 | M31: =MAX(0,J31-L31) -> 37700 | P31: Basic Rate | Q31: =MAX(0,T21-S29) -> 37700 | R31: =MAX(0,R30-S30) -> 0 | S31: =MIN(Q31,R31) -> 0 | T31: =MAX(0,Q31-S31) -> 37700 | W31: =L31*Z31 -> 0 | X31: =S31*Z31 -> 0 | Y31: =S31-L31 -> 0 | Z31: ='Parameters_Inc Calcs'!D4 -> 0.0875 | AA31: =Y31*Z31 -> 0
I32: Higher Rate | J32: =M22-N32 -> 87440 | K32: =MAX(0,K31-L31) -> 0 | L32: =MIN(J32,K32) -> 0 | M32: =MAX(0,J32-L32) -> 87440 | N32: =MIN(M22,MAX(L29-M21,0)) -> 0 | P32: Higher Rate | Q32: =T22-U32 -> 87440 | R32: =MAX(0,R31-S31) -> 0 | S32: =MIN(Q32,R32) -> 0 | T32: =MAX(0,Q32-S32) -> 87440 | U32: =MIN(T22,MAX(S29-T21,0)) -> 0 | W32: =L32*Z32 -> 0 | X32: =S32*Z32 -> 0 | Y32: =S32-L32 -> 0 | Z32: ='Parameters_Inc Calcs'!D5 -> 0.3375 | AA32: =Y32*Z32 -> 0
C33: PSA Basic | D33: ='Parameters_Inc Calcs'!$C$9 -> 1000 | E33: PSA Basic | F33: ='Parameters_Inc Calcs'!$C$9 -> 1000 | I33: Additional Rate | K33: =MAX(0,K32-L32) -> 0 | L33: =MIN(J33,K33) -> 0 | M33: NA | P33: Additional Rate | R33: =MAX(0,R32-S32) -> 0 | S33: =MIN(Q33,R33) -> 0 | T33: NA | W33: =L33*Z33 -> 0 | X33: =S33*Z33 -> 0 | Y33: =S33-L33 -> 0 | Z33: ='Parameters_Inc Calcs'!D8 -> 0.3935 | AA33: =Y33*Z33 -> 0
C34: PSA Higher | D34: ='Parameters_Inc Calcs'!$C$10 -> 500 | E34: PSA Higher | F34: ='Parameters_Inc Calcs'!$C$10 -> 500 | I34: Nil Rate available | J34: =J29+J30 -> 13070 | P34: Nil Rate available | Q34: =Q29+Q30 -> 13070 | W34: =SUM(W29:W33) -> 0 | X34: =SUM(X29:X33) -> 0 | Y34: =SUM(Y29:Y33) -> 0 | AA34: =SUM(AA29:AA33) -> 0 | AC34: External Tax Rate
C35: PSA Add | D35: ='Parameters_Inc Calcs'!$C$11 -> 0 | E35: PSA Add | F35: ='Parameters_Inc Calcs'!$C$11 -> 0
I36: Capital Gains Tax Band Apportionment | P36: Capital Gains Tax Band Apportionment | W36: Before | X36: After | Y36: Amount | Z36: Rate | AA36: Add Tax | AC36: Growth | AD36: =Y24+Y34+Y40 -> 0
C37: Starting Rate for Savings | D37: ='Parameters_Inc Calcs'!C12 -> 5000 | E37: Starting Rate for Savings | F37: ='Parameters_Inc Calcs'!C12 -> 5000 | I37: Annual Exemption | J37: =D43 -> 3000 | K37: 0 | L37: =MIN(J37,K37) -> 0 | M37: =MAX(0,J37-L37) -> 3000 | P37: Annual Exemption | Q37: =D43 -> 3000 | R37: =IF(C3="Yes",C6,F16) -> 0 | S37: =MIN(Q37,R37) -> 0 | T37: =MAX(0,Q37-S37) -> 3000 | W37: =L37*Z37 -> 0 | X37: =S37*Z37 -> 0 | Y37: =S37-L37 -> 0 | Z37: 0 | AA37: =Y37*Z37 -> 0 | AC37: Tax inc CGT | AD37: =AA40+AA34+AA24 -> 0
C38: Available | D38: =MAX(0,MIN(D37,(D22+D37)-D9)) -> 5000 | E38: Available | F38: =MAX(0,MIN(F37,(F22+F37)-F9)) -> 5000 | I38: Basic Rate | J38: =M31 -> 37700 | K38: =MAX(0,K37-L37) -> 0 | L38: =MIN(J38,K38) -> 0 | M38: 37700 | P38: Basic Rate | Q38: =T31 -> 37700 | R38: =MAX(0,R37-S37) -> 0 | S38: =MIN(Q38,R38) -> 0 | T38: =MAX(0,Q38-S38) -> 37700 | W38: =L38*Z38 -> 0 | X38: =S38*Z38 -> 0 | Y38: =S38-L38 -> 0 | Z38: ='Parameters_Inc Calcs'!F4 -> 0.1 | AA38: =Y38*Z38 -> 0 | AC38: Tax Exc CGT | AD38: =AD22 -> 0
I39: Higher Rate | K39: =K38-L38 -> 0 | L39: =MIN(J39,K39) -> 0 | M39: 0 | P39: Higher Rate | R39: =R38-S38 -> 0 | S39: =MIN(Q39,R39) -> 0 | T39: 0 | W39: =L39*Z39 -> 0 | X39: =S39*Z39 -> 0 | Y39: =S39-L39 -> 0 | Z39: ='Parameters_Inc Calcs'!F5 -> 0.2 | AA39: =Y39*Z39 -> 0
C40: PSA | D40: =IF(D14>D29,D35,IF(D14>D27,D34,D33)) -> 1000 | E40: PSA | F40: =IF(F14>F29,F35,IF(F14>F27,F34,F33)) -> 1000 | I40: Nil Rate available | J40: =J37 -> 3000 | P40: Nil Rate available | Q40: =Q37 -> 3000 | W40: =SUM(W37:W39) -> 0 | X40: =SUM(X37:X39) -> 0 | Y40: =SUM(Y37:Y39) -> 0 | AA40: =SUM(AA37:AA39) -> 0 | AC40: Inc CGT rate | AD40: =AD37/AD36 -> 
AC41: Exc CGT rate | AD41: =AD38/AD36 -> 
C42: Div All | D42: ='Parameters_Inc Calcs'!C17 -> 500
C43: CGT All | D43: ='Parameters_Inc Calcs'!D17 -> 3000

Sheet Yr 4 (hidden)
I1: Before | P1: AFTER
B2: Year | C2: 4 | E2: Amber needs amended when new sheet created | I2: Allowances: | P2: Allowances:
B3: Final Year | C3: =IF(C2=Inputs!C5,"Yes","No") -> No | I3: Pers_Allow_Adj | P3: Pers_Allow_Adj
B4: After Final Year | C4: =AND(C2>Inputs!C5) -> TRUE | I4: Tot_Pers_Allow | J4: =D22 -> 12570 | P4: Tot_Pers_Allow | Q4: =F22 -> 12570
B5: Investment | C5: =CGT!J12 -> 0 | I5: Pers_Sav_Allow | J5: =D40 -> 1000 | P5: Pers_Sav_Allow | Q5: =F40 -> 1000
B6: Cum Gain | C6: =CGT!J16 -> 0
B8: Factor | C8: Before | E8: After | I8: Non Savings Income Apportionment | P8: Non Savings Income Apportionment
B9: =1+Inputs!E11 -> 1 | C9: NSND | D9: =IF(C4=TRUE,0,IF(OR($C$3="Yes",$C$4=TRUE),Inputs!L11,'Yr 3'!D9*B9)) -> 0 | E9: Total Income | F9: =IF(C3="Yes",Inputs!L11,D9) -> 0
B10: =1+Inputs!E12 -> 1 | C10: Savings | D10: =IF(C4=TRUE,0,IF(OR($C$3="Yes",$C$4=TRUE),Inputs!L12,'Yr 3'!D10*B10)) -> 0 | E10: Savings | F10: =IF(C3="Yes",Inputs!L12,D10) -> 0 | J10: Allowances | K10: Still to tax | L10: Used | M10: Unused | Q10: Allowances | R10: Still to tax | S10: Used | T10: Unused | W10: Before | X10: After | Y10: Amount | Z10: Rate | AA10: Add Tax
B11: =1+Inputs!E13 -> 1 | C11: Divi | D11: =IF(C4=TRUE,0,IF(OR($C$3="Yes",$C$4=TRUE),Inputs!L13,'Yr 3'!D11*B11)) -> 0 | E11: Divi | F11: =IF(C3="Yes",Inputs!L13,D11) -> 0 | I11: Personal Allowance | J11: =J4 -> 12570 | K11: =D9 -> 0 | L11: =MIN(J11,K11) -> 0 | M11: =MAX(0,J11-L11) -> 12570 | P11: Personal Allowance | Q11: =Q4 -> 12570 | R11: =K11 -> 0 | S11: =MIN(Q11,R11) -> 0 | T11: =MAX(0,Q11-S11) -> 12570 | W11: =L11*Z11 -> 0 | X11: =S11*Z11 -> 0 | Y11: =S11-L11 -> 0 | Z11: 0 | AA11: =Y11*Z11 -> 0
B12: =Inputs!L4 -> 0 | E12: New Savings | F12: =IF(C4=TRUE,0,C5*B12) -> 0 | I12: Basic Rate | J12: =$D$26 -> 37700 | K12: =MAX(0,K11-L11) -> 0 | L12: =MIN(J12,K12) -> 0 | M12: =MAX(0,J12-L12) -> 37700 | P12: Basic Rate | Q12: =$F$26 -> 37700 | R12: =MAX(0,R11-S11) -> 0 | S12: =MIN(Q12,R12) -> 0 | T12: =MAX(0,Q12-S12) -> 37700 | W12: =L12*Z12 -> 0 | X12: =S12*Z12 -> 0 | Y12: =S12-L12 -> 0 | Z12: ='Parameters_Inc Calcs'!E4 -> 0.2 | AA12: =Y12*Z12 -> 0
B13: =Inputs!L5 -> 0 | E13: New Divi | F13: =IF(C4=TRUE,0,C5*B13) -> 0 | I13: Higher Rate | J13: =$D$28 -> 87440 | K13: =MAX(0,K12-L12) -> 0 | L13: =MIN(J13,K13) -> 0 | M13: =MAX(0,J13-L13) -> 87440 | P13: Higher Rate | Q13: =$F$28 -> 87440 | R13: =MAX(0,R12-S12) -> 0 | S13: =MIN(Q13,R13) -> 0 | T13: =MAX(0,Q13-S13) -> 87440 | W13: =L13*Z13 -> 0 | X13: =S13*Z13 -> 0 | Y13: =S13-L13 -> 0 | Z13: ='Parameters_Inc Calcs'!E5 -> 0.4 | AA13: =Y13*Z13 -> 0
C14: ANI | D14: =SUM(D9:D13) -> 0 | E14: ANI | F14: =SUM(F9:F13) -> 0 | I14: Additional Rate | K14: =MAX(0,K13-L13) -> 0 | L14: =K14 -> 0 | M14: NA | P14: Additional Rate | R14: =MAX(0,R13-S13) -> 0 | S14: =R14 -> 0 | T14: NA | W14: =L14*Z14 -> 0 | X14: =S14*Z14 -> 0 | Y14: =S14-L14 -> 0 | Z14: ='Parameters_Inc Calcs'!E8 -> 0.45 | AA14: =Y14*Z14 -> 0
W15: =SUM(W11:W14) -> 0 | X15: =SUM(X11:X14) -> 0 | AA15: =SUM(AA11:AA14) -> 0
E16: New Gain | F16: =CGT!J15 -> 0 | I16: Savings Income Tax Band Apportionment | P16: Savings Income Tax Band Apportionment
J17: Allowances | K17: Still to tax | L17: Used | M17: Unused | Q17: Allowances | R17: Still to tax | S17: Used | T17: Unused | W17: Before | X17: After | Y17: Amount | Z17: Rate | AA17: Add Tax
C18: ANI Limit | D18: ='Parameters_Inc Calcs'!$C$3 -> 100000 | E18: ANI Limit | F18: ='Parameters_Inc Calcs'!$C$3 -> 100000 | I18: Starting Rate | J18: =$D$38 -> 5000 | K18: =D10 -> 0 | L18: =MIN(J18,K18) -> 0 | M18: =MAX(0,J18-L18) -> 5000 | P18: Starting Rate | Q18: =$F$38 -> 5000 | R18: =F10+F12 -> 0 | S18: =MIN(Q18,R18) -> 0 | T18: =MAX(0,Q18-S18) -> 5000 | W18: =L18*Z18 -> 0 | X18: =S18*Z18 -> 0 | Y18: =S18-L18 -> 0 | Z18: 0 | AA18: =Y18*Z18 -> 0
C19: ANI Excess | D19: =MAX(0,D14-D18) -> 0 | E19: ANI Excess | F19: =MAX(0,F14-F18) -> 0 | I19: Personal Savings Allowance | J19: =D40 -> 1000 | K19: =MAX(0,K18-L18) -> 0 | L19: 0 | M19: =MAX(0,J19-L19) -> 1000 | N19: Higher Rate Adjustment for PSA and SRS Bands | P19: Personal Savings Allowance | Q19: =$F$40 -> 1000 | R19: =MAX(0,R18-S18) -> 0 | S19: 0 | T19: =MAX(0,Q19-S19) -> 1000 | U19: Higher Rate Adjustment for PSA and SRS Bands | W19: 0 | X19: 0 | Y19: 0 | Z19: 0 | AA19: 0
C20: PA adjustment | D20: =D19/2 -> 0 | E20: PA adjustment | F20: =F19/2 -> 0 | I20: Personal Allowance | J20: =M11 -> 12570 | K20: =MAX(0,K19-L19) -> 0 | L20: 0 | M20: =MAX(0,J20-L20) -> 12570 | P20: Personal Allowance | Q20: =T11 -> 12570 | R20: =MAX(0,R19-S19) -> 0 | S20: 0 | T20: =MAX(0,Q20-S20) -> 12570 | W20: 0 | X20: 0 | Y20: 0 | Z20: 0 | AA20: 0
I21: Basic Rate | J21: =MAX(0,M12-SUM(L18:L19)) -> 37700 | K21: =MAX(0,K20-L20) -> 0 | L21: 0 | M21: =MAX(0,J21-L21) -> 37700 | P21: Basic Rate | Q21: =MAX(0,T12-SUM(S18:S19)) -> 37700 | R21: =MAX(0,R20-S20) -> 0 | S21: 0 | T21: =MAX(0,Q21-S21) -> 37700 | W21: 0 | X21: 0 | Y21: 0 | Z21: =Z12 -> 0.2 | AA21: 0 | AC21: Investment income | AD21: =Y24+Y34 -> 0
C22: Personal Allowance | D22: =MAX(0,D31-D20) -> 12570 | E22: Personal Allowance | F22: =MAX(0,F31-F20) -> 12570 | I22: Higher Rate | J22: =M13-N22 -> 87440 | K22: =MAX(0,K21-L21) -> 0 | L22: 0 | M22: =MAX(0,J22-L22) -> 87440 | N22: =MIN(M13,MAX(L19-M12,0)) -> 0 | P22: Higher Rate | Q22: =T13-U22 -> 87440 | R22: =MAX(0,R21-S21) -> 0 | S22: 0 | T22: =MAX(0,Q22-S22) -> 87440 | U22: =MIN(T13,MAX(S19-T12,0)) -> 0 | W22: 0 | X22: 0 | Y22: 0 | Z22: =Z13 -> 0.4 | AA22: 0 | AC22: Tax | AD22: =AA15+AA24+AA34 -> 0
I23: Additional Rate | K23: =MAX(0,K22-L22) -> 0 | L23: 0 | M23: NA | P23: Additional Rate | R23: =MAX(0,R22-S22) -> 0 | S23: 0 | T23: NA | W23: 0 | X23: 0 | Y23: 0 | Z23: =Z14 -> 0.45 | AA23: 0 | AC23: Net Income Reinvested | AD23: =MAX(0,AD21-AD22) -> 0
C24: Taxable Income | D24: =D9-D22 -> -12570 | E24: Taxable Income | F24: =F9-F22 -> -12570 | I24: Nil Rate available | J24: =SUM(J18:J20) -> 18570 | P24: Nil Rate available | Q24: =SUM(Q18:Q20) -> 18570 | W24: =SUM(W18:W23) -> 0 | X24: =SUM(X18:X23) -> 0 | Y24: =SUM(Y18:Y23) -> 0 | AA24: =SUM(AA18:AA23) -> 0 | AD24: =AD22/AD21 -> 
C26: Basic Rate Band | D26: ='Parameters_Inc Calcs'!$C$4 -> 37700 | E26: Basic Rate Band | F26: ='Parameters_Inc Calcs'!$C$4 -> 37700
C27: Higher Threshold | D27: ='Parameters_Inc Calcs'!$C$5 -> 50270 | E27: Higher Threshold | F27: ='Parameters_Inc Calcs'!$C$5 -> 50270 | I27: Dividend Income Tax Band Apportionment | P27: Dividend Income Tax Band Apportionment
C28: Higher Rate Band | D28: ='Parameters_Inc Calcs'!$C$7 -> 87440 | E28: Higher Rate Band | F28: ='Parameters_Inc Calcs'!$C$7 -> 87440 | J28: Allowances | K28: Still to tax | L28: Used | M28: Unused | Q28: Allowances | R28: Still to tax | S28: Used | T28: Unused | W28: Before | X28: After | Y28: Amount | Z28: Rate | AA28: Add Tax
C29: Additional Threshold | D29: ='Parameters_Inc Calcs'!$C$8 -> 125140 | E29: Additional Threshold | F29: ='Parameters_Inc Calcs'!$C$8 -> 125140 | I29: Dividend Allowance | J29: =D42 -> 500 | K29: =D11 -> 0 | L29: =MIN(J29,K29) -> 0 | M29: =MAX(0,J29-L29) -> 500 | N29: Higher Rate Adjustment for PSA and SRS Bands | P29: Dividend Allowance | Q29: =$D$42 -> 500 | R29: =F11+F13 -> 0 | S29: =MIN(Q29,R29) -> 0 | T29: =MAX(0,Q29-S29) -> 500 | U29: Higher Rate Adjustment for PSA and SRS Bands | W29: =L29*Z29 -> 0 | X29: =S29*Z29 -> 0 | Y29: =S29-L29 -> 0 | Z29: 0 | AA29: =Y29*Z29 -> 0
I30: Personal Allowance | J30: =M20 -> 12570 | K30: =MAX(0,K29-L29) -> 0 | L30: =MIN(J30,K30) -> 0 | M30: =MAX(0,J30-L30) -> 12570 | P30: Personal Allowance | Q30: =T20 -> 12570 | R30: =MAX(0,R29-S29) -> 0 | S30: =MIN(Q30,R30) -> 0 | T30: =MAX(0,Q30-S30) -> 12570 | W30: =L30*Z30 -> 0 | X30: =S30*Z30 -> 0 | Y30: =S30-L30 -> 0 | Z30: 0 | AA30: =Y30*Z30 -> 0
C31: PA standard | D31: ='Parameters_Inc Calcs'!$C$2 -> 12570 | E31: PA standard | F31: ='Parameters_Inc Calcs'!$C$2 -> 12570 | I31: Basic Rate | J31: =MAX(0,M21-L29) -> 37700 | K31: =MAX(0,K30-L30) -> 0 | L31: =MIN(J31,K31) -> 0 | M31: =MAX(0,J31-L31) -> 37700 | P31: Basic Rate | Q31: =MAX(0,T21-S29) -> 37700 | R31: =MAX(0,R30-S30) -> 0 | S31: =MIN(Q31,R31) -> 0 | T31: =MAX(0,Q31-S31) -> 37700 | W31: =L31*Z31 -> 0 | X31: =S31*Z31 -> 0 | Y31: =S31-L31 -> 0 | Z31: ='Parameters_Inc Calcs'!D4 -> 0.0875 | AA31: =Y31*Z31 -> 0
I32: Higher Rate | J32: =M22-N32 -> 87440 | K32: =MAX(0,K31-L31) -> 0 | L32: =MIN(J32,K32) -> 0 | M32: =MAX(0,J32-L32) -> 87440 | N32: =MIN(M22,MAX(L29-M21,0)) -> 0 | P32: Higher Rate | Q32: =T22-U32 -> 87440 | R32: =MAX(0,R31-S31) -> 0 | S32: =MIN(Q32,R32) -> 0 | T32: =MAX(0,Q32-S32) -> 87440 | U32: =MIN(T22,MAX(S29-T21,0)) -> 0 | W32: =L32*Z32 -> 0 | X32: =S32*Z32 -> 0 | Y32: =S32-L32 -> 0 | Z32: ='Parameters_Inc Calcs'!D5 -> 0.3375 | AA32: =Y32*Z32 -> 0
C33: PSA Basic | D33: ='Parameters_Inc Calcs'!$C$9 -> 1000 | E33: PSA Basic | F33: ='Parameters_Inc Calcs'!$C$9 -> 1000 | I33: Additional Rate | K33: =MAX(0,K32-L32) -> 0 | L33: =MIN(J33,K33) -> 0 | M33: NA | P33: Additional Rate | R33: =MAX(0,R32-S32) -> 0 | S33: =MIN(Q33,R33) -> 0 | T33: NA | W33: =L33*Z33 -> 0 | X33: =S33*Z33 -> 0 | Y33: =S33-L33 -> 0 | Z33: ='Parameters_Inc Calcs'!D8 -> 0.3935 | AA33: =Y33*Z33 -> 0
C34: PSA Higher | D34: ='Parameters_Inc Calcs'!$C$10 -> 500 | E34: PSA Higher | F34: ='Parameters_Inc Calcs'!$C$10 -> 500 | I34: Nil Rate available | J34: =J29+J30 -> 13070 | P34: Nil Rate available | Q34: =Q29+Q30 -> 13070 | W34: =SUM(W29:W33) -> 0 | X34: =SUM(X29:X33) -> 0 | Y34: =SUM(Y29:Y33) -> 0 | AA34: =SUM(AA29:AA33) -> 0 | AC34: External Tax Rate
C35: PSA Add | D35: ='Parameters_Inc Calcs'!$C$11 -> 0 | E35: PSA Add | F35: ='Parameters_Inc Calcs'!$C$11 -> 0
I36: Capital Gains Tax Band Apportionment | P36: Capital Gains Tax Band Apportionment | W36: Before | X36: After | Y36: Amount | Z36: Rate | AA36: Add Tax | AC36: Growth | AD36: =Y24+Y34+Y40 -> 0
C37: Starting Rate for Savings | D37: ='Parameters_Inc Calcs'!C12 -> 5000 | E37: Starting Rate for Savings | F37: ='Parameters_Inc Calcs'!C12 -> 5000 | I37: Annual Exemption | J37: =D43 -> 3000 | K37: 0 | L37: =MIN(J37,K37) -> 0 | M37: =MAX(0,J37-L37) -> 3000 | P37: Annual Exemption | Q37: =D43 -> 3000 | R37: =IF(C3="Yes",C6,F16) -> 0 | S37: =MIN(Q37,R37) -> 0 | T37: =MAX(0,Q37-S37) -> 3000 | W37: =L37*Z37 -> 0 | X37: =S37*Z37 -> 0 | Y37: =S37-L37 -> 0 | Z37: 0 | AA37: =Y37*Z37 -> 0 | AC37: Tax inc CGT | AD37: =AA40+AA34+AA24 -> 0
C38: Available | D38: =MAX(0,MIN(D37,(D22+D37)-D9)) -> 5000 | E38: Available | F38: =MAX(0,MIN(F37,(F22+F37)-F9)) -> 5000 | I38: Basic Rate | J38: =M31 -> 37700 | K38: =MAX(0,K37-L37) -> 0 | L38: =MIN(J38,K38) -> 0 | M38: 37700 | P38: Basic Rate | Q38: =T31 -> 37700 | R38: =MAX(0,R37-S37) -> 0 | S38: =MIN(Q38,R38) -> 0 | T38: =MAX(0,Q38-S38) -> 37700 | W38: =L38*Z38 -> 0 | X38: =S38*Z38 -> 0 | Y38: =S38-L38 -> 0 | Z38: ='Parameters_Inc Calcs'!F4 -> 0.1 | AA38: =Y38*Z38 -> 0 | AC38: Tax Exc CGT | AD38: =AD22 -> 0
I39: Higher Rate | K39: =K38-L38 -> 0 | L39: =MIN(J39,K39) -> 0 | M39: 0 | P39: Higher Rate | R39: =R38-S38 -> 0 | S39: =MIN(Q39,R39) -> 0 | T39: 0 | W39: =L39*Z39 -> 0 | X39: =S39*Z39 -> 0 | Y39: =S39-L39 -> 0 | Z39: ='Parameters_Inc Calcs'!F5 -> 0.2 | AA39: =Y39*Z39 -> 0
C40: PSA | D40: =IF(D14>D29,D35,IF(D14>D27,D34,D33)) -> 1000 | E40: PSA | F40: =IF(F14>F29,F35,IF(F14>F27,F34,F33)) -> 1000 | I40: Nil Rate available | J40: =J37 -> 3000 | P40: Nil Rate available | Q40: =Q37 -> 3000 | W40: =SUM(W37:W39) -> 0 | X40: =SUM(X37:X39) -> 0 | Y40: =SUM(Y37:Y39) -> 0 | AA40: =SUM(AA37:AA39) -> 0 | AC40: Inc CGT rate | AD40: =AD37/AD36 -> 
AC41: Exc CGT rate | AD41: =AD38/AD36 -> 
C42: Div All | D42: ='Parameters_Inc Calcs'!C17 -> 500
C43: CGT All | D43: ='Parameters_Inc Calcs'!D17 -> 3000

Sheet Yr 5 (hidden)
I1: Before | P1: AFTER
B2: Year | C2: 5 | E2: Amber needs amended when new sheet created | I2: Allowances: | P2: Allowances:
B3: Final Year | C3: =IF(C2=Inputs!C5,"Yes","No") -> No | I3: Pers_Allow_Adj | P3: Pers_Allow_Adj
B4: After Final Year | C4: =AND(C2>Inputs!C5) -> TRUE | I4: Tot_Pers_Allow | J4: =D22 -> 12570 | P4: Tot_Pers_Allow | Q4: =F22 -> 12570
B5: Investment | C5: =CGT!K12 -> 0 | I5: Pers_Sav_Allow | J5: =D40 -> 1000 | P5: Pers_Sav_Allow | Q5: =F40 -> 1000
B6: Cum Gain | C6: =CGT!K16 -> 0
B8: Factor | C8: Before | E8: After | I8: Non Savings Income Apportionment | P8: Non Savings Income Apportionment
B9: =1+Inputs!E11 -> 1 | C9: NSND | D9: =IF(C4=TRUE,0,IF(OR($C$3="Yes",$C$4=TRUE),Inputs!L11,'Yr 4'!D9*B9)) -> 0 | E9: Total Income | F9: =IF(C3="Yes",Inputs!L11,D9) -> 0
B10: =1+Inputs!E12 -> 1 | C10: Savings | D10: =IF(C4=TRUE,0,IF(OR($C$3="Yes",$C$4=TRUE),Inputs!L12,'Yr 4'!D10*B10)) -> 0 | E10: Savings | F10: =IF(C3="Yes",Inputs!L12,D10) -> 0 | J10: Allowances | K10: Still to tax | L10: Used | M10: Unused | Q10: Allowances | R10: Still to tax | S10: Used | T10: Unused | W10: Before | X10: After | Y10: Amount | Z10: Rate | AA10: Add Tax
B11: =1+Inputs!E13 -> 1 | C11: Divi | D11: =IF(C4=TRUE,0,IF(OR($C$3="Yes",$C$4=TRUE),Inputs!L13,'Yr 4'!D11*B11)) -> 0 | E11: Divi | F11: =IF(C3="Yes",Inputs!L13,D11) -> 0 | I11: Personal Allowance | J11: =J4 -> 12570 | K11: =D9 -> 0 | L11: =MIN(J11,K11) -> 0 | M11: =MAX(0,J11-L11) -> 12570 | P11: Personal Allowance | Q11: =Q4 -> 12570 | R11: =K11 -> 0 | S11: =MIN(Q11,R11) -> 0 | T11: =MAX(0,Q11-S11) -> 12570 | W11: =L11*Z11 -> 0 | X11: =S11*Z11 -> 0 | Y11: =S11-L11 -> 0 | Z11: 0 | AA11: =Y11*Z11 -> 0
B12: =Inputs!L4 -> 0 | E12: New Savings | F12: =IF(C4=TRUE,0,C5*B12) -> 0 | I12: Basic Rate | J12: =$D$26 -> 37700 | K12: =MAX(0,K11-L11) -> 0 | L12: =MIN(J12,K12) -> 0 | M12: =MAX(0,J12-L12) -> 37700 | P12: Basic Rate | Q12: =$F$26 -> 37700 | R12: =MAX(0,R11-S11) -> 0 | S12: =MIN(Q12,R12) -> 0 | T12: =MAX(0,Q12-S12) -> 37700 | W12: =L12*Z12 -> 0 | X12: =S12*Z12 -> 0 | Y12: =S12-L12 -> 0 | Z12: ='Parameters_Inc Calcs'!E4 -> 0.2 | AA12: =Y12*Z12 -> 0
B13: =Inputs!L5 -> 0 | E13: New Divi | F13: =IF(C4=TRUE,0,C5*B13) -> 0 | I13: Higher Rate | J13: =$D$28 -> 87440 | K13: =MAX(0,K12-L12) -> 0 | L13: =MIN(J13,K13) -> 0 | M13: =MAX(0,J13-L13) -> 87440 | P13: Higher Rate | Q13: =$F$28 -> 87440 | R13: =MAX(0,R12-S12) -> 0 | S13: =MIN(Q13,R13) -> 0 | T13: =MAX(0,Q13-S13) -> 87440 | W13: =L13*Z13 -> 0 | X13: =S13*Z13 -> 0 | Y13: =S13-L13 -> 0 | Z13: ='Parameters_Inc Calcs'!E5 -> 0.4 | AA13: =Y13*Z13 -> 0
C14: ANI | D14: =SUM(D9:D13) -> 0 | E14: ANI | F14: =SUM(F9:F13) -> 0 | I14: Additional Rate | K14: =MAX(0,K13-L13) -> 0 | L14: =K14 -> 0 | M14: NA | P14: Additional Rate | R14: =MAX(0,R13-S13) -> 0 | S14: =R14 -> 0 | T14: NA | W14: =L14*Z14 -> 0 | X14: =S14*Z14 -> 0 | Y14: =S14-L14 -> 0 | Z14: ='Parameters_Inc Calcs'!E8 -> 0.45 | AA14: =Y14*Z14 -> 0
W15: =SUM(W11:W14) -> 0 | X15: =SUM(X11:X14) -> 0 | AA15: =SUM(AA11:AA14) -> 0
E16: New Gain | F16: =CGT!K15 -> 0 | I16: Savings Income Tax Band Apportionment | P16: Savings Income Tax Band Apportionment
J17: Allowances | K17: Still to tax | L17: Used | M17: Unused | Q17: Allowances | R17: Still to tax | S17: Used | T17: Unused | W17: Before | X17: After | Y17: Amount | Z17: Rate | AA17: Add Tax
C18: ANI Limit | D18: ='Parameters_Inc Calcs'!$C$3 -> 100000 | E18: ANI Limit | F18: ='Parameters_Inc Calcs'!$C$3 -> 100000 | I18: Starting Rate | J18: =$D$38 -> 5000 | K18: =D10 -> 0 | L18: =MIN(J18,K18) -> 0 | M18: =MAX(0,J18-L18) -> 5000 | P18: Starting Rate | Q18: =$F$38 -> 5000 | R18: =F10+F12 -> 0 | S18: =MIN(Q18,R18) -> 0 | T18: =MAX(0,Q18-S18) -> 5000 | W18: =L18*Z18 -> 0 | X18: =S18*Z18 -> 0 | Y18: =S18-L18 -> 0 | Z18: 0 | AA18: =Y18*Z18 -> 0
C19: ANI Excess | D19: =MAX(0,D14-D18) -> 0 | E19: ANI Excess | F19: =MAX(0,F14-F18) -> 0 | I19: Personal Savings Allowance | J19: =D40 -> 1000 | K19: =MAX(0,K18-L18) -> 0 | L19: 0 | M19: =MAX(0,J19-L19) -> 1000 | N19: Higher Rate Adjustment for PSA and SRS Bands | P19: Personal Savings Allowance | Q19: =$F$40 -> 1000 | R19: =MAX(0,R18-S18) -> 0 | S19: 0 | T19: =MAX(0,Q19-S19) -> 1000 | U19: Higher Rate Adjustment for PSA and SRS Bands | W19: 0 | X19: 0 | Y19: 0 | Z19: 0 | AA19: 0
C20: PA adjustment | D20: =D19/2 -> 0 | E20: PA adjustment | F20: =F19/2 -> 0 | I20: Personal Allowance | J20: =M11 -> 12570 | K20: =MAX(0,K19-L19) -> 0 | L20: 0 | M20: =MAX(0,J20-L20) -> 12570 | P20: Personal Allowance | Q20: =T11 -> 12570 | R20: =MAX(0,R19-S19) -> 0 | S20: 0 | T20: =MAX(0,Q20-S20) -> 12570 | W20: 0 | X20: 0 | Y20: 0 | Z20: 0 | AA20: 0
I21: Basic Rate | J21: =MAX(0,M12-SUM(L18:L19)) -> 37700 | K21: =MAX(0,K20-L20) -> 0 | L21: 0 | M21: =MAX(0,J21-L21) -> 37700 | P21: Basic Rate | Q21: =MAX(0,T12-SUM(S18:S19)) -> 37700 | R21: =MAX(0,R20-S20) -> 0 | S21: 0 | T21: =MAX(0,Q21-S21) -> 37700 | W21: 0 | X21: 0 | Y21: 0 | Z21: =Z12 -> 0.2 | AA21: 0 | AC21: Investment income | AD21: =Y24+Y34 -> 0
C22: Personal Allowance | D22: =MAX(0,D31-D20) -> 12570 | E22: Personal Allowance | F22: =MAX(0,F31-F20) -> 12570 | I22: Higher Rate | J22: =M13-N22 -> 87440 | K22: =MAX(0,K21-L21) -> 0 | L22: 0 | M22: =MAX(0,J22-L22) -> 87440 | N22: =MIN(M13,MAX(L19-M12,0)) -> 0 | P22: Higher Rate | Q22: =T13-U22 -> 87440 | R22: =MAX(0,R21-S21) -> 0 | S22: 0 | T22: =MAX(0,Q22-S22) -> 87440 | U22: =MIN(T13,MAX(S19-T12,0)) -> 0 | W22: 0 | X22: =S22*Z22 -> 0 | Y22: 0 | Z22: =Z13 -> 0.4 | AA22: 0 | AC22: Tax | AD22: =AA15+AA24+AA34 -> 0
I23: Additional Rate | K23: =MAX(0,K22-L22) -> 0 | L23: 0 | M23: NA | P23: Additional Rate | R23: =MAX(0,R22-S22) -> 0 | S23: 0 | T23: NA | W23: 0 | X23: 0 | Y23: 0 | Z23: =Z14 -> 0.45 | AA23: 0 | AC23: Net Income Reinvested | AD23: =MAX(0,AD21-AD22) -> 0
C24: Taxable Income | D24: =D9-D22 -> -12570 | E24: Taxable Income | F24: =F9-F22 -> -12570 | I24: Nil Rate available | J24: =SUM(J18:J20) -> 18570 | P24: Nil Rate available | Q24: =SUM(Q18:Q20) -> 18570 | W24: =SUM(W18:W23) -> 0 | X24: =SUM(X18:X23) -> 0 | Y24: =SUM(Y18:Y23) -> 0 | AA24: =SUM(AA18:AA23) -> 0 | AD24: =AD22/AD21 -> 
C26: Basic Rate Band | D26: ='Parameters_Inc Calcs'!$C$4 -> 37700 | E26: Basic Rate Band | F26: ='Parameters_Inc Calcs'!$C$4 -> 37700
C27: Higher Threshold | D27: ='Parameters_Inc Calcs'!$C$5 -> 50270 | E27: Higher Threshold | F27: ='Parameters_Inc Calcs'!$C$5 -> 50270 | I27: Dividend Income Tax Band Apportionment | P27: Dividend Income Tax Band Apportionment
C28: Higher Rate Band | D28: ='Parameters_Inc Calcs'!$C$7 -> 87440 | E28: Higher Rate Band | F28: ='Parameters_Inc Calcs'!$C$7 -> 87440 | J28: Allowances | K28: Still to tax | L28: Used | M28: Unused | Q28: Allowances | R28: Still to tax | S28: Used | T28: Unused | W28: Before | X28: After | Y28: Amount | Z28: Rate | AA28: Add Tax
C29: Additional Threshold | D29: ='Parameters_Inc Calcs'!$C$8 -> 125140 | E29: Additional Threshold | F29: ='Parameters_Inc Calcs'!$C$8 -> 125140 | I29: Dividend Allowance | J29: =D42 -> 500 | K29: =D11 -> 0 | L29: =MIN(J29,K29) -> 0 | M29: =MAX(0,J29-L29) -> 500 | N29: Higher Rate Adjustment for PSA and SRS Bands | P29: Dividend Allowance | Q29: =$D$42 -> 500 | R29: =F11+F13 -> 0 | S29: =MIN(Q29,R29) -> 0 | T29: =MAX(0,Q29-S29) -> 500 | U29: Higher Rate Adjustment for PSA and SRS Bands | W29: =L29*Z29 -> 0 | X29: =S29*Z29 -> 0 | Y29: =S29-L29 -> 0 | Z29: 0 | AA29: =Y29*Z29 -> 0
I30: Personal Allowance | J30: =M20 -> 12570 | K30: =MAX(0,K29-L29) -> 0 | L30: =MIN(J30,K30) -> 0 | M30: =MAX(0,J30-L30) -> 12570 | P30: Personal Allowance | Q30: =T20 -> 12570 | R30: =MAX(0,R29-S29) -> 0 | S30: =MIN(Q30,R30) -> 0 | T30: =MAX(0,Q30-S30) -> 12570 | W30: =L30*Z30 -> 0 | X30: =S30*Z30 -> 0 | Y30: =S30-L30 -> 0 | Z30: 0 | AA30: =Y30*Z30 -> 0
C31: PA standard | D31: ='Parameters_Inc Calcs'!$C$2 -> 12570 | E31: PA standard | F31: ='Parameters_Inc Calcs'!$C$2 -> 12570 | I31: Basic Rate | J31: =MAX(0,M21-L29) -> 37700 | K31: =MAX(0,K30-L30) -> 0 | L31: =MIN(J31,K31) -> 0 | M31: =MAX(0,J31-L31) -> 37700 | P31: Basic Rate | Q31: =MAX(0,T21-S29) -> 37700 | R31: =MAX(0,R30-S30) -> 0 | S31: =MIN(Q31,R31) -> 0 | T31: =MAX(0,Q31-S31) -> 37700 | W31: =L31*Z31 -> 0 | X31: =S31*Z31 -> 0 | Y31: =S31-L31 -> 0 | Z31: ='Parameters_Inc Calcs'!D4 -> 0.0875 | AA31: =Y31*Z31 -> 0
I32: Higher Rate | J32: =M22-N32 -> 87440 | K32: =MAX(0,K31-L31) -> 0 | L32: =MIN(J32,K32) -> 0 | M32: =MAX(0,J32-L32) -> 87440 | N32: =MIN(M22,MAX(L29-M21,0)) -> 0 | P32: Higher Rate | Q32: =T22-U32 -> 87440 | R32: =MAX(0,R31-S31) -> 0 | S32: =MIN(Q32,R32) -> 0 | T32: =MAX(0,Q32-S32) -> 87440 | U32: =MIN(T22,MAX(S29-T21,0)) -> 0 | W32: =L32*Z32 -> 0 | X32: =S32*Z32 -> 0 | Y32: =S32-L32 -> 0 | Z32: ='Parameters_Inc Calcs'!D5 -> 0.3375 | AA32: =Y32*Z32 -> 0
C33: PSA Basic | D33: ='Parameters_Inc Calcs'!$C$9 -> 1000 | E33: PSA Basic | F33: ='Parameters_Inc Calcs'!$C$9 -> 1000 | I33: Additional Rate | K33: =MAX(0,K32-L32) -> 0 | L33: =MIN(J33,K33) -> 0 | M33: NA | P33: Additional Rate | R33: =MAX(0,R32-S32) -> 0 | S33: =MIN(Q33,R33) -> 0 | T33: NA | W33: =L33*Z33 -> 0 | X33: =S33*Z33 -> 0 | Y33: =S33-L33 -> 0 | Z33: ='Parameters_Inc Calcs'!D8 -> 0.3935 | AA33: =Y33*Z33 -> 0
C34: PSA Higher | D34: ='Parameters_Inc Calcs'!$C$10 -> 500 | E34: PSA Higher | F34: ='Parameters_Inc Calcs'!$C$10 -> 500 | I34: Nil Rate available | J34: =J29+J30 -> 13070 | P34: Nil Rate available | Q34: =Q29+Q30 -> 13070 | W34: =SUM(W29:W33) -> 0 | X34: =SUM(X29:X33) -> 0 | Y34: =SUM(Y29:Y33) -> 0 | AA34: =SUM(AA29:AA33) -> 0 | AC34: External Tax Rate
C35: PSA Add | D35: ='Parameters_Inc Calcs'!$C$11 -> 0 | E35: PSA Add | F35: ='Parameters_Inc Calcs'!$C$11 -> 0
I36: Capital Gains Tax Band Apportionment | P36: Capital Gains Tax Band Apportionment | W36: Before | X36: After | Y36: Amount | Z36: Rate | AA36: Add Tax | AC36: Growth | AD36: =Y24+Y34+Y40 -> 0
C37: Starting Rate for Savings | D37: ='Parameters_Inc Calcs'!C12 -> 5000 | E37: Starting Rate for Savings | F37: ='Parameters_Inc Calcs'!C12 -> 5000 | I37: Annual Exemption | J37: =D43 -> 3000 | K37: 0 | L37: =MIN(J37,K37) -> 0 | M37: =MAX(0,J37-L37) -> 3000 | P37: Annual Exemption | Q37: =D43 -> 3000 | R37: =IF(C3="Yes",C6,F16) -> 0 | S37: =MIN(Q37,R37) -> 0 | T37: =MAX(0,Q37-S37) -> 3000 | W37: =L37*Z37 -> 0 | X37: =S37*Z37 -> 0 | Y37: =S37-L37 -> 0 | Z37: 0 | AA37: =Y37*Z37 -> 0 | AC37: Tax inc CGT | AD37: =AA40+AA34+AA24 -> 0
C38: Available | D38: =MAX(0,MIN(D37,(D22+D37)-D9)) -> 5000 | E38: Available | F38: =MAX(0,MIN(F37,(F22+F37)-F9)) -> 5000 | I38: Basic Rate | J38: =M31 -> 37700 | K38: =MAX(0,K37-L37) -> 0 | L38: =MIN(J38,K38) -> 0 | M38: 37700 | P38: Basic Rate | Q38: =T31 -> 37700 | R38: =MAX(0,R37-S37) -> 0 | S38: =MIN(Q38,R38) -> 0 | T38: =MAX(0,Q38-S38) -> 37700 | W38: =L38*Z38 -> 0 | X38: =S38*Z38 -> 0 | Y38: =S38-L38 -> 0 | Z38: ='Parameters_Inc Calcs'!F4 -> 0.1 | AA38: =Y38*Z38 -> 0 | AC38: Tax Exc CGT | AD38: =AD22 -> 0
I39: Higher Rate | K39: =K38-L38 -> 0 | L39: =MIN(J39,K39) -> 0 | M39: 0 | P39: Higher Rate | R39: =R38-S38 -> 0 | S39: =MIN(Q39,R39) -> 0 | T39: 0 | W39: =L39*Z39 -> 0 | X39: =S39*Z39 -> 0 | Y39: =S39-L39 -> 0 | Z39: ='Parameters_Inc Calcs'!F5 -> 0.2 | AA39: =Y39*Z39 -> 0
C40: PSA | D40: =IF(D14>D29,D35,IF(D14>D27,D34,D33)) -> 1000 | E40: PSA | F40: =IF(F14>F29,F35,IF(F14>F27,F34,F33)) -> 1000 | I40: Nil Rate available | J40: =J37 -> 3000 | P40: Nil Rate available | Q40: =Q37 -> 3000 | W40: =SUM(W37:W39) -> 0 | X40: =SUM(X37:X39) -> 0 | Y40: =SUM(Y37:Y39) -> 0 | AA40: =SUM(AA37:AA39) -> 0 | AC40: Inc CGT rate | AD40: =AD37/AD36 -> 
AC41: Exc CGT rate | AD41: =AD38/AD36 -> 
C42: Div All | D42: ='Parameters_Inc Calcs'!C17 -> 500
C43: CGT All | D43: ='Parameters_Inc Calcs'!D17 -> 3000

Sheet Yr 6 (hidden)
I1: Before | P1: AFTER
B2: Year | C2: 6 | E2: Amber needs amended when new sheet created | I2: Allowances: | P2: Allowances:
B3: Final Year | C3: =IF(C2=Inputs!C5,"Yes","No") -> No | I3: Pers_Allow_Adj | P3: Pers_Allow_Adj
B4: After Final Year | C4: =AND(C2>Inputs!C5) -> TRUE | I4: Tot_Pers_Allow | J4: =D22 -> 12570 | P4: Tot_Pers_Allow | Q4: =F22 -> 12570
B5: Investment | C5: =CGT!L12 -> 0 | I5: Pers_Sav_Allow | J5: =D40 -> 1000 | P5: Pers_Sav_Allow | Q5: =F40 -> 1000
B6: Cum Gain | C6: =CGT!L16 -> 0
B8: Factor | C8: Before | E8: After | I8: Non Savings Income Apportionment | P8: Non Savings Income Apportionment
B9: =1+Inputs!E11 -> 1 | C9: NSND | D9: =IF(C4=TRUE,0,IF(OR($C$3="Yes",$C$4=TRUE),Inputs!L11,'Yr 5'!D9*B9)) -> 0 | E9: Total Income | F9: =IF(C3="Yes",Inputs!L11,D9) -> 0
B10: =1+Inputs!E12 -> 1 | C10: Savings | D10: =IF(C4=TRUE,0,IF(OR($C$3="Yes",$C$4=TRUE),Inputs!L12,'Yr 5'!D10*B10)) -> 0 | E10: Savings | F10: =IF(C3="Yes",Inputs!L12,D10) -> 0 | J10: Allowances | K10: Still to tax | L10: Used | M10: Unused | Q10: Allowances | R10: Still to tax | S10: Used | T10: Unused | W10: Before | X10: After | Y10: Amount | Z10: Rate | AA10: Add Tax
B11: =1+Inputs!E13 -> 1 | C11: Divi | D11: =IF(C4=TRUE,0,IF(OR($C$3="Yes",$C$4=TRUE),Inputs!L13,'Yr 5'!D11*B11)) -> 0 | E11: Divi | F11: =IF(C3="Yes",Inputs!L13,D11) -> 0 | I11: Personal Allowance | J11: =J4 -> 12570 | K11: =D9 -> 0 | L11: =MIN(J11,K11) -> 0 | M11: =MAX(0,J11-L11) -> 12570 | P11: Personal Allowance | Q11: =Q4 -> 12570 | R11: =K11 -> 0 | S11: =MIN(Q11,R11) -> 0 | T11: =MAX(0,Q11-S11) -> 12570 | W11: =L11*Z11 -> 0 | X11: =S11*Z11 -> 0 | Y11: =S11-L11 -> 0 | Z11: 0 | AA11: =Y11*Z11 -> 0
B12: =Inputs!L4 -> 0 | E12: New Savings | F12: =IF(C4=TRUE,0,C5*B12) -> 0 | I12: Basic Rate | J12: =$D$26 -> 37700 | K12: =MAX(0,K11-L11) -> 0 | L12: =MIN(J12,K12) -> 0 | M12: =MAX(0,J12-L12) -> 37700 | P12: Basic Rate | Q12: =$F$26 -> 37700 | R12: =MAX(0,R11-S11) -> 0 | S12: =MIN(Q12,R12) -> 0 | T12: =MAX(0,Q12-S12) -> 37700 | W12: =L12*Z12 -> 0 | X12: =S12*Z12 -> 0 | Y12: =S12-L12 -> 0 | Z12: ='Parameters_Inc Calcs'!E4 -> 0.2 | AA12: =Y12*Z12 -> 0
B13: =Inputs!L5 -> 0 | E13: New Divi | F13: =IF(C4=TRUE,0,C5*B13) -> 0 | I13: Higher Rate | J13: =$D$28 -> 87440 | K13: =MAX(0,K12-L12) -> 0 | L13: =MIN(J13,K13) -> 0 | M13: =MAX(0,J13-L13) -> 87440 | P13: Higher Rate | Q13: =$F$28 -> 87440 | R13: =MAX(0,R12-S12) -> 0 | S13: =MIN(Q13,R13) -> 0 | T13: =MAX(0,Q13-S13) -> 87440 | W13: =L13*Z13 -> 0 | X13: =S13*Z13 -> 0 | Y13: =S13-L13 -> 0 | Z13: ='Parameters_Inc Calcs'!E5 -> 0.4 | AA13: =Y13*Z13 -> 0
C14: ANI | D14: =SUM(D9:D13) -> 0 | E14: ANI | F14: =SUM(F9:F13) -> 0 | I14: Additional Rate | K14: =MAX(0,K13-L13) -> 0 | L14: =K14 -> 0 | M14: NA | P14: Additional Rate | R14: =MAX(0,R13-S13) -> 0 | S14: =R14 -> 0 | T14: NA | W14: =L14*Z14 -> 0 | X14: =S14*Z14 -> 0 | Y14: =S14-L14 -> 0 | Z14: ='Parameters_Inc Calcs'!E8 -> 0.45 | AA14: =Y14*Z14 -> 0
W15: =SUM(W11:W14) -> 0 | X15: =SUM(X11:X14) -> 0 | AA15: =SUM(AA11:AA14) -> 0
E16: New Gain | F16: =CGT!L15 -> 0 | I16: Savings Income Tax Band Apportionment | P16: Savings Income Tax Band Apportionment
J17: Allowances | K17: Still to tax | L17: Used | M17: Unused | Q17: Allowances | R17: Still to tax | S17: Used | T17: Unused | W17: Before | X17: After | Y17: Amount | Z17: Rate | AA17: Add Tax
C18: ANI Limit | D18: ='Parameters_Inc Calcs'!$C$3 -> 100000 | E18: ANI Limit | F18: ='Parameters_Inc Calcs'!$C$3 -> 100000 | I18: Starting Rate | J18: =$D$38 -> 5000 | K18: =D10 -> 0 | L18: =MIN(J18,K18) -> 0 | M18: =MAX(0,J18-L18) -> 5000 | P18: Starting Rate | Q18: =$F$38 -> 5000 | R18: =F10+F12 -> 0 | S18: =MIN(Q18,R18) -> 0 | T18: =MAX(0,Q18-S18) -> 5000 | W18: =L18*Z18 -> 0 | X18: =S18*Z18 -> 0 | Y18: =S18-L18 -> 0 | Z18: 0 | AA18: =Y18*Z18 -> 0
C19: ANI Excess | D19: =MAX(0,D14-D18) -> 0 | E19: ANI Excess | F19: =MAX(0,F14-F18) -> 0 | I19: Personal Savings Allowance | J19: =D40 -> 1000 | K19: =MAX(0,K18-L18) -> 0 | L19: 0 | M19: =MAX(0,J19-L19) -> 1000 | N19: Higher Rate Adjustment for PSA and SRS Bands | P19: Personal Savings Allowance | Q19: =$F$40 -> 1000 | R19: =MAX(0,R18-S18) -> 0 | S19: 0 | T19: =MAX(0,Q19-S19) -> 1000 | U19: Higher Rate Adjustment for PSA and SRS Bands | W19: 0 | X19: 0 | Y19: 0 | Z19: 0 | AA19: 0
C20: PA adjustment | D20: =D19/2 -> 0 | E20: PA adjustment | F20: =F19/2 -> 0 | I20: Personal Allowance | J20: =M11 -> 12570 | K20: =MAX(0,K19-L19) -> 0 | L20: 0 | M20: =MAX(0,J20-L20) -> 12570 | P20: Personal Allowance | Q20: =T11 -> 12570 | R20: =MAX(0,R19-S19) -> 0 | S20: 0 | T20: =MAX(0,Q20-S20) -> 12570 | W20: 0 | X20: 0 | Y20: 0 | Z20: 0 | AA20: 0
I21: Basic Rate | J21: =MAX(0,M12-SUM(L18:L19)) -> 37700 | K21: =MAX(0,K20-L20) -> 0 | L21: 0 | M21: =MAX(0,J21-L21) -> 37700 | P21: Basic Rate | Q21: =MAX(0,T12-SUM(S18:S19)) -> 37700 | R21: =MAX(0,R20-S20) -> 0 | S21: 0 | T21: =MAX(0,Q21-S21) -> 37700 | W21: 0 | X21: 0 | Y21: 0 | Z21: =Z12 -> 0.2 | AA21: 0 | AC21: Investment income | AD21: =Y24+Y34 -> 0
C22: Personal Allowance | D22: =MAX(0,D31-D20) -> 12570 | E22: Personal Allowance | F22: =MAX(0,F31-F20) -> 12570 | I22: Higher Rate | J22: =M13-N22 -> 87440 | K22: =MAX(0,K21-L21) -> 0 | L22: 0 | M22: =MAX(0,J22-L22) -> 87440 | N22: =MIN(M13,MAX(L19-M12,0)) -> 0 | P22: Higher Rate | Q22: =T13-U22 -> 87440 | R22: =MAX(0,R21-S21) -> 0 | S22: 0 | T22: =MAX(0,Q22-S22) -> 87440 | U22: =MIN(T13,MAX(S19-T12,0)) -> 0 | W22: 0 | X22: 0 | Y22: 0 | Z22: =Z13 -> 0.4 | AA22: 0 | AC22: Tax | AD22: =AA15+AA24+AA34 -> 0
I23: Additional Rate | K23: =MAX(0,K22-L22) -> 0 | L23: 0 | M23: NA | P23: Additional Rate | R23: =MAX(0,R22-S22) -> 0 | S23: 0 | T23: NA | W23: 0 | X23: 0 | Y23: 0 | Z23: =Z14 -> 0.45 | AA23: 0 | AC23: Net Income Reinvested | AD23: =MAX(0,AD21-AD22) -> 0
C24: Taxable Income | D24: =D9-D22 -> -12570 | E24: Taxable Income | F24: =F9-F22 -> -12570 | I24: Nil Rate available | J24: =SUM(J18:J20) -> 18570 | P24: Nil Rate available | Q24: =SUM(Q18:Q20) -> 18570 | W24: =SUM(W18:W23) -> 0 | X24: =SUM(X18:X23) -> 0 | Y24: =SUM(Y18:Y23) -> 0 | AA24: =SUM(AA18:AA23) -> 0 | AD24: =AD22/AD21 -> 
C26: Basic Rate Band | D26: ='Parameters_Inc Calcs'!$C$4 -> 37700 | E26: Basic Rate Band | F26: ='Parameters_Inc Calcs'!$C$4 -> 37700
C27: Higher Threshold | D27: ='Parameters_Inc Calcs'!$C$5 -> 50270 | E27: Higher Threshold | F27: ='Parameters_Inc Calcs'!$C$5 -> 50270 | I27: Dividend Income Tax Band Apportionment | P27: Dividend Income Tax Band Apportionment
C28: Higher Rate Band | D28: ='Parameters_Inc Calcs'!$C$7 -> 87440 | E28: Higher Rate Band | F28: ='Parameters_Inc Calcs'!$C$7 -> 87440 | J28: Allowances | K28: Still to tax | L28: Used | M28: Unused | Q28: Allowances | R28: Still to tax | S28: Used | T28: Unused | W28: Before | X28: After | Y28: Amount | Z28: Rate | AA28: Add Tax
C29: Additional Threshold | D29: ='Parameters_Inc Calcs'!$C$8 -> 125140 | E29: Additional Threshold | F29: ='Parameters_Inc Calcs'!$C$8 -> 125140 | I29: Dividend Allowance | J29: =D42 -> 500 | K29: =D11 -> 0 | L29: =MIN(J29,K29) -> 0 | M29: =MAX(0,J29-L29) -> 500 | N29: Higher Rate Adjustment for PSA and SRS Bands | P29: Dividend Allowance | Q29: =$D$42 -> 500 | R29: =F11+F13 -> 0 | S29: =MIN(Q29,R29) -> 0 | T29: =MAX(0,Q29-S29) -> 500 | U29: Higher Rate Adjustment for PSA and SRS Bands | W29: =L29*Z29 -> 0 | X29: =S29*Z29 -> 0 | Y29: =S29-L29 -> 0 | Z29: 0 | AA29: =Y29*Z29 -> 0
I30: Personal Allowance | J30: =M20 -> 12570 | K30: =MAX(0,K29-L29) -> 0 | L30: =MIN(J30,K30) -> 0 | M30: =MAX(0,J30-L30) -> 12570 | P30: Personal Allowance | Q30: =T20 -> 12570 | R30: =MAX(0,R29-S29) -> 0 | S30: =MIN(Q30,R30) -> 0 | T30: =MAX(0,Q30-S30) -> 12570 | W30: =L30*Z30 -> 0 | X30: =S30*Z30 -> 0 | Y30: =S30-L30 -> 0 | Z30: 0 | AA30: =Y30*Z30 -> 0
C31: PA standard | D31: ='Parameters_Inc Calcs'!$C$2 -> 12570 | E31: PA standard | F31: ='Parameters_Inc Calcs'!$C$2 -> 12570 | I31: Basic Rate | J31: =MAX(0,M21-L29) -> 37700 | K31: =MAX(0,K30-L30) -> 0 | L31: =MIN(J31,K31) -> 0 | M31: =MAX(0,J31-L31) -> 37700 | P31: Basic Rate | Q31: =MAX(0,T21-S29) -> 37700 | R31: =MAX(0,R30-S30) -> 0 | S31: =MIN(Q31,R31) -> 0 | T31: =MAX(0,Q31-S31) -> 37700 | W31: =L31*Z31 -> 0 | X31: =S31*Z31 -> 0 | Y31: =S31-L31 -> 0 | Z31: ='Parameters_Inc Calcs'!D4 -> 0.0875 | AA31: =Y31*Z31 -> 0
I32: Higher Rate | J32: =M22-N32 -> 87440 | K32: =MAX(0,K31-L31) -> 0 | L32: =MIN(J32,K32) -> 0 | M32: =MAX(0,J32-L32) -> 87440 | N32: =MIN(M22,MAX(L29-M21,0)) -> 0 | P32: Higher Rate | Q32: =T22-U32 -> 87440 | R32: =MAX(0,R31-S31) -> 0 | S32: =MIN(Q32,R32) -> 0 | T32: =MAX(0,Q32-S32) -> 87440 | U32: =MIN(T22,MAX(S29-T21,0)) -> 0 | W32: =L32*Z32 -> 0 | X32: =S32*Z32 -> 0 | Y32: =S32-L32 -> 0 | Z32: ='Parameters_Inc Calcs'!D5 -> 0.3375 | AA32: =Y32*Z32 -> 0
C33: PSA Basic | D33: ='Parameters_Inc Calcs'!$C$9 -> 1000 | E33: PSA Basic | F33: ='Parameters_Inc Calcs'!$C$9 -> 1000 | I33: Additional Rate | K33: =MAX(0,K32-L32) -> 0 | L33: =MIN(J33,K33) -> 0 | M33: NA | P33: Additional Rate | R33: =MAX(0,R32-S32) -> 0 | S33: =MIN(Q33,R33) -> 0 | T33: NA | W33: =L33*Z33 -> 0 | X33: =S33*Z33 -> 0 | Y33: =S33-L33 -> 0 | Z33: ='Parameters_Inc Calcs'!D8 -> 0.3935 | AA33: =Y33*Z33 -> 0
C34: PSA Higher | D34: ='Parameters_Inc Calcs'!$C$10 -> 500 | E34: PSA Higher | F34: ='Parameters_Inc Calcs'!$C$10 -> 500 | I34: Nil Rate available | J34: =J29+J30 -> 13070 | P34: Nil Rate available | Q34: =Q29+Q30 -> 13070 | W34: =SUM(W29:W33) -> 0 | X34: =SUM(X29:X33) -> 0 | Y34: =SUM(Y29:Y33) -> 0 | AA34: =SUM(AA29:AA33) -> 0 | AC34: External Tax Rate
C35: PSA Add | D35: ='Parameters_Inc Calcs'!$C$11 -> 0 | E35: PSA Add | F35: ='Parameters_Inc Calcs'!$C$11 -> 0
I36: Capital Gains Tax Band Apportionment | P36: Capital Gains Tax Band Apportionment | W36: Before | X36: After | Y36: Amount | Z36: Rate | AA36: Add Tax | AC36: Growth | AD36: =Y24+Y34+Y40 -> 0
C37: Starting Rate for Savings | D37: ='Parameters_Inc Calcs'!C12 -> 5000 | E37: Starting Rate for Savings | F37: ='Parameters_Inc Calcs'!C12 -> 5000 | I37: Annual Exemption | J37: =D43 -> 3000 | K37: 0 | L37: =MIN(J37,K37) -> 0 | M37: =MAX(0,J37-L37) -> 3000 | P37: Annual Exemption | Q37: =D43 -> 3000 | R37: =IF(C3="Yes",C6,F16) -> 0 | S37: =MIN(Q37,R37) -> 0 | T37: =MAX(0,Q37-S37) -> 3000 | W37: =L37*Z37 -> 0 | X37: =S37*Z37 -> 0 | Y37: =S37-L37 -> 0 | Z37: 0 | AA37: =Y37*Z37 -> 0 | AC37: Tax inc CGT | AD37: =AA40+AA34+AA24 -> 0
C38: Available | D38: =MAX(0,MIN(D37,(D22+D37)-D9)) -> 5000 | E38: Available | F38: =MAX(0,MIN(F37,(F22+F37)-F9)) -> 5000 | I38: Basic Rate | J38: =M31 -> 37700 | K38: =MAX(0,K37-L37) -> 0 | L38: =MIN(J38,K38) -> 0 | M38: 37700 | P38: Basic Rate | Q38: =T31 -> 37700 | R38: =MAX(0,R37-S37) -> 0 | S38: =MIN(Q38,R38) -> 0 | T38: =MAX(0,Q38-S38) -> 37700 | W38: =L38*Z38 -> 0 | X38: =S38*Z38 -> 0 | Y38: =S38-L38 -> 0 | Z38: ='Parameters_Inc Calcs'!F4 -> 0.1 | AA38: =Y38*Z38 -> 0 | AC38: Tax Exc CGT | AD38: =AD22 -> 0
I39: Higher Rate | K39: =K38-L38 -> 0 | L39: =MIN(J39,K39) -> 0 | M39: 0 | P39: Higher Rate | R39: =R38-S38 -> 0 | S39: =MIN(Q39,R39) -> 0 | T39: 0 | W39: =L39*Z39 -> 0 | X39: =S39*Z39 -> 0 | Y39: =S39-L39 -> 0 | Z39: ='Parameters_Inc Calcs'!F5 -> 0.2 | AA39: =Y39*Z39 -> 0
C40: PSA | D40: =IF(D14>D29,D35,IF(D14>D27,D34,D33)) -> 1000 | E40: PSA | F40: =IF(F14>F29,F35,IF(F14>F27,F34,F33)) -> 1000 | I40: Nil Rate available | J40: =J37 -> 3000 | P40: Nil Rate available | Q40: =Q37 -> 3000 | W40: =SUM(W37:W39) -> 0 | X40: =SUM(X37:X39) -> 0 | Y40: =SUM(Y37:Y39) -> 0 | AA40: =SUM(AA37:AA39) -> 0 | AC40: Inc CGT rate | AD40: =AD37/AD36 -> 
AC41: Exc CGT rate | AD41: =AD38/AD36 -> 
C42: Div All | D42: ='Parameters_Inc Calcs'!C17 -> 500
C43: CGT All | D43: ='Parameters_Inc Calcs'!D17 -> 3000

Sheet Yr 7 (hidden)
I1: Before | P1: AFTER
B2: Year | C2: 7 | E2: Amber needs amended when new sheet created | I2: Allowances: | P2: Allowances:
B3: Final Year | C3: =IF(C2=Inputs!C5,"Yes","No") -> No | I3: Pers_Allow_Adj | P3: Pers_Allow_Adj
B4: After Final Year | C4: =AND(C2>Inputs!C5) -> TRUE | I4: Tot_Pers_Allow | J4: =D22 -> 12570 | P4: Tot_Pers_Allow | Q4: =F22 -> 12570
B5: Investment | C5: =CGT!M12 -> 0 | I5: Pers_Sav_Allow | J5: =D40 -> 1000 | P5: Pers_Sav_Allow | Q5: =F40 -> 1000
B6: Cum Gain | C6: =CGT!M16 -> 0
B8: Factor | C8: Before | E8: After | I8: Non Savings Income Apportionment | P8: Non Savings Income Apportionment
B9: =1+Inputs!E11 -> 1 | C9: NSND | D9: =IF(C4=TRUE,0,IF(OR($C$3="Yes",$C$4=TRUE),Inputs!L11,'Yr 6'!D9*B9)) -> 0 | E9: Total Income | F9: =IF(C3="Yes",Inputs!L11,D9) -> 0
B10: =1+Inputs!E12 -> 1 | C10: Savings | D10: =IF(C4=TRUE,0,IF(OR($C$3="Yes",$C$4=TRUE),Inputs!L12,'Yr 6'!D10*B10)) -> 0 | E10: Savings | F10: =IF(C3="Yes",Inputs!L12,D10) -> 0 | J10: Allowances | K10: Still to tax | L10: Used | M10: Unused | Q10: Allowances | R10: Still to tax | S10: Used | T10: Unused | W10: Before | X10: After | Y10: Amount | Z10: Rate | AA10: Add Tax
B11: =1+Inputs!E13 -> 1 | C11: Divi | D11: =IF(C4=TRUE,0,IF(OR($C$3="Yes",$C$4=TRUE),Inputs!L13,'Yr 6'!D11*B11)) -> 0 | E11: Divi | F11: =IF(C3="Yes",Inputs!L13,D11) -> 0 | I11: Personal Allowance | J11: =J4 -> 12570 | K11: =D9 -> 0 | L11: =MIN(J11,K11) -> 0 | M11: =MAX(0,J11-L11) -> 12570 | P11: Personal Allowance | Q11: =Q4 -> 12570 | R11: =K11 -> 0 | S11: =MIN(Q11,R11) -> 0 | T11: =MAX(0,Q11-S11) -> 12570 | W11: =L11*Z11 -> 0 | X11: =S11*Z11 -> 0 | Y11: =S11-L11 -> 0 | Z11: 0 | AA11: =Y11*Z11 -> 0
B12: =Inputs!L4 -> 0 | E12: New Savings | F12: =IF(C4=TRUE,0,C5*B12) -> 0 | I12: Basic Rate | J12: =$D$26 -> 37700 | K12: =MAX(0,K11-L11) -> 0 | L12: =MIN(J12,K12) -> 0 | M12: =MAX(0,J12-L12) -> 37700 | P12: Basic Rate | Q12: =$F$26 -> 37700 | R12: =MAX(0,R11-S11) -> 0 | S12: =MIN(Q12,R12) -> 0 | T12: =MAX(0,Q12-S12) -> 37700 | W12: =L12*Z12 -> 0 | X12: =S12*Z12 -> 0 | Y12: =S12-L12 -> 0 | Z12: ='Parameters_Inc Calcs'!E4 -> 0.2 | AA12: =Y12*Z12 -> 0
B13: =Inputs!L5 -> 0 | E13: New Divi | F13: =IF(C4=TRUE,0,C5*B13) -> 0 | I13: Higher Rate | J13: =$D$28 -> 87440 | K13: =MAX(0,K12-L12) -> 0 | L13: =MIN(J13,K13) -> 0 | M13: =MAX(0,J13-L13) -> 87440 | P13: Higher Rate | Q13: =$F$28 -> 87440 | R13: =MAX(0,R12-S12) -> 0 | S13: =MIN(Q13,R13) -> 0 | T13: =MAX(0,Q13-S13) -> 87440 | W13: =L13*Z13 -> 0 | X13: =S13*Z13 -> 0 | Y13: =S13-L13 -> 0 | Z13: ='Parameters_Inc Calcs'!E5 -> 0.4 | AA13: =Y13*Z13 -> 0
C14: ANI | D14: =SUM(D9:D13) -> 0 | E14: ANI | F14: =SUM(F9:F13) -> 0 | I14: Additional Rate | K14: =MAX(0,K13-L13) -> 0 | L14: =K14 -> 0 | M14: NA | P14: Additional Rate | R14: =MAX(0,R13-S13) -> 0 | S14: =R14 -> 0 | T14: NA | W14: =L14*Z14 -> 0 | X14: =S14*Z14 -> 0 | Y14: =S14-L14 -> 0 | Z14: ='Parameters_Inc Calcs'!E8 -> 0.45 | AA14: =Y14*Z14 -> 0
W15: =SUM(W11:W14) -> 0 | X15: =SUM(X11:X14) -> 0 | AA15: =SUM(AA11:AA14) -> 0
E16: New Gain | F16: =CGT!M15 -> 0 | I16: Savings Income Tax Band Apportionment | P16: Savings Income Tax Band Apportionment
J17: Allowances | K17: Still to tax | L17: Used | M17: Unused | Q17: Allowances | R17: Still to tax | S17: Used | T17: Unused | W17: Before | X17: After | Y17: Amount | Z17: Rate | AA17: Add Tax
C18: ANI Limit | D18: ='Parameters_Inc Calcs'!$C$3 -> 100000 | E18: ANI Limit | F18: ='Parameters_Inc Calcs'!$C$3 -> 100000 | I18: Starting Rate | J18: =$D$38 -> 5000 | K18: =D10 -> 0 | L18: =MIN(J18,K18) -> 0 | M18: =MAX(0,J18-L18) -> 5000 | P18: Starting Rate | Q18: =$F$38 -> 5000 | R18: =F10+F12 -> 0 | S18: =MIN(Q18,R18) -> 0 | T18: =MAX(0,Q18-S18) -> 5000 | W18: =L18*Z18 -> 0 | X18: =S18*Z18 -> 0 | Y18: =S18-L18 -> 0 | Z18: 0 | AA18: =Y18*Z18 -> 0
C19: ANI Excess | D19: =MAX(0,D14-D18) -> 0 | E19: ANI Excess | F19: =MAX(0,F14-F18) -> 0 | I19: Personal Savings Allowance | J19: =D40 -> 1000 | K19: =MAX(0,K18-L18) -> 0 | L19: 0 | M19: =MAX(0,J19-L19) -> 1000 | N19: Higher Rate Adjustment for PSA and SRS Bands | P19: Personal Savings Allowance | Q19: =$F$40 -> 1000 | R19: =MAX(0,R18-S18) -> 0 | S19: 0 | T19: =MAX(0,Q19-S19) -> 1000 | U19: Higher Rate Adjustment for PSA and SRS Bands | W19: 0 | X19: 0 | Y19: 0 | Z19: 0 | AA19: 0
C20: PA adjustment | D20: =D19/2 -> 0 | E20: PA adjustment | F20: =F19/2 -> 0 | I20: Personal Allowance | J20: =M11 -> 12570 | K20: =MAX(0,K19-L19) -> 0 | L20: 0 | M20: =MAX(0,J20-L20) -> 12570 | P20: Personal Allowance | Q20: =T11 -> 12570 | R20: =MAX(0,R19-S19) -> 0 | S20: 0 | T20: =MAX(0,Q20-S20) -> 12570 | W20: 0 | X20: 0 | Y20: 0 | Z20: 0 | AA20: 0
I21: Basic Rate | J21: =MAX(0,M12-SUM(L18:L19)) -> 37700 | K21: =MAX(0,K20-L20) -> 0 | L21: 0 | M21: =MAX(0,J21-L21) -> 37700 | P21: Basic Rate | Q21: =MAX(0,T12-SUM(S18:S19)) -> 37700 | R21: =MAX(0,R20-S20) -> 0 | S21: 0 | T21: =MAX(0,Q21-S21) -> 37700 | W21: 0 | X21: 0 | Y21: 0 | Z21: =Z12 -> 0.2 | AA21: 0 | AC21: Investment income | AD21: =Y24+Y34 -> 0
C22: Personal Allowance | D22: =MAX(0,D31-D20) -> 12570 | E22: Personal Allowance | F22: =MAX(0,F31-F20) -> 12570 | I22: Higher Rate | J22: =M13-N22 -> 87440 | K22: =MAX(0,K21-L21) -> 0 | L22: 0 | M22: =MAX(0,J22-L22) -> 87440 | N22: =MIN(M13,MAX(L19-M12,0)) -> 0 | P22: Higher Rate | Q22: =T13-U22 -> 87440 | R22: =MAX(0,R21-S21) -> 0 | S22: 0 | T22: =MAX(0,Q22-S22) -> 87440 | U22: =MIN(T13,MAX(S19-T12,0)) -> 0 | W22: =L22*Z22 -> 0 | X22: =S22*Z22 -> 0 | Y22: =S22-L22 -> 0 | Z22: =Z13 -> 0.4 | AA22: =Y22*Z22 -> 0 | AC22: Tax | AD22: =AA15+AA24+AA34 -> 0
I23: Additional Rate | K23: =MAX(0,K22-L22) -> 0 | L23: 0 | M23: NA | P23: Additional Rate | R23: =MAX(0,R22-S22) -> 0 | S23: 0 | T23: NA | W23: 0 | X23: 0 | Y23: 0 | Z23: =Z14 -> 0.45 | AA23: 0 | AC23: Net Income Reinvested | AD23: =MAX(0,AD21-AD22) -> 0
C24: Taxable Income | D24: =D9-D22 -> -12570 | E24: Taxable Income | F24: =F9-F22 -> -12570 | I24: Nil Rate available | J24: =SUM(J18:J20) -> 18570 | P24: Nil Rate available | Q24: =SUM(Q18:Q20) -> 18570 | W24: =SUM(W18:W23) -> 0 | X24: =SUM(X18:X23) -> 0 | Y24: =SUM(Y18:Y23) -> 0 | AA24: =SUM(AA18:AA23) -> 0 | AD24: =AD22/AD21 -> 
C26: Basic Rate Band | D26: ='Parameters_Inc Calcs'!$C$4 -> 37700 | E26: Basic Rate Band | F26: ='Parameters_Inc Calcs'!$C$4 -> 37700
C27: Higher Threshold | D27: ='Parameters_Inc Calcs'!$C$5 -> 50270 | E27: Higher Threshold | F27: ='Parameters_Inc Calcs'!$C$5 -> 50270 | I27: Dividend Income Tax Band Apportionment | P27: Dividend Income Tax Band Apportionment
C28: Higher Rate Band | D28: ='Parameters_Inc Calcs'!$C$7 -> 87440 | E28: Higher Rate Band | F28: ='Parameters_Inc Calcs'!$C$7 -> 87440 | J28: Allowances | K28: Still to tax | L28: Used | M28: Unused | Q28: Allowances | R28: Still to tax | S28: Used | T28: Unused | W28: Before | X28: After | Y28: Amount | Z28: Rate | AA28: Add Tax
C29: Additional Threshold | D29: ='Parameters_Inc Calcs'!$C$8 -> 125140 | E29: Additional Threshold | F29: ='Parameters_Inc Calcs'!$C$8 -> 125140 | I29: Dividend Allowance | J29: =D42 -> 500 | K29: =D11 -> 0 | L29: =MIN(J29,K29) -> 0 | M29: =MAX(0,J29-L29) -> 500 | N29: Higher Rate Adjustment for PSA and SRS Bands | P29: Dividend Allowance | Q29: =$D$42 -> 500 | R29: =F11+F13 -> 0 | S29: =MIN(Q29,R29) -> 0 | T29: =MAX(0,Q29-S29) -> 500 | U29: Higher Rate Adjustment for PSA and SRS Bands | W29: =L29*Z29 -> 0 | X29: =S29*Z29 -> 0 | Y29: =S29-L29 -> 0 | Z29: 0 | AA29: =Y29*Z29 -> 0
I30: Personal Allowance | J30: =M20 -> 12570 | K30: =MAX(0,K29-L29) -> 0 | L30: =MIN(J30,K30) -> 0 | M30: =MAX(0,J30-L30) -> 12570 | P30: Personal Allowance | Q30: =T20 -> 12570 | R30: =MAX(0,R29-S29) -> 0 | S30: =MIN(Q30,R30) -> 0 | T30: =MAX(0,Q30-S30) -> 12570 | W30: =L30*Z30 -> 0 | X30: =S30*Z30 -> 0 | Y30: =S30-L30 -> 0 | Z30: 0 | AA30: =Y30*Z30 -> 0
C31: PA standard | D31: ='Parameters_Inc Calcs'!$C$2 -> 12570 | E31: PA standard | F31: ='Parameters_Inc Calcs'!$C$2 -> 12570 | I31: Basic Rate | J31: =MAX(0,M21-L29) -> 37700 | K31: =MAX(0,K30-L30) -> 0 | L31: =MIN(J31,K31) -> 0 | M31: =MAX(0,J31-L31) -> 37700 | P31: Basic Rate | Q31: =MAX(0,T21-S29) -> 37700 | R31: =MAX(0,R30-S30) -> 0 | S31: =MIN(Q31,R31) -> 0 | T31: =MAX(0,Q31-S31) -> 37700 | W31: =L31*Z31 -> 0 | X31: =S31*Z31 -> 0 | Y31: =S31-L31 -> 0 | Z31: ='Parameters_Inc Calcs'!D4 -> 0.0875 | AA31: =Y31*Z31 -> 0
I32: Higher Rate | J32: =M22-N32 -> 87440 | K32: =MAX(0,K31-L31) -> 0 | L32: =MIN(J32,K32) -> 0 | M32: =MAX(0,J32-L32) -> 87440 | N32: =MIN(M22,MAX(L29-M21,0)) -> 0 | P32: Higher Rate | Q32: =T22-U32 -> 87440 | R32: =MAX(0,R31-S31) -> 0 | S32: =MIN(Q32,R32) -> 0 | T32: =MAX(0,Q32-S32) -> 87440 | U32: =MIN(T22,MAX(S29-T21,0)) -> 0 | W32: =L32*Z32 -> 0 | X32: =S32*Z32 -> 0 | Y32: =S32-L32 -> 0 | Z32: ='Parameters_Inc Calcs'!D5 -> 0.3375 | AA32: =Y32*Z32 -> 0
C33: PSA Basic | D33: ='Parameters_Inc Calcs'!$C$9 -> 1000 | E33: PSA Basic | F33: ='Parameters_Inc Calcs'!$C$9 -> 1000 | I33: Additional Rate | K33: =MAX(0,K32-L32) -> 0 | L33: =MIN(J33,K33) -> 0 | M33: NA | P33: Additional Rate | R33: =MAX(0,R32-S32) -> 0 | S33: =MIN(Q33,R33) -> 0 | T33: NA | W33: =L33*Z33 -> 0 | X33: =S33*Z33 -> 0 | Y33: =S33-L33 -> 0 | Z33: ='Parameters_Inc Calcs'!D8 -> 0.3935 | AA33: =Y33*Z33 -> 0
C34: PSA Higher | D34: ='Parameters_Inc Calcs'!$C$10 -> 500 | E34: PSA Higher | F34: ='Parameters_Inc Calcs'!$C$10 -> 500 | I34: Nil Rate available | J34: =J29+J30 -> 13070 | P34: Nil Rate available | Q34: =Q29+Q30 -> 13070 | W34: =SUM(W29:W33) -> 0 | X34: =SUM(X29:X33) -> 0 | Y34: =SUM(Y29:Y33) -> 0 | AA34: =SUM(AA29:AA33) -> 0 | AC34: External Tax Rate
C35: PSA Add | D35: ='Parameters_Inc Calcs'!$C$11 -> 0 | E35: PSA Add | F35: ='Parameters_Inc Calcs'!$C$11 -> 0
I36: Capital Gains Tax Band Apportionment | P36: Capital Gains Tax Band Apportionment | W36: Before | X36: After | Y36: Amount | Z36: Rate | AA36: Add Tax | AC36: Growth | AD36: =Y24+Y34+Y40 -> 0
C37: Starting Rate for Savings | D37: ='Parameters_Inc Calcs'!C12 -> 5000 | E37: Starting Rate for Savings | F37: ='Parameters_Inc Calcs'!C12 -> 5000 | I37: Annual Exemption | J37: =D43 -> 3000 | K37: 0 | L37: =MIN(J37,K37) -> 0 | M37: =MAX(0,J37-L37) -> 3000 | P37: Annual Exemption | Q37: =D43 -> 3000 | R37: =IF(C3="Yes",C6,F16) -> 0 | S37: =MIN(Q37,R37) -> 0 | T37: =MAX(0,Q37-S37) -> 3000 | W37: =L37*Z37 -> 0 | X37: =S37*Z37 -> 0 | Y37: =S37-L37 -> 0 | Z37: 0 | AA37: =Y37*Z37 -> 0 | AC37: Tax inc CGT | AD37: =AA40+AA34+AA24 -> 0
C38: Available | D38: =MAX(0,MIN(D37,(D22+D37)-D9)) -> 5000 | E38: Available | F38: =MAX(0,MIN(F37,(F22+F37)-F9)) -> 5000 | I38: Basic Rate | J38: =M31 -> 37700 | K38: =MAX(0,K37-L37) -> 0 | L38: =MIN(J38,K38) -> 0 | M38: 37700 | P38: Basic Rate | Q38: =T31 -> 37700 | R38: =MAX(0,R37-S37) -> 0 | S38: =MIN(Q38,R38) -> 0 | T38: =MAX(0,Q38-S38) -> 37700 | W38: =L38*Z38 -> 0 | X38: =S38*Z38 -> 0 | Y38: =S38-L38 -> 0 | Z38: ='Parameters_Inc Calcs'!F4 -> 0.1 | AA38: =Y38*Z38 -> 0 | AC38: Tax Exc CGT | AD38: =AD22 -> 0
I39: Higher Rate | K39: =K38-L38 -> 0 | L39: =MIN(J39,K39) -> 0 | M39: 0 | P39: Higher Rate | R39: =R38-S38 -> 0 | S39: =MIN(Q39,R39) -> 0 | T39: 0 | W39: =L39*Z39 -> 0 | X39: =S39*Z39 -> 0 | Y39: =S39-L39 -> 0 | Z39: ='Parameters_Inc Calcs'!F5 -> 0.2 | AA39: =Y39*Z39 -> 0
C40: PSA | D40: =IF(D14>D29,D35,IF(D14>D27,D34,D33)) -> 1000 | E40: PSA | F40: =IF(F14>F29,F35,IF(F14>F27,F34,F33)) -> 1000 | I40: Nil Rate available | J40: =J37 -> 3000 | P40: Nil Rate available | Q40: =Q37 -> 3000 | W40: =SUM(W37:W39) -> 0 | X40: =SUM(X37:X39) -> 0 | Y40: =SUM(Y37:Y39) -> 0 | AA40: =SUM(AA37:AA39) -> 0 | AC40: Inc CGT rate | AD40: =AD37/AD36 -> 
AC41: Exc CGT rate | AD41: =AD38/AD36 -> 
C42: Div All | D42: ='Parameters_Inc Calcs'!C17 -> 500
C43: CGT All | D43: ='Parameters_Inc Calcs'!D17 -> 3000

Sheet Yr 8 (hidden)
I1: Before | P1: AFTER
B2: Year | C2: 8 | E2: Amber needs amended when new sheet created | I2: Allowances: | P2: Allowances:
B3: Final Year | C3: =IF(C2=Inputs!C5,"Yes","No") -> No | I3: Pers_Allow_Adj | P3: Pers_Allow_Adj
B4: After Final Year | C4: =AND(C2>Inputs!C5) -> TRUE | I4: Tot_Pers_Allow | J4: =D22 -> 12570 | P4: Tot_Pers_Allow | Q4: =F22 -> 12570
B5: Investment | C5: =CGT!N12 -> 0 | I5: Pers_Sav_Allow | J5: =D40 -> 1000 | P5: Pers_Sav_Allow | Q5: =F40 -> 1000
B6: Cum Gain | C6: =CGT!N16 -> 0
B8: Factor | C8: Before | E8: After | I8: Non Savings Income Apportionment | P8: Non Savings Income Apportionment
B9: =1+Inputs!E11 -> 1 | C9: NSND | D9: =IF(C4=TRUE,0,IF(OR($C$3="Yes",$C$4=TRUE),Inputs!L11,'Yr 7'!D9*B9)) -> 0 | E9: Total Income | F9: =IF(C3="Yes",Inputs!L11,D9) -> 0
B10: =1+Inputs!E12 -> 1 | C10: Savings | D10: =IF(C4=TRUE,0,IF(OR($C$3="Yes",$C$4=TRUE),Inputs!L12,'Yr 7'!D10*B10)) -> 0 | E10: Savings | F10: =IF(C3="Yes",Inputs!L12,D10) -> 0 | J10: Allowances | K10: Still to tax | L10: Used | M10: Unused | Q10: Allowances | R10: Still to tax | S10: Used | T10: Unused | W10: Before | X10: After | Y10: Amount | Z10: Rate | AA10: Add Tax
B11: =1+Inputs!E13 -> 1 | C11: Divi | D11: =IF(C4=TRUE,0,IF(OR($C$3="Yes",$C$4=TRUE),Inputs!L13,'Yr 7'!D11*B11)) -> 0 | E11: Divi | F11: =IF(C3="Yes",Inputs!L13,D11) -> 0 | I11: Personal Allowance | J11: =J4 -> 12570 | K11: =D9 -> 0 | L11: =MIN(J11,K11) -> 0 | M11: =MAX(0,J11-L11) -> 12570 | P11: Personal Allowance | Q11: =Q4 -> 12570 | R11: =K11 -> 0 | S11: =MIN(Q11,R11) -> 0 | T11: =MAX(0,Q11-S11) -> 12570 | W11: =L11*Z11 -> 0 | X11: =S11*Z11 -> 0 | Y11: =S11-L11 -> 0 | Z11: 0 | AA11: =Y11*Z11 -> 0
B12: =Inputs!L4 -> 0 | E12: New Savings | F12: =IF(C4=TRUE,0,C5*B12) -> 0 | I12: Basic Rate | J12: =$D$26 -> 37700 | K12: =MAX(0,K11-L11) -> 0 | L12: =MIN(J12,K12) -> 0 | M12: =MAX(0,J12-L12) -> 37700 | P12: Basic Rate | Q12: =$F$26 -> 37700 | R12: =MAX(0,R11-S11) -> 0 | S12: =MIN(Q12,R12) -> 0 | T12: =MAX(0,Q12-S12) -> 37700 | W12: =L12*Z12 -> 0 | X12: =S12*Z12 -> 0 | Y12: =S12-L12 -> 0 | Z12: ='Parameters_Inc Calcs'!E4 -> 0.2 | AA12: =Y12*Z12 -> 0
B13: =Inputs!L5 -> 0 | E13: New Divi | F13: =IF(C4=TRUE,0,C5*B13) -> 0 | I13: Higher Rate | J13: =$D$28 -> 87440 | K13: =MAX(0,K12-L12) -> 0 | L13: =MIN(J13,K13) -> 0 | M13: =MAX(0,J13-L13) -> 87440 | P13: Higher Rate | Q13: =$F$28 -> 87440 | R13: =MAX(0,R12-S12) -> 0 | S13: =MIN(Q13,R13) -> 0 | T13: =MAX(0,Q13-S13) -> 87440 | W13: =L13*Z13 -> 0 | X13: =S13*Z13 -> 0 | Y13: =S13-L13 -> 0 | Z13: ='Parameters_Inc Calcs'!E5 -> 0.4 | AA13: =Y13*Z13 -> 0
C14: ANI | D14: =SUM(D9:D13) -> 0 | E14: ANI | F14: =SUM(F9:F13) -> 0 | I14: Additional Rate | K14: =MAX(0,K13-L13) -> 0 | L14: =K14 -> 0 | M14: NA | P14: Additional Rate | R14: =MAX(0,R13-S13) -> 0 | S14: =R14 -> 0 | T14: NA | W14: =L14*Z14 -> 0 | X14: =S14*Z14 -> 0 | Y14: =S14-L14 -> 0 | Z14: ='Parameters_Inc Calcs'!E8 -> 0.45 | AA14: =Y14*Z14 -> 0
W15: =SUM(W11:W14) -> 0 | X15: =SUM(X11:X14) -> 0 | AA15: =SUM(AA11:AA14) -> 0
E16: New Gain | F16: =CGT!N15 -> 0 | I16: Savings Income Tax Band Apportionment | P16: Savings Income Tax Band Apportionment
J17: Allowances | K17: Still to tax | L17: Used | M17: Unused | Q17: Allowances | R17: Still to tax | S17: Used | T17: Unused | W17: Before | X17: After | Y17: Amount | Z17: Rate | AA17: Add Tax
C18: ANI Limit | D18: ='Parameters_Inc Calcs'!$C$3 -> 100000 | E18: ANI Limit | F18: ='Parameters_Inc Calcs'!$C$3 -> 100000 | I18: Starting Rate | J18: =$D$38 -> 5000 | K18: =D10 -> 0 | L18: =MIN(J18,K18) -> 0 | M18: =MAX(0,J18-L18) -> 5000 | P18: Starting Rate | Q18: =$F$38 -> 5000 | R18: =F10+F12 -> 0 | S18: =MIN(Q18,R18) -> 0 | T18: =MAX(0,Q18-S18) -> 5000 | W18: =L18*Z18 -> 0 | X18: =S18*Z18 -> 0 | Y18: =S18-L18 -> 0 | Z18: 0 | AA18: =Y18*Z18 -> 0
C19: ANI Excess | D19: =MAX(0,D14-D18) -> 0 | E19: ANI Excess | F19: =MAX(0,F14-F18) -> 0 | I19: Personal Savings Allowance | J19: =D40 -> 1000 | K19: =MAX(0,K18-L18) -> 0 | L19: 0 | M19: =MAX(0,J19-L19) -> 1000 | N19: Higher Rate Adjustment for PSA and SRS Bands | P19: Personal Savings Allowance | Q19: =$F$40 -> 1000 | R19: =MAX(0,R18-S18) -> 0 | S19: 0 | T19: =MAX(0,Q19-S19) -> 1000 | U19: Higher Rate Adjustment for PSA and SRS Bands | W19: 0 | X19: 0 | Y19: 0 | Z19: 0 | AA19: 0
C20: PA adjustment | D20: =D19/2 -> 0 | E20: PA adjustment | F20: =F19/2 -> 0 | I20: Personal Allowance | J20: =M11 -> 12570 | K20: =MAX(0,K19-L19) -> 0 | L20: 0 | M20: =MAX(0,J20-L20) -> 12570 | P20: Personal Allowance | Q20: =T11 -> 12570 | R20: =MAX(0,R19-S19) -> 0 | S20: 0 | T20: =MAX(0,Q20-S20) -> 12570 | W20: 0 | X20: 0 | Y20: 0 | Z20: 0 | AA20: 0
I21: Basic Rate | J21: =MAX(0,M12-SUM(L18:L19)) -> 37700 | K21: =MAX(0,K20-L20) -> 0 | L21: 0 | M21: =MAX(0,J21-L21) -> 37700 | P21: Basic Rate | Q21: =MAX(0,T12-SUM(S18:S19)) -> 37700 | R21: =MAX(0,R20-S20) -> 0 | S21: 0 | T21: =MAX(0,Q21-S21) -> 37700 | W21: 0 | X21: 0 | Y21: 0 | Z21: =Z12 -> 0.2 | AA21: 0 | AC21: Investment income | AD21: =Y24+Y34 -> 0
C22: Personal Allowance | D22: =MAX(0,D31-D20) -> 12570 | E22: Personal Allowance | F22: =MAX(0,F31-F20) -> 12570 | I22: Higher Rate | J22: =M13-N22 -> 87440 | K22: =MAX(0,K21-L21) -> 0 | L22: 0 | M22: =MAX(0,J22-L22) -> 87440 | N22: =MIN(M13,MAX(L19-M12,0)) -> 0 | P22: Higher Rate | Q22: =T13-U22 -> 87440 | R22: =MAX(0,R21-S21) -> 0 | S22: 0 | T22: =MAX(0,Q22-S22) -> 87440 | U22: =MIN(T13,MAX(S19-T12,0)) -> 0 | W22: 0 | X22: 0 | Y22: 0 | Z22: =Z13 -> 0.4 | AA22: 0 | AC22: Tax | AD22: =AA15+AA24+AA34 -> 0
I23: Additional Rate | K23: =MAX(0,K22-L22) -> 0 | L23: 0 | M23: NA | P23: Additional Rate | R23: =MAX(0,R22-S22) -> 0 | S23: 0 | T23: NA | W23: 0 | X23: 0 | Y23: 0 | Z23: =Z14 -> 0.45 | AA23: 0 | AC23: Net Income Reinvested | AD23: =MAX(0,AD21-AD22) -> 0
C24: Taxable Income | D24: =MAX(0,D9-D22) -> 0 | E24: Taxable Income | F24: =F9-F22 -> -12570 | I24: Nil Rate available | J24: =SUM(J18:J20) -> 18570 | P24: Nil Rate available | Q24: =SUM(Q18:Q20) -> 18570 | W24: =SUM(W18:W23) -> 0 | X24: =SUM(X18:X23) -> 0 | Y24: =SUM(Y18:Y23) -> 0 | AA24: =SUM(AA18:AA23) -> 0 | AD24: =AD22/AD21 -> 
C26: Basic Rate Band | D26: ='Parameters_Inc Calcs'!$C$4 -> 37700 | E26: Basic Rate Band | F26: ='Parameters_Inc Calcs'!$C$4 -> 37700
C27: Higher Threshold | D27: ='Parameters_Inc Calcs'!$C$5 -> 50270 | E27: Higher Threshold | F27: ='Parameters_Inc Calcs'!$C$5 -> 50270 | I27: Dividend Income Tax Band Apportionment | P27: Dividend Income Tax Band Apportionment
C28: Higher Rate Band | D28: ='Parameters_Inc Calcs'!$C$7 -> 87440 | E28: Higher Rate Band | F28: ='Parameters_Inc Calcs'!$C$7 -> 87440 | J28: Allowances | K28: Still to tax | L28: Used | M28: Unused | Q28: Allowances | R28: Still to tax | S28: Used | T28: Unused | W28: Before | X28: After | Y28: Amount | Z28: Rate | AA28: Add Tax
C29: Additional Threshold | D29: ='Parameters_Inc Calcs'!$C$8 -> 125140 | E29: Additional Threshold | F29: ='Parameters_Inc Calcs'!$C$8 -> 125140 | I29: Dividend Allowance | J29: =D42 -> 500 | K29: =D11 -> 0 | L29: =MIN(J29,K29) -> 0 | M29: =MAX(0,J29-L29) -> 500 | N29: Higher Rate Adjustment for PSA and SRS Bands | P29: Dividend Allowance | Q29: =$D$42 -> 500 | R29: =F11+F13 -> 0 | S29: =MIN(Q29,R29) -> 0 | T29: =MAX(0,Q29-S29) -> 500 | U29: Higher Rate Adjustment for PSA and SRS Bands | W29: =L29*Z29 -> 0 | X29: =S29*Z29 -> 0 | Y29: =S29-L29 -> 0 | Z29: 0 | AA29: =Y29*Z29 -> 0
I30: Personal Allowance | J30: =M20 -> 12570 | K30: =MAX(0,K29-L29) -> 0 | L30: =MIN(J30,K30) -> 0 | M30: =MAX(0,J30-L30) -> 12570 | P30: Personal Allowance | Q30: =T20 -> 12570 | R30: =MAX(0,R29-S29) -> 0 | S30: =MIN(Q30,R30) -> 0 | T30: =MAX(0,Q30-S30) -> 12570 | W30: =L30*Z30 -> 0 | X30: =S30*Z30 -> 0 | Y30: =S30-L30 -> 0 | Z30: 0 | AA30: =Y30*Z30 -> 0
C31: PA standard | D31: ='Parameters_Inc Calcs'!$C$2 -> 12570 | E31: PA standard | F31: ='Parameters_Inc Calcs'!$C$2 -> 12570 | I31: Basic Rate | J31: =MAX(0,M21-L29) -> 37700 | K31: =MAX(0,K30-L30) -> 0 | L31: =MIN(J31,K31) -> 0 | M31: =MAX(0,J31-L31) -> 37700 | P31: Basic Rate | Q31: =MAX(0,T21-S29) -> 37700 | R31: =MAX(0,R30-S30) -> 0 | S31: =MIN(Q31,R31) -> 0 | T31: =MAX(0,Q31-S31) -> 37700 | W31: =L31*Z31 -> 0 | X31: =S31*Z31 -> 0 | Y31: =S31-L31 -> 0 | Z31: ='Parameters_Inc Calcs'!D4 -> 0.0875 | AA31: =Y31*Z31 -> 0
I32: Higher Rate | J32: =M22-N32 -> 87440 | K32: =MAX(0,K31-L31) -> 0 | L32: =MIN(J32,K32) -> 0 | M32: =MAX(0,J32-L32) -> 87440 | N32: =MIN(M22,MAX(L29-M21,0)) -> 0 | P32: Higher Rate | Q32: =T22-U32 -> 87440 | R32: =MAX(0,R31-S31) -> 0 | S32: =MIN(Q32,R32) -> 0 | T32: =MAX(0,Q32-S32) -> 87440 | U32: =MIN(T22,MAX(S29-T21,0)) -> 0 | W32: =L32*Z32 -> 0 | X32: =S32*Z32 -> 0 | Y32: =S32-L32 -> 0 | Z32: ='Parameters_Inc Calcs'!D5 -> 0.3375 | AA32: =Y32*Z32 -> 0
C33: PSA Basic | D33: ='Parameters_Inc Calcs'!$C$9 -> 1000 | E33: PSA Basic | F33: ='Parameters_Inc Calcs'!$C$9 -> 1000 | I33: Additional Rate | K33: =MAX(0,K32-L32) -> 0 | L33: =MIN(J33,K33) -> 0 | M33: NA | P33: Additional Rate | R33: =MAX(0,R32-S32) -> 0 | S33: =MIN(Q33,R33) -> 0 | T33: NA | W33: =L33*Z33 -> 0 | X33: =S33*Z33 -> 0 | Y33: =S33-L33 -> 0 | Z33: ='Parameters_Inc Calcs'!D8 -> 0.3935 | AA33: =Y33*Z33 -> 0
C34: PSA Higher | D34: ='Parameters_Inc Calcs'!$C$10 -> 500 | E34: PSA Higher | F34: ='Parameters_Inc Calcs'!$C$10 -> 500 | I34: Nil Rate available | J34: =J29+J30 -> 13070 | P34: Nil Rate available | Q34: =Q29+Q30 -> 13070 | W34: =SUM(W29:W33) -> 0 | X34: =SUM(X29:X33) -> 0 | Y34: =SUM(Y29:Y33) -> 0 | AA34: =SUM(AA29:AA33) -> 0 | AC34: External Tax Rate
C35: PSA Add | D35: ='Parameters_Inc Calcs'!$C$11 -> 0 | E35: PSA Add | F35: ='Parameters_Inc Calcs'!$C$11 -> 0
I36: Capital Gains Tax Band Apportionment | P36: Capital Gains Tax Band Apportionment | W36: Before | X36: After | Y36: Amount | Z36: Rate | AA36: Add Tax | AC36: Growth | AD36: =Y24+Y34+Y40 -> 0
C37: Starting Rate for Savings | D37: ='Parameters_Inc Calcs'!C12 -> 5000 | E37: Starting Rate for Savings | F37: ='Parameters_Inc Calcs'!C12 -> 5000 | I37: Annual Exemption | J37: =D43 -> 3000 | K37: 0 | L37: =MIN(J37,K37) -> 0 | M37: =MAX(0,J37-L37) -> 3000 | P37: Annual Exemption | Q37: =D43 -> 3000 | R37: =IF(C3="Yes",C6,F16) -> 0 | S37: =MIN(Q37,R37) -> 0 | T37: =MAX(0,Q37-S37) -> 3000 | W37: =L37*Z37 -> 0 | X37: =S37*Z37 -> 0 | Y37: =S37-L37 -> 0 | Z37: 0 | AA37: =Y37*Z37 -> 0 | AC37: Tax inc CGT | AD37: =AA40+AA34+AA24 -> 0
C38: Available | D38: =MAX(0,MIN(D37,(D22+D37)-D9)) -> 5000 | E38: Available | F38: =MAX(0,MIN(F37,(F22+F37)-F9)) -> 5000 | I38: Basic Rate | J38: =M31 -> 37700 | K38: =MAX(0,K37-L37) -> 0 | L38: =MIN(J38,K38) -> 0 | M38: 37700 | P38: Basic Rate | Q38: =T31 -> 37700 | R38: =MAX(0,R37-S37) -> 0 | S38: =MIN(Q38,R38) -> 0 | T38: =MAX(0,Q38-S38) -> 37700 | W38: =L38*Z38 -> 0 | X38: =S38*Z38 -> 0 | Y38: =S38-L38 -> 0 | Z38: ='Parameters_Inc Calcs'!F4 -> 0.1 | AA38: =Y38*Z38 -> 0 | AC38: Tax Exc CGT | AD38: =AD22 -> 0
I39: Higher Rate | K39: =K38-L38 -> 0 | L39: =MIN(J39,K39) -> 0 | M39: 0 | P39: Higher Rate | R39: =R38-S38 -> 0 | S39: =MIN(Q39,R39) -> 0 | T39: 0 | W39: =L39*Z39 -> 0 | X39: =S39*Z39 -> 0 | Y39: =S39-L39 -> 0 | Z39: ='Parameters_Inc Calcs'!F5 -> 0.2 | AA39: =Y39*Z39 -> 0
C40: PSA | D40: =IF(D14>D29,D35,IF(D14>D27,D34,D33)) -> 1000 | E40: PSA | F40: =IF(F14>F29,F35,IF(F14>F27,F34,F33)) -> 1000 | I40: Nil Rate available | J40: =J37 -> 3000 | P40: Nil Rate available | Q40: =Q37 -> 3000 | W40: =SUM(W37:W39) -> 0 | X40: =SUM(X37:X39) -> 0 | Y40: =SUM(Y37:Y39) -> 0 | AA40: =SUM(AA37:AA39) -> 0 | AC40: Inc CGT rate | AD40: =AD37/AD36 -> 
AC41: Exc CGT rate | AD41: =AD38/AD36 -> 
C42: Div All | D42: ='Parameters_Inc Calcs'!C17 -> 500
C43: CGT All | D43: ='Parameters_Inc Calcs'!D17 -> 3000

Sheet Yr 9 (hidden)
I1: Before | P1: AFTER
B2: Year | C2: 9 | E2: Amber needs amended when new sheet created | I2: Allowances: | P2: Allowances:
B3: Final Year | C3: =IF(C2=Inputs!C5,"Yes","No") -> No | I3: Pers_Allow_Adj | P3: Pers_Allow_Adj
B4: After Final Year | C4: =AND(C2>Inputs!C5) -> TRUE | I4: Tot_Pers_Allow | J4: =D22 -> 12570 | P4: Tot_Pers_Allow | Q4: =F22 -> 12570
B5: Investment | C5: =CGT!O12 -> 0 | I5: Pers_Sav_Allow | J5: =D40 -> 1000 | P5: Pers_Sav_Allow | Q5: =F40 -> 1000
B6: Cum Gain | C6: =CGT!O16 -> 0
B8: Factor | C8: Before | E8: After | I8: Non Savings Income Apportionment | P8: Non Savings Income Apportionment
B9: =1+Inputs!E11 -> 1 | C9: NSND | D9: =IF(C4=TRUE,0,IF(OR($C$3="Yes",$C$4=TRUE),Inputs!L11,'Yr 8'!D9*B9)) -> 0 | E9: Total Income | F9: =IF(C3="Yes",Inputs!L11,D9) -> 0
B10: =1+Inputs!E12 -> 1 | C10: Savings | D10: =IF(C4=TRUE,0,IF(OR($C$3="Yes",$C$4=TRUE),Inputs!L12,'Yr 8'!D10*B10)) -> 0 | E10: Savings | F10: =IF(C3="Yes",Inputs!L12,D10) -> 0 | J10: Allowances | K10: Still to tax | L10: Used | M10: Unused | Q10: Allowances | R10: Still to tax | S10: Used | T10: Unused | W10: Before | X10: After | Y10: Amount | Z10: Rate | AA10: Add Tax
B11: =1+Inputs!E13 -> 1 | C11: Divi | D11: =IF(C4=TRUE,0,IF(OR($C$3="Yes",$C$4=TRUE),Inputs!L13,'Yr 8'!D11*B11)) -> 0 | E11: Divi | F11: =IF(C3="Yes",Inputs!L13,D11) -> 0 | I11: Personal Allowance | J11: =J4 -> 12570 | K11: =D9 -> 0 | L11: =MIN(J11,K11) -> 0 | M11: =MAX(0,J11-L11) -> 12570 | P11: Personal Allowance | Q11: =Q4 -> 12570 | R11: =K11 -> 0 | S11: =MIN(Q11,R11) -> 0 | T11: =MAX(0,Q11-S11) -> 12570 | W11: =L11*Z11 -> 0 | X11: =S11*Z11 -> 0 | Y11: =S11-L11 -> 0 | Z11: 0 | AA11: =Y11*Z11 -> 0
B12: =Inputs!L4 -> 0 | E12: New Savings | F12: =IF(C4=TRUE,0,C5*B12) -> 0 | I12: Basic Rate | J12: =$D$26 -> 37700 | K12: =MAX(0,K11-L11) -> 0 | L12: =MIN(J12,K12) -> 0 | M12: =MAX(0,J12-L12) -> 37700 | P12: Basic Rate | Q12: =$F$26 -> 37700 | R12: =MAX(0,R11-S11) -> 0 | S12: =MIN(Q12,R12) -> 0 | T12: =MAX(0,Q12-S12) -> 37700 | W12: =L12*Z12 -> 0 | X12: =S12*Z12 -> 0 | Y12: =S12-L12 -> 0 | Z12: ='Parameters_Inc Calcs'!E4 -> 0.2 | AA12: =Y12*Z12 -> 0
B13: =Inputs!L5 -> 0 | E13: New Divi | F13: =IF(C4=TRUE,0,C5*B13) -> 0 | I13: Higher Rate | J13: =$D$28 -> 87440 | K13: =MAX(0,K12-L12) -> 0 | L13: =MIN(J13,K13) -> 0 | M13: =MAX(0,J13-L13) -> 87440 | P13: Higher Rate | Q13: =$F$28 -> 87440 | R13: =MAX(0,R12-S12) -> 0 | S13: =MIN(Q13,R13) -> 0 | T13: =MAX(0,Q13-S13) -> 87440 | W13: =L13*Z13 -> 0 | X13: =S13*Z13 -> 0 | Y13: =S13-L13 -> 0 | Z13: ='Parameters_Inc Calcs'!E5 -> 0.4 | AA13: =Y13*Z13 -> 0
C14: ANI | D14: =SUM(D9:D13) -> 0 | E14: ANI | F14: =SUM(F9:F13) -> 0 | I14: Additional Rate | K14: =MAX(0,K13-L13) -> 0 | L14: =K14 -> 0 | M14: NA | P14: Additional Rate | R14: =MAX(0,R13-S13) -> 0 | S14: =R14 -> 0 | T14: NA | W14: =L14*Z14 -> 0 | X14: =S14*Z14 -> 0 | Y14: =S14-L14 -> 0 | Z14: ='Parameters_Inc Calcs'!E8 -> 0.45 | AA14: =Y14*Z14 -> 0
W15: =SUM(W11:W14) -> 0 | X15: =SUM(X11:X14) -> 0 | AA15: =SUM(AA11:AA14) -> 0
E16: New Gain | F16: =CGT!O15 -> 0 | I16: Savings Income Tax Band Apportionment | P16: Savings Income Tax Band Apportionment
J17: Allowances | K17: Still to tax | L17: Used | M17: Unused | Q17: Allowances | R17: Still to tax | S17: Used | T17: Unused | W17: Before | X17: After | Y17: Amount | Z17: Rate | AA17: Add Tax
C18: ANI Limit | D18: ='Parameters_Inc Calcs'!$C$3 -> 100000 | E18: ANI Limit | F18: ='Parameters_Inc Calcs'!$C$3 -> 100000 | I18: Starting Rate | J18: =$D$38 -> 5000 | K18: =D10 -> 0 | L18: =MIN(J18,K18) -> 0 | M18: =MAX(0,J18-L18) -> 5000 | P18: Starting Rate | Q18: =$F$38 -> 5000 | R18: =F10+F12 -> 0 | S18: =MIN(Q18,R18) -> 0 | T18: =MAX(0,Q18-S18) -> 5000 | W18: =L18*Z18 -> 0 | X18: =S18*Z18 -> 0 | Y18: =S18-L18 -> 0 | Z18: 0 | AA18: =Y18*Z18 -> 0
C19: ANI Excess | D19: =MAX(0,D14-D18) -> 0 | E19: ANI Excess | F19: =MAX(0,F14-F18) -> 0 | I19: Personal Savings Allowance | J19: =D40 -> 1000 | K19: =MAX(0,K18-L18) -> 0 | L19: 0 | M19: =MAX(0,J19-L19) -> 1000 | N19: Higher Rate Adjustment for PSA and SRS Bands | P19: Personal Savings Allowance | Q19: =$F$40 -> 1000 | R19: =MAX(0,R18-S18) -> 0 | S19: 0 | T19: =MAX(0,Q19-S19) -> 1000 | U19: Higher Rate Adjustment for PSA and SRS Bands | W19: 0 | X19: 0 | Y19: 0 | Z19: 0 | AA19: 0
C20: PA adjustment | D20: =D19/2 -> 0 | E20: PA adjustment | F20: =F19/2 -> 0 | I20: Personal Allowance | J20: =M11 -> 12570 | K20: =MAX(0,K19-L19) -> 0 | L20: 0 | M20: =MAX(0,J20-L20) -> 12570 | P20: Personal Allowance | Q20: =T11 -> 12570 | R20: =MAX(0,R19-S19) -> 0 | S20: 0 | T20: =MAX(0,Q20-S20) -> 12570 | W20: 0 | X20: 0 | Y20: 0 | Z20: 0 | AA20: 0
I21: Basic Rate | J21: =MAX(0,M12-SUM(L18:L19)) -> 37700 | K21: =MAX(0,K20-L20) -> 0 | L21: 0 | M21: =MAX(0,J21-L21) -> 37700 | P21: Basic Rate | Q21: =MAX(0,T12-SUM(S18:S19)) -> 37700 | R21: =MAX(0,R20-S20) -> 0 | S21: 0 | T21: =MAX(0,Q21-S21) -> 37700 | W21: 0 | X21: 0 | Y21: 0 | Z21: =Z12 -> 0.2 | AA21: 0 | AC21: Investment income | AD21: =Y24+Y34 -> 0
C22: Personal Allowance | D22: =MAX(0,D31-D20) -> 12570 | E22: Personal Allowance | F22: =MAX(0,F31-F20) -> 12570 | I22: Higher Rate | J22: =M13-N22 -> 87440 | K22: =MAX(0,K21-L21) -> 0 | L22: 0 | M22: =MAX(0,J22-L22) -> 87440 | N22: =MIN(M13,MAX(L19-M12,0)) -> 0 | P22: Higher Rate | Q22: =T13-U22 -> 87440 | R22: =MAX(0,R21-S21) -> 0 | S22: 0 | T22: =MAX(0,Q22-S22) -> 87440 | U22: =MIN(T13,MAX(S19-T12,0)) -> 0 | W22: 0 | X22: 0 | Y22: 0 | Z22: =Z13 -> 0.4 | AA22: 0 | AC22: Tax | AD22: =AA15+AA24+AA34 -> 0
I23: Additional Rate | K23: =MAX(0,K22-L22) -> 0 | L23: 0 | M23: NA | P23: Additional Rate | R23: =MAX(0,R22-S22) -> 0 | S23: 0 | T23: NA | W23: 0 | X23: 0 | Y23: 0 | Z23: =Z14 -> 0.45 | AA23: 0 | AC23: Net Income Reinvested | AD23: =MAX(0,AD21-AD22) -> 0
C24: Taxable Income | D24: =D9-D22 -> -12570 | E24: Taxable Income | F24: =F9-F22 -> -12570 | I24: Nil Rate available | J24: =SUM(J18:J20) -> 18570 | P24: Nil Rate available | Q24: =SUM(Q18:Q20) -> 18570 | W24: =SUM(W18:W23) -> 0 | X24: =SUM(X18:X23) -> 0 | Y24: =SUM(Y18:Y23) -> 0 | AA24: =SUM(AA18:AA23) -> 0 | AD24: =AD22/AD21 -> 
C26: Basic Rate Band | D26: ='Parameters_Inc Calcs'!$C$4 -> 37700 | E26: Basic Rate Band | F26: ='Parameters_Inc Calcs'!$C$4 -> 37700
C27: Higher Threshold | D27: ='Parameters_Inc Calcs'!$C$5 -> 50270 | E27: Higher Threshold | F27: ='Parameters_Inc Calcs'!$C$5 -> 50270 | I27: Dividend Income Tax Band Apportionment | P27: Dividend Income Tax Band Apportionment
C28: Higher Rate Band | D28: ='Parameters_Inc Calcs'!$C$7 -> 87440 | E28: Higher Rate Band | F28: ='Parameters_Inc Calcs'!$C$7 -> 87440 | J28: Allowances | K28: Still to tax | L28: Used | M28: Unused | Q28: Allowances | R28: Still to tax | S28: Used | T28: Unused | W28: Before | X28: After | Y28: Amount | Z28: Rate | AA28: Add Tax
C29: Additional Threshold | D29: ='Parameters_Inc Calcs'!$C$8 -> 125140 | E29: Additional Threshold | F29: ='Parameters_Inc Calcs'!$C$8 -> 125140 | I29: Dividend Allowance | J29: =D42 -> 500 | K29: =D11 -> 0 | L29: =MIN(J29,K29) -> 0 | M29: =MAX(0,J29-L29) -> 500 | N29: Higher Rate Adjustment for PSA and SRS Bands | P29: Dividend Allowance | Q29: =$D$42 -> 500 | R29: =F11+F13 -> 0 | S29: =MIN(Q29,R29) -> 0 | T29: =MAX(0,Q29-S29) -> 500 | U29: Higher Rate Adjustment for PSA and SRS Bands | W29: =L29*Z29 -> 0 | X29: =S29*Z29 -> 0 | Y29: =S29-L29 -> 0 | Z29: 0 | AA29: =Y29*Z29 -> 0
I30: Personal Allowance | J30: =M20 -> 12570 | K30: =MAX(0,K29-L29) -> 0 | L30: =MIN(J30,K30) -> 0 | M30: =MAX(0,J30-L30) -> 12570 | P30: Personal Allowance | Q30: =T20 -> 12570 | R30: =MAX(0,R29-S29) -> 0 | S30: =MIN(Q30,R30) -> 0 | T30: =MAX(0,Q30-S30) -> 12570 | W30: =L30*Z30 -> 0 | X30: =S30*Z30 -> 0 | Y30: =S30-L30 -> 0 | Z30: 0 | AA30: =Y30*Z30 -> 0
C31: PA standard | D31: ='Parameters_Inc Calcs'!$C$2 -> 12570 | E31: PA standard | F31: ='Parameters_Inc Calcs'!$C$2 -> 12570 | I31: Basic Rate | J31: =MAX(0,M21-L29) -> 37700 | K31: =MAX(0,K30-L30) -> 0 | L31: =MIN(J31,K31) -> 0 | M31: =MAX(0,J31-L31) -> 37700 | P31: Basic Rate | Q31: =MAX(0,T21-S29) -> 37700 | R31: =MAX(0,R30-S30) -> 0 | S31: =MIN(Q31,R31) -> 0 | T31: =MAX(0,Q31-S31) -> 37700 | W31: =L31*Z31 -> 0 | X31: =S31*Z31 -> 0 | Y31: =S31-L31 -> 0 | Z31: ='Parameters_Inc Calcs'!D4 -> 0.0875 | AA31: =Y31*Z31 -> 0
I32: Higher Rate | J32: =M22-N32 -> 87440 | K32: =MAX(0,K31-L31) -> 0 | L32: =MIN(J32,K32) -> 0 | M32: =MAX(0,J32-L32) -> 87440 | N32: =MIN(M22,MAX(L29-M21,0)) -> 0 | P32: Higher Rate | Q32: =T22-U32 -> 87440 | R32: =MAX(0,R31-S31) -> 0 | S32: =MIN(Q32,R32) -> 0 | T32: =MAX(0,Q32-S32) -> 87440 | U32: =MIN(T22,MAX(S29-T21,0)) -> 0 | W32: =L32*Z32 -> 0 | X32: =S32*Z32 -> 0 | Y32: =S32-L32 -> 0 | Z32: ='Parameters_Inc Calcs'!D5 -> 0.3375 | AA32: =Y32*Z32 -> 0
C33: PSA Basic | D33: ='Parameters_Inc Calcs'!$C$9 -> 1000 | E33: PSA Basic | F33: ='Parameters_Inc Calcs'!$C$9 -> 1000 | I33: Additional Rate | K33: =MAX(0,K32-L32) -> 0 | L33: =MIN(J33,K33) -> 0 | M33: NA | P33: Additional Rate | R33: =MAX(0,R32-S32) -> 0 | S33: =MIN(Q33,R33) -> 0 | T33: NA | W33: =L33*Z33 -> 0 | X33: =S33*Z33 -> 0 | Y33: =S33-L33 -> 0 | Z33: ='Parameters_Inc Calcs'!D8 -> 0.3935 | AA33: =Y33*Z33 -> 0
C34: PSA Higher | D34: ='Parameters_Inc Calcs'!$C$10 -> 500 | E34: PSA Higher | F34: ='Parameters_Inc Calcs'!$C$10 -> 500 | I34: Nil Rate available | J34: =J29+J30 -> 13070 | P34: Nil Rate available | Q34: =Q29+Q30 -> 13070 | W34: =SUM(W29:W33) -> 0 | X34: =SUM(X29:X33) -> 0 | Y34: =SUM(Y29:Y33) -> 0 | AA34: =SUM(AA29:AA33) -> 0 | AC34: External Tax Rate
C35: PSA Add | D35: ='Parameters_Inc Calcs'!$C$11 -> 0 | E35: PSA Add | F35: ='Parameters_Inc Calcs'!$C$11 -> 0
I36: Capital Gains Tax Band Apportionment | P36: Capital Gains Tax Band Apportionment | W36: Before | X36: After | Y36: Amount | Z36: Rate | AA36: Add Tax | AC36: Growth | AD36: =Y24+Y34+Y40 -> 0
C37: Starting Rate for Savings | D37: ='Parameters_Inc Calcs'!C12 -> 5000 | E37: Starting Rate for Savings | F37: ='Parameters_Inc Calcs'!C12 -> 5000 | I37: Annual Exemption | J37: =D43 -> 3000 | K37: 0 | L37: =MIN(J37,K37) -> 0 | M37: =MAX(0,J37-L37) -> 3000 | P37: Annual Exemption | Q37: =D43 -> 3000 | R37: =IF(C3="Yes",C6,F16) -> 0 | S37: =MIN(Q37,R37) -> 0 | T37: =MAX(0,Q37-S37) -> 3000 | W37: =L37*Z37 -> 0 | X37: =S37*Z37 -> 0 | Y37: =S37-L37 -> 0 | Z37: 0 | AA37: =Y37*Z37 -> 0 | AC37: Tax inc CGT | AD37: =AA40+AA34+AA24 -> 0
C38: Available | D38: =MAX(0,MIN(D37,(D22+D37)-D9)) -> 5000 | E38: Available | F38: =MAX(0,MIN(F37,(F22+F37)-F9)) -> 5000 | I38: Basic Rate | J38: =M31 -> 37700 | K38: =MAX(0,K37-L37) -> 0 | L38: =MIN(J38,K38) -> 0 | M38: 37700 | P38: Basic Rate | Q38: =T31 -> 37700 | R38: =MAX(0,R37-S37) -> 0 | S38: =MIN(Q38,R38) -> 0 | T38: =MAX(0,Q38-S38) -> 37700 | W38: =L38*Z38 -> 0 | X38: =S38*Z38 -> 0 | Y38: =S38-L38 -> 0 | Z38: ='Parameters_Inc Calcs'!F4 -> 0.1 | AA38: =Y38*Z38 -> 0 | AC38: Tax Exc CGT | AD38: =AD22 -> 0
I39: Higher Rate | K39: =K38-L38 -> 0 | L39: =MIN(J39,K39) -> 0 | M39: 0 | P39: Higher Rate | R39: =R38-S38 -> 0 | S39: =MIN(Q39,R39) -> 0 | T39: 0 | W39: =L39*Z39 -> 0 | X39: =S39*Z39 -> 0 | Y39: =S39-L39 -> 0 | Z39: ='Parameters_Inc Calcs'!F5 -> 0.2 | AA39: =Y39*Z39 -> 0
C40: PSA | D40: =IF(D14>D29,D35,IF(D14>D27,D34,D33)) -> 1000 | E40: PSA | F40: =IF(F14>F29,F35,IF(F14>F27,F34,F33)) -> 1000 | I40: Nil Rate available | J40: =J37 -> 3000 | P40: Nil Rate available | Q40: =Q37 -> 3000 | W40: =SUM(W37:W39) -> 0 | X40: =SUM(X37:X39) -> 0 | Y40: =SUM(Y37:Y39) -> 0 | AA40: =SUM(AA37:AA39) -> 0 | AC40: Inc CGT rate | AD40: =AD37/AD36 -> 
AC41: Exc CGT rate | AD41: =AD38/AD36 -> 
C42: Div All | D42: ='Parameters_Inc Calcs'!C17 -> 500
C43: CGT All | D43: ='Parameters_Inc Calcs'!D17 -> 3000

Sheet Yr 10 (hidden)
I1: Before | P1: AFTER
B2: Year | C2: 10 | E2: Amber needs amended when new sheet created | I2: Allowances: | P2: Allowances:
B3: Final Year | C3: =IF(C2=Inputs!C5,"Yes","No") -> No | I3: Pers_Allow_Adj | P3: Pers_Allow_Adj
B4: After Final Year | C4: =AND(C2>Inputs!C5) -> TRUE | I4: Tot_Pers_Allow | J4: =D22 -> 12570 | P4: Tot_Pers_Allow | Q4: =F22 -> 12570
B5: Investment | C5: =CGT!P12 -> 0 | I5: Pers_Sav_Allow | J5: =D40 -> 1000 | P5: Pers_Sav_Allow | Q5: =F40 -> 1000
B6: Cum Gain | C6: =CGT!P16 -> 0
B8: Factor | C8: Before | E8: After | I8: Non Savings Income Apportionment | P8: Non Savings Income Apportionment
B9: =1+Inputs!E11 -> 1 | C9: NSND | D9: =IF(C4=TRUE,0,IF(OR($C$3="Yes",$C$4=TRUE),Inputs!L11,'Yr 9'!D9*B9)) -> 0 | E9: Total Income | F9: =IF(C3="Yes",Inputs!L11,D9) -> 0
B10: =1+Inputs!E12 -> 1 | C10: Savings | D10: =IF(C4=TRUE,0,IF(OR($C$3="Yes",$C$4=TRUE),Inputs!L12,'Yr 9'!D10*B10)) -> 0 | E10: Savings | F10: =IF(C3="Yes",Inputs!L12,D10) -> 0 | J10: Allowances | K10: Still to tax | L10: Used | M10: Unused | Q10: Allowances | R10: Still to tax | S10: Used | T10: Unused | W10: Before | X10: After | Y10: Amount | Z10: Rate | AA10: Add Tax
B11: =1+Inputs!E13 -> 1 | C11: Divi | D11: =IF(C4=TRUE,0,IF(OR($C$3="Yes",$C$4=TRUE),Inputs!L13,'Yr 9'!D11*B11)) -> 0 | E11: Divi | F11: =IF(C3="Yes",Inputs!L13,D11) -> 0 | I11: Personal Allowance | J11: =J4 -> 12570 | K11: =D9 -> 0 | L11: =MIN(J11,K11) -> 0 | M11: =MAX(0,J11-L11) -> 12570 | P11: Personal Allowance | Q11: =Q4 -> 12570 | R11: =K11 -> 0 | S11: =MIN(Q11,R11) -> 0 | T11: =MAX(0,Q11-S11) -> 12570 | W11: =L11*Z11 -> 0 | X11: =S11*Z11 -> 0 | Y11: =S11-L11 -> 0 | Z11: 0 | AA11: =Y11*Z11 -> 0
B12: =Inputs!L4 -> 0 | E12: New Savings | F12: =IF(C4=TRUE,0,C5*B12) -> 0 | I12: Basic Rate | J12: =$D$26 -> 37700 | K12: =MAX(0,K11-L11) -> 0 | L12: =MIN(J12,K12) -> 0 | M12: =MAX(0,J12-L12) -> 37700 | P12: Basic Rate | Q12: =$F$26 -> 37700 | R12: =MAX(0,R11-S11) -> 0 | S12: =MIN(Q12,R12) -> 0 | T12: =MAX(0,Q12-S12) -> 37700 | W12: =L12*Z12 -> 0 | X12: =S12*Z12 -> 0 | Y12: =S12-L12 -> 0 | Z12: ='Parameters_Inc Calcs'!E4 -> 0.2 | AA12: =Y12*Z12 -> 0
B13: =Inputs!L5 -> 0 | E13: New Divi | F13: =IF(C4=TRUE,0,C5*B13) -> 0 | I13: Higher Rate | J13: =$D$28 -> 87440 | K13: =MAX(0,K12-L12) -> 0 | L13: =MIN(J13,K13) -> 0 | M13: =MAX(0,J13-L13) -> 87440 | P13: Higher Rate | Q13: =$F$28 -> 87440 | R13: =MAX(0,R12-S12) -> 0 | S13: =MIN(Q13,R13) -> 0 | T13: =MAX(0,Q13-S13) -> 87440 | W13: =L13*Z13 -> 0 | X13: =S13*Z13 -> 0 | Y13: =S13-L13 -> 0 | Z13: ='Parameters_Inc Calcs'!E5 -> 0.4 | AA13: =Y13*Z13 -> 0
C14: ANI | D14: =SUM(D9:D13) -> 0 | E14: ANI | F14: =SUM(F9:F13) -> 0 | I14: Additional Rate | K14: =MAX(0,K13-L13) -> 0 | L14: =K14 -> 0 | M14: NA | P14: Additional Rate | R14: =MAX(0,R13-S13) -> 0 | S14: =R14 -> 0 | T14: NA | W14: =L14*Z14 -> 0 | X14: =S14*Z14 -> 0 | Y14: =S14-L14 -> 0 | Z14: ='Parameters_Inc Calcs'!E8 -> 0.45 | AA14: =Y14*Z14 -> 0
W15: =SUM(W11:W14) -> 0 | X15: =SUM(X11:X14) -> 0 | AA15: =SUM(AA11:AA14) -> 0
E16: New Gain | F16: =CGT!P15 -> 0 | I16: Savings Income Tax Band Apportionment | P16: Savings Income Tax Band Apportionment
J17: Allowances | K17: Still to tax | L17: Used | M17: Unused | Q17: Allowances | R17: Still to tax | S17: Used | T17: Unused | W17: Before | X17: After | Y17: Amount | Z17: Rate | AA17: Add Tax
C18: ANI Limit | D18: ='Parameters_Inc Calcs'!$C$3 -> 100000 | E18: ANI Limit | F18: ='Parameters_Inc Calcs'!$C$3 -> 100000 | I18: Starting Rate | J18: =$D$38 -> 5000 | K18: =D10 -> 0 | L18: =MIN(J18,K18) -> 0 | M18: =MAX(0,J18-L18) -> 5000 | P18: Starting Rate | Q18: =$F$38 -> 5000 | R18: =F10+F12 -> 0 | S18: =MIN(Q18,R18) -> 0 | T18: =MAX(0,Q18-S18) -> 5000 | W18: =L18*Z18 -> 0 | X18: =S18*Z18 -> 0 | Y18: =S18-L18 -> 0 | Z18: 0 | AA18: =Y18*Z18 -> 0
C19: ANI Excess | D19: =MAX(0,D14-D18) -> 0 | E19: ANI Excess | F19: =MAX(0,F14-F18) -> 0 | I19: Personal Savings Allowance | J19: =D40 -> 1000 | K19: =MAX(0,K18-L18) -> 0 | L19: 0 | M19: =MAX(0,J19-L19) -> 1000 | N19: Higher Rate Adjustment for PSA and SRS Bands | P19: Personal Savings Allowance | Q19: =$F$40 -> 1000 | R19: =MAX(0,R18-S18) -> 0 | S19: 0 | T19: =MAX(0,Q19-S19) -> 1000 | U19: Higher Rate Adjustment for PSA and SRS Bands | W19: 0 | X19: 0 | Y19: 0 | Z19: 0 | AA19: 0
C20: PA adjustment | D20: =D19/2 -> 0 | E20: PA adjustment | F20: =F19/2 -> 0 | I20: Personal Allowance | J20: =M11 -> 12570 | K20: =MAX(0,K19-L19) -> 0 | L20: 0 | M20: =MAX(0,J20-L20) -> 12570 | P20: Personal Allowance | Q20: =T11 -> 12570 | R20: =MAX(0,R19-S19) -> 0 | S20: 0 | T20: =MAX(0,Q20-S20) -> 12570 | W20: 0 | X20: 0 | Y20: 0 | Z20: 0 | AA20: 0
I21: Basic Rate | J21: =MAX(0,M12-SUM(L18:L19)) -> 37700 | K21: =MAX(0,K20-L20) -> 0 | L21: 0 | M21: =MAX(0,J21-L21) -> 37700 | P21: Basic Rate | Q21: =MAX(0,T12-SUM(S18:S19)) -> 37700 | R21: =MAX(0,R20-S20) -> 0 | S21: 0 | T21: =MAX(0,Q21-S21) -> 37700 | W21: 0 | X21: 0 | Y21: 0 | Z21: =Z12 -> 0.2 | AA21: 0 | AC21: Investment income | AD21: =Y24+Y34 -> 0
C22: Personal Allowance | D22: =MAX(0,D31-D20) -> 12570 | E22: Personal Allowance | F22: =MAX(0,F31-F20) -> 12570 | I22: Higher Rate | J22: =M13-N22 -> 87440 | K22: =MAX(0,K21-L21) -> 0 | L22: 0 | M22: =MAX(0,J22-L22) -> 87440 | N22: =MIN(M13,MAX(L19-M12,0)) -> 0 | P22: Higher Rate | Q22: =T13-U22 -> 87440 | R22: =MAX(0,R21-S21) -> 0 | S22: 0 | T22: =MAX(0,Q22-S22) -> 87440 | U22: =MIN(T13,MAX(S19-T12,0)) -> 0 | W22: 0 | X22: 0 | Y22: 0 | Z22: =Z13 -> 0.4 | AA22: 0 | AC22: Tax | AD22: =AA15+AA24+AA34 -> 0
I23: Additional Rate | K23: =MAX(0,K22-L22) -> 0 | L23: 0 | M23: NA | P23: Additional Rate | R23: =MAX(0,R22-S22) -> 0 | S23: 0 | T23: NA | W23: =L23*Z23 -> 0 | X23: 0 | Y23: 0 | Z23: =Z14 -> 0.45 | AA23: 0 | AC23: Net Income Reinvested | AD23: =MAX(0,AD21-AD22) -> 0
C24: Taxable Income | D24: =D9-D22 -> -12570 | E24: Taxable Income | F24: =F9-F22 -> -12570 | I24: Nil Rate available | J24: =SUM(J18:J20) -> 18570 | P24: Nil Rate available | Q24: =SUM(Q18:Q20) -> 18570 | W24: =SUM(W18:W23) -> 0 | X24: =SUM(X18:X23) -> 0 | Y24: =SUM(Y18:Y23) -> 0 | AA24: =SUM(AA18:AA23) -> 0 | AD24: =AD22/AD21 -> 
C26: Basic Rate Band | D26: ='Parameters_Inc Calcs'!$C$4 -> 37700 | E26: Basic Rate Band | F26: ='Parameters_Inc Calcs'!$C$4 -> 37700
C27: Higher Threshold | D27: ='Parameters_Inc Calcs'!$C$5 -> 50270 | E27: Higher Threshold | F27: ='Parameters_Inc Calcs'!$C$5 -> 50270 | I27: Dividend Income Tax Band Apportionment | P27: Dividend Income Tax Band Apportionment
C28: Higher Rate Band | D28: ='Parameters_Inc Calcs'!$C$7 -> 87440 | E28: Higher Rate Band | F28: ='Parameters_Inc Calcs'!$C$7 -> 87440 | J28: Allowances | K28: Still to tax | L28: Used | M28: Unused | Q28: Allowances | R28: Still to tax | S28: Used | T28: Unused | W28: Before | X28: After | Y28: Amount | Z28: Rate | AA28: Add Tax
C29: Additional Threshold | D29: ='Parameters_Inc Calcs'!$C$8 -> 125140 | E29: Additional Threshold | F29: ='Parameters_Inc Calcs'!$C$8 -> 125140 | I29: Dividend Allowance | J29: =D42 -> 500 | K29: =D11 -> 0 | L29: =MIN(J29,K29) -> 0 | M29: =MAX(0,J29-L29) -> 500 | N29: Higher Rate Adjustment for PSA and SRS Bands | P29: Dividend Allowance | Q29: =$D$42 -> 500 | R29: =F11+F13 -> 0 | S29: =MIN(Q29,R29) -> 0 | T29: =MAX(0,Q29-S29) -> 500 | U29: Higher Rate Adjustment for PSA and SRS Bands | W29: =L29*Z29 -> 0 | X29: =S29*Z29 -> 0 | Y29: =S29-L29 -> 0 | Z29: 0 | AA29: =Y29*Z29 -> 0
I30: Personal Allowance | J30: =M20 -> 12570 | K30: =MAX(0,K29-L29) -> 0 | L30: =MIN(J30,K30) -> 0 | M30: =MAX(0,J30-L30) -> 12570 | P30: Personal Allowance | Q30: =T20 -> 12570 | R30: =MAX(0,R29-S29) -> 0 | S30: =MIN(Q30,R30) -> 0 | T30: =MAX(0,Q30-S30) -> 12570 | W30: =L30*Z30 -> 0 | X30: =S30*Z30 -> 0 | Y30: =S30-L30 -> 0 | Z30: 0 | AA30: =Y30*Z30 -> 0
C31: PA standard | D31: ='Parameters_Inc Calcs'!$C$2 -> 12570 | E31: PA standard | F31: ='Parameters_Inc Calcs'!$C$2 -> 12570 | I31: Basic Rate | J31: =MAX(0,M21-L29) -> 37700 | K31: =MAX(0,K30-L30) -> 0 | L31: =MIN(J31,K31) -> 0 | M31: =MAX(0,J31-L31) -> 37700 | P31: Basic Rate | Q31: =MAX(0,T21-S29) -> 37700 | R31: =MAX(0,R30-S30) -> 0 | S31: =MIN(Q31,R31) -> 0 | T31: =MAX(0,Q31-S31) -> 37700 | W31: =L31*Z31 -> 0 | X31: =S31*Z31 -> 0 | Y31: =S31-L31 -> 0 | Z31: ='Parameters_Inc Calcs'!D4 -> 0.0875 | AA31: =Y31*Z31 -> 0
I32: Higher Rate | J32: =M22-N32 -> 87440 | K32: =MAX(0,K31-L31) -> 0 | L32: =MIN(J32,K32) -> 0 | M32: =MAX(0,J32-L32) -> 87440 | N32: =MIN(M22,MAX(L29-M21,0)) -> 0 | P32: Higher Rate | Q32: =T22-U32 -> 87440 | R32: =MAX(0,R31-S31) -> 0 | S32: =MIN(Q32,R32) -> 0 | T32: =MAX(0,Q32-S32) -> 87440 | U32: =MIN(T22,MAX(S29-T21,0)) -> 0 | W32: =L32*Z32 -> 0 | X32: =S32*Z32 -> 0 | Y32: =S32-L32 -> 0 | Z32: ='Parameters_Inc Calcs'!D5 -> 0.3375 | AA32: =Y32*Z32 -> 0
C33: PSA Basic | D33: ='Parameters_Inc Calcs'!$C$9 -> 1000 | E33: PSA Basic | F33: ='Parameters_Inc Calcs'!$C$9 -> 1000 | I33: Additional Rate | K33: =MAX(0,K32-L32) -> 0 | L33: =MIN(J33,K33) -> 0 | M33: NA | P33: Additional Rate | R33: =MAX(0,R32-S32) -> 0 | S33: =MIN(Q33,R33) -> 0 | T33: NA | W33: =L33*Z33 -> 0 | X33: =S33*Z33 -> 0 | Y33: =S33-L33 -> 0 | Z33: ='Parameters_Inc Calcs'!D8 -> 0.3935 | AA33: =Y33*Z33 -> 0
C34: PSA Higher | D34: ='Parameters_Inc Calcs'!$C$10 -> 500 | E34: PSA Higher | F34: ='Parameters_Inc Calcs'!$C$10 -> 500 | I34: Nil Rate available | J34: =J29+J30 -> 13070 | P34: Nil Rate available | Q34: =Q29+Q30 -> 13070 | W34: =SUM(W29:W33) -> 0 | X34: =SUM(X29:X33) -> 0 | Y34: =SUM(Y29:Y33) -> 0 | AA34: =SUM(AA29:AA33) -> 0 | AC34: External Tax Rate
C35: PSA Add | D35: ='Parameters_Inc Calcs'!$C$11 -> 0 | E35: PSA Add | F35: ='Parameters_Inc Calcs'!$C$11 -> 0
I36: Capital Gains Tax Band Apportionment | P36: Capital Gains Tax Band Apportionment | W36: Before | X36: After | Y36: Amount | Z36: Rate | AA36: Add Tax | AC36: Growth | AD36: =Y24+Y34+Y40 -> 0
C37: Starting Rate for Savings | D37: ='Parameters_Inc Calcs'!C12 -> 5000 | E37: Starting Rate for Savings | F37: ='Parameters_Inc Calcs'!C12 -> 5000 | I37: Annual Exemption | J37: =D43 -> 3000 | K37: 0 | L37: =MIN(J37,K37) -> 0 | M37: =MAX(0,J37-L37) -> 3000 | P37: Annual Exemption | Q37: =D43 -> 3000 | R37: =IF(C3="Yes",C6,F16) -> 0 | S37: =MIN(Q37,R37) -> 0 | T37: =MAX(0,Q37-S37) -> 3000 | W37: =L37*Z37 -> 0 | X37: =S37*Z37 -> 0 | Y37: =S37-L37 -> 0 | Z37: 0 | AA37: =Y37*Z37 -> 0 | AC37: Tax inc CGT | AD37: =AA40+AA34+AA24 -> 0
C38: Available | D38: =MAX(0,MIN(D37,(D22+D37)-D9)) -> 5000 | E38: Available | F38: =MAX(0,MIN(F37,(F22+F37)-F9)) -> 5000 | I38: Basic Rate | J38: =M31 -> 37700 | K38: =MAX(0,K37-L37) -> 0 | L38: =MIN(J38,K38) -> 0 | M38: 37700 | P38: Basic Rate | Q38: =T31 -> 37700 | R38: =MAX(0,R37-S37) -> 0 | S38: =MIN(Q38,R38) -> 0 | T38: =MAX(0,Q38-S38) -> 37700 | W38: =L38*Z38 -> 0 | X38: =S38*Z38 -> 0 | Y38: =S38-L38 -> 0 | Z38: ='Parameters_Inc Calcs'!F4 -> 0.1 | AA38: =Y38*Z38 -> 0 | AC38: Tax Exc CGT | AD38: =AD22 -> 0
I39: Higher Rate | K39: =K38-L38 -> 0 | L39: =MIN(J39,K39) -> 0 | M39: 0 | P39: Higher Rate | R39: =R38-S38 -> 0 | S39: =MIN(Q39,R39) -> 0 | T39: 0 | W39: =L39*Z39 -> 0 | X39: =S39*Z39 -> 0 | Y39: =S39-L39 -> 0 | Z39: ='Parameters_Inc Calcs'!F5 -> 0.2 | AA39: =Y39*Z39 -> 0
C40: PSA | D40: =IF(D14>D29,D35,IF(D14>D27,D34,D33)) -> 1000 | E40: PSA | F40: =IF(F14>F29,F35,IF(F14>F27,F34,F33)) -> 1000 | I40: Nil Rate available | J40: =J37 -> 3000 | P40: Nil Rate available | Q40: =Q37 -> 3000 | W40: =SUM(W37:W39) -> 0 | X40: =SUM(X37:X39) -> 0 | Y40: =SUM(Y37:Y39) -> 0 | AA40: =SUM(AA37:AA39) -> 0 | AC40: Inc CGT rate | AD40: =AD37/AD36 -> 
AC41: Exc CGT rate | AD41: =AD38/AD36 -> 
C42: Div All | D42: ='Parameters_Inc Calcs'!C17 -> 500
C43: CGT All | D43: ='Parameters_Inc Calcs'!D17 -> 3000

Sheet Income (hidden)
I2: Yr
I3: Savings Income | J3: Yr
I4: Amount | J4: 1 | K4: 2 | L4: 3 | M4: 4 | N4: 5 | O4: 6 | P4: 7 | Q4: 8 | R4: 9 | S4: 10 | T4: Total
I5: Existing | J5: ='Yr 1'!$D$10 -> 0 | K5: ='Yr 2'!$D$10 -> 0 | L5: ='Yr 3'!$D$10 -> 0 | M5: ='Yr 4'!$D$10 -> 0 | N5: ='Yr 5'!$D$10 -> 0 | O5: ='Yr 6'!$D$10 -> 0 | P5: ='Yr 7'!$D$10 -> 0 | Q5: ='Yr 10'!$D$10 -> 0 | R5: ='Yr 9'!$D$10 -> 0 | S5: ='Yr 10'!$D$10 -> 0 | T5: =SUM(J5:S5) -> 0
I6: New | J6: ='Yr 1'!$F$12 -> 0 | K6: ='Yr 2'!$F$12 -> 0 | L6: ='Yr 3'!$F$12 -> 0 | M6: ='Yr 4'!$F$12 -> 0 | N6: ='Yr 5'!$F$12 -> 0 | O6: ='Yr 6'!$F$12 -> 0 | P6: ='Yr 7'!$F$12 -> 0 | Q6: ='Yr 8'!$F$12 -> 0 | R6: ='Yr 9'!$F$12 -> 0 | S6: ='Yr 10'!$F$12 -> 0 | T6: =SUM(J6:S6) -> 0
I7: Total | J7: =SUM(J5:J6) -> 0 | K7: =SUM(K5:K6) -> 0 | L7: 0 | M7: 0 | N7: 0 | O7: 0 | P7: 0 | Q7: 0 | R7: 0 | S7: 0 | T7: 0
I8: Tax
I9: Existing | J9: ='Yr 1'!$W$24 -> 0 | K9: ='Yr 2'!$W$24 -> 0 | L9: ='Yr 3'!$W$24 -> 0 | M9: ='Yr 4'!$W$24 -> 0 | N9: ='Yr 5'!$W$24 -> 0 | O9: ='Yr 6'!$W$24 -> 0 | P9: ='Yr 7'!$W$24 -> 0 | Q9: ='Yr 8'!$W$24 -> 0 | R9: ='Yr 9'!$W$24 -> 0 | S9: ='Yr 10'!$W$24 -> 0 | T9: 0
I10: New | J10: ='Yr 1'!$AA$24 -> 0 | K10: ='Yr 2'!$AA$24 -> 0 | L10: ='Yr 3'!$AA$24 -> 0 | M10: ='Yr 4'!$AA$24 -> 0 | N10: ='Yr 5'!$AA$24 -> 0 | O10: ='Yr 6'!$AA$24 -> 0 | P10: ='Yr 7'!$AA$24 -> 0 | Q10: ='Yr 8'!$AA$24 -> 0 | R10: ='Yr 9'!$AA$24 -> 0 | S10: ='Yr 10'!$AA$24 -> 0 | T10: 0
I11: Total | J11: =SUM(J9:J10) -> 0 | K11: =SUM(K9:K10) -> 0 | L11: 0 | M11: 0 | N11: 0 | O11: 0 | P11: 0 | Q11: 0 | R11: 0 | S11: 0 | T11: 0
I13: Dividend Income
I14: Amount | V14: Investment Income
I15: Existing | J15: ='Yr 1'!$F$11 -> 0 | K15: ='Yr 2'!$F$11 -> 0 | L15: ='Yr 3'!$F$11 -> 0 | M15: ='Yr 4'!$F$11 -> 0 | N15: ='Yr 5'!$F$11 -> 0 | O15: ='Yr 6'!$F$11 -> 0 | P15: ='Yr 7'!$F$11 -> 0 | Q15: ='Yr 8'!$F$11 -> 0 | R15: ='Yr 9'!$F$11 -> 0 | S15: ='Yr 10'!$F$11 -> 0 | T15: 0
I16: New | J16: ='Yr 1'!$F$13 -> 0 | K16: ='Yr 2'!$F$13 -> 0 | L16: ='Yr 3'!$F$13 -> 0 | M16: ='Yr 4'!$F$13 -> 0 | N16: ='Yr 5'!$F$13 -> 0 | O16: ='Yr 6'!$F$13 -> 0 | P16: ='Yr 7'!$F$13 -> 0 | Q16: ='Yr 8'!$F$13 -> 0 | R16: ='Yr 9'!$F$13 -> 0 | S16: ='Yr 10'!$F$13 -> 0 | T16: 0 | W16: Amount | X16: Tax | Y16: Net
I17: Total | J17: =SUM(J15:J16) -> 0 | K17: =SUM(K15:K16) -> 0 | L17: 0 | M17: 0 | N17: 0 | O17: 0 | P17: 0 | Q17: 0 | R17: 0 | S17: 0 | T17: 0 | V17: Savings | W17: =T6 -> 0 | X17: =T10 -> 0 | Y17: =W17-X17 -> 0
I18: Tax | V18: Dividend | W18: =T16 -> 0 | X18: =T20 -> 0 | Y18: =W18-X18 -> 0
I19: Existing | J19: ='Yr 1'!$W$34 -> 0 | K19: ='Yr 2'!$W$34 -> 0 | L19: ='Yr 3'!$W$34 -> 0 | M19: ='Yr 4'!$W$34 -> 0 | N19: ='Yr 5'!$W$34 -> 0 | O19: ='Yr 6'!$W$34 -> 0 | P19: ='Yr 7'!$W$34 -> 0 | Q19: ='Yr 8'!$W$34 -> 0 | R19: ='Yr 9'!$W$34 -> 0 | S19: ='Yr 10'!$W$34 -> 0 | T19: 0 | V19: Total | W19: =SUM(W17:W18) -> 0 | X19: =SUM(X17:X18) -> 0 | Y19: =W19-X19 -> 0
I20: New | J20: ='Yr 1'!$AA$34 -> 0 | K20: ='Yr 2'!$AA$34 -> 0 | L20: ='Yr 3'!$AA$34 -> 0 | M20: ='Yr 4'!$AA$34 -> 0 | N20: ='Yr 5'!$AA$34 -> 0 | O20: ='Yr 6'!$AA$34 -> 0 | P20: ='Yr 7'!$AA$34 -> 0 | Q20: ='Yr 8'!$AA$34 -> 0 | R20: ='Yr 9'!$AA$34 -> 0 | S20: ='Yr 10'!$AA$34 -> 0 | T20: 0
I21: Total | J21: =SUM(J19:J20) -> 0 | K21: =SUM(K19:K20) -> 0 | L21: 0 | M21: 0 | N21: 0 | O21: 0 | P21: 0 | Q21: 0 | R21: 0 | S21: 0 | T21: 0

Sheet Bonds (hidden)
C2: =Inputs!B5 -> Year of encashment (5 to 10 only) | D2: =Inputs!C5 -> 0 | F2: Post Final Year
B3: ONSHORE
U4: For the LOOKUP
E5: Internal Tax | F5: =((B10+B16)/SUM(B10:B16)*C11) ->  | H5: =E8*(1+(SUM(B10:B16))*(1-F5))^D2 -> 
E6: =AND(E7>$D$2) -> TRUE | F6: =AND(F7>$D$2) -> TRUE | G6: TRUE | H6: TRUE | I6: TRUE | J6: TRUE | K6: TRUE | L6: TRUE | M6: TRUE | N6: =AND(N7>$D$2) -> TRUE | V6: Onshore | Y6: Offshore
C7: Year | E7: 1 | F7: 2 | G7: 3 | H7: 4 | I7: 5 | J7: 6 | K7: 7 | L7: 8 | M7: 9 | N7: 10 | U7: Year | V7: Full Gain | W7: Slice | X7: EOY Value | Y7: Full Gain | Z7: Slice | AA7: EOY Value
C8: =Inputs!B3 -> Invested Amount | E8: =IF(E6=TRUE,0,Inputs!C3) -> 0 | F8: =IF(F6=TRUE,0,E21) -> 0 | G8: =IF(G6=TRUE,0,F21) -> 0 | H8: 0 | I8: 0 | J8: 0 | K8: 0 | L8: 0 | M8: 0 | N8: 0 | O8: Total | U8: =E7 -> 1 | V8: =E23 -> 0 | W8: =E24 -> 0 | X8: =E21 -> 0 | Y8: =E44 -> 0 | Z8: =E45 -> 0 | AA8: =E42 -> 0
B9: Yield | U9: =F7 -> 2 | V9: =F23 -> 0 | W9: =F24 -> 0 | X9: =F21 -> 0 | Y9: =F44 -> 0 | Z9: =F45 -> 0 | AA9: =F42 -> 0
B10: =Inputs!L4 -> 0 | C10: Savings income | D10: Amt | E10: =E8*$B$10 -> 0 | F10: =F8*$B$10 -> 0 | G10: 0 | H10: 0 | I10: 0 | J10: 0 | K10: 0 | L10: 0 | M10: 0 | N10: 0 | O10: =SUM(E10:N10) -> 0 | U10: =G7 -> 3 | V10: =G23 -> 0 | W10: =G24 -> 0 | X10: =G21 -> 0 | Y10: =G44 -> 0 | Z10: =G45 -> 0 | AA10: =G42 -> 0
C11: ='Parameters_Inc Calcs'!E4 -> 0.2 | D11: Tax | E11: =E10*$C$11 -> 0 | F11: 0 | G11: 0 | H11: 0 | I11: 0 | J11: 0 | K11: 0 | L11: 0 | M11: 0 | N11: 0 | O11: =SUM(E11:N11) -> 0 | U11: =H7 -> 4 | V11: =H23 -> 0 | W11: =H24 -> 0 | X11: =H21 -> 0 | Y11: =H44 -> 0 | Z11: =H45 -> 0 | AA11: =H42 -> 0
D12: Net | E12: =E10-E11 -> 0 | F12: =F10-F11 -> 0 | G12: 0 | H12: 0 | I12: 0 | J12: 0 | K12: 0 | L12: 0 | M12: 0 | N12: 0 | O12: 0 | U12: =I7 -> 5 | V12: =I23 -> 0 | W12: =I24 -> 0 | X12: =I21 -> 0 | Y12: =I44 -> 0 | Z12: =I45 -> 0 | AA12: =I42 -> 0
U13: =J7 -> 6 | V13: =J23 -> 0 | W13: =J24 -> 0 | X13: =J21 -> 0 | Y13: =J44 -> 0 | Z13: =J45 -> 0 | AA13: =J42 -> 0
B14: =Inputs!L5 -> 0 | C14: Dividend Return | D14: Amt | E14: =E8*$B$14 -> 0 | F14: 0 | G14: 0 | H14: 0 | I14: 0 | J14: 0 | K14: 0 | L14: 0 | M14: 0 | N14: 0 | O14: 0 | U14: =K7 -> 7 | V14: =K23 -> 0 | W14: =K24 -> 0 | X14: =K21 -> 0 | Y14: =K44 -> 0 | Z14: =K45 -> 0 | AA14: =K42 -> 0
U15: =L7 -> 8 | V15: =L23 -> 0 | W15: =L24 -> 0 | X15: =L21 -> 0 | Y15: =L44 -> 0 | Z15: =L45 -> 0 | AA15: =L42 -> 0
B16: =Inputs!L6 -> 0 | C16: Capital Gain | D16: Amt | E16: =E8*$B$16 -> 0 | F16: 0 | G16: 0 | H16: 0 | I16: 0 | J16: 0 | K16: 0 | L16: 0 | M16: 0 | N16: 0 | O16: 0 | Q16: SV | R16: =HLOOKUP(D2,E7:N24,15) ->  | U16: =M7 -> 9 | V16: =M23 -> 0 | W16: =M24 -> 0 | X16: =M21 -> 0 | Y16: =M44 -> 0 | Z16: =M45 -> 0 | AA16: =M42 -> 0
C17: =C11 -> 0.2 | D17: Tax | E17: =E16*$C$17 -> 0 | F17: 0 | G17: 0 | H17: 0 | I17: 0 | J17: 0 | K17: 0 | L17: 0 | M17: 0 | N17: 0 | O17: =SUM(E17:N17) -> 0 | Q17: Gain | R17: =HLOOKUP(D2,E7:N24,17) ->  | U17: =N7 -> 10 | V17: =N23 -> 0 | W17: =N24 -> 0 | X17: =N21 -> 0 | Y17: =N44 -> 0 | Z17: =N45 -> 0 | AA17: =N42 -> 0
D18: Net | E18: =E16-E17 -> 0 | F18: =F16-F17 -> 0 | G18: 0 | H18: 0 | I18: 0 | J18: 0 | K18: 0 | L18: 0 | M18: 0 | N18: 0 | O18: 0 | Q18: Slice | R18: =HLOOKUP(D2,E7:N24,18) -> 
D20: End Year Value (excl wrapper charge) | E20: =E8+E12+E14+E18 -> 0 | F20: =F8+F12+F14+F18 -> 0 | G20: 0 | H20: 0 | I20: 0 | J20: 0 | K20: 0 | L20: 0 | M20: 0 | N20: 0
D21: End Year Value (inc wrapper charge) | E21: =E20*(1-Inputs!$L$8) -> 0 | F21: =F20*(1-Inputs!$L$8) -> 0 | G21: =G20*(1-Inputs!$L$8) -> 0 | H21: =H20*(1-Inputs!$L$8) -> 0 | I21: =I20*(1-Inputs!$L$8) -> 0 | J21: =J20*(1-Inputs!$L$8) -> 0 | K21: =K20*(1-Inputs!$L$8) -> 0 | L21: =L20*(1-Inputs!$L$8) -> 0 | M21: =M20*(1-Inputs!$L$8) -> 0 | N21: =N20*(1-Inputs!$L$8) -> 0
D23: Gain | E23: =MAX(0,E21-$E$8) -> 0 | F23: =MAX(0,F21-$E$8) -> 0 | G23: =MAX(0,G21-$E$8) -> 0 | H23: =MAX(0,H21-$E$8) -> 0 | I23: 0 | J23: 0 | K23: 0 | L23: 0 | M23: 0 | N23: 0
D24: Slice | E24: =E23/E7 -> 0 | F24: =F23/F7 -> 0 | G24: 0 | H24: 0 | I24: 0 | J24: 0 | K24: 0 | L24: 0 | M24: 0 | N24: 0
D26: IRT | E26: =(E11+E17)/(E10+E14+E16) ->  | F26: =(F11+F17)/(F10+F14+F16) -> 
B28: OFFSHORE
E30: Internal Tax | F30: 0 | H30: =E33*(1+(SUM(B35:B39))*(1-F30))^D2 -> 0
C32: Year | E32: 1 | F32: 2 | G32: 3 | H32: 4 | I32: 5 | J32: 6 | K32: 7 | L32: 8 | M32: 9 | N32: 10
C33: =Inputs!B23 -> Tax | E33: =IF(E6=TRUE,0,E8) -> 0 | F33: =IF(F6=TRUE,0,E42) -> 0 | G33: =IF(G6=TRUE,0,F42) -> 0 | H33: 0 | I33: 0 | J33: 0 | K33: 0 | L33: 0 | M33: 0 | N33: 0 | O33: Total
B34: Yield | O34: 0
B35: =B10 -> 0 | C35: Savings income | D35: Amt | E35: =E33*$B$10 -> 0 | F35: 0 | G35: 0 | H35: 0 | I35: 0 | J35: 0 | K35: 0 | L35: 0 | M35: 0 | N35: 0 | O35: 0
O36: 0 | Q36: SV | R36: =HLOOKUP(D2,E32:N45,11) -> 
B37: =B14 -> 0 | C37: Dividend Return | D37: Amt | E37: =E33*$B$14 -> 0 | F37: 0 | G37: 0 | H37: 0 | I37: 0 | J37: 0 | K37: 0 | L37: 0 | M37: 0 | N37: 0 | O37: 0 | Q37: Gain | R37: =HLOOKUP(D2,E32:N45,13) -> 
O38: 0 | Q38: Slice | R38: =HLOOKUP(D2,E32:N45,14) -> 
B39: =B16 -> 0 | C39: Capital Gain | D39: Amt | E39: =E33*$B$16 -> 0 | F39: 0 | G39: 0 | H39: 0 | I39: 0 | J39: 0 | K39: 0 | L39: 0 | M39: 0 | N39: 0 | O39: 0
D41: =D20 -> End Year Value (excl wrapper charge) | E41: =SUM(E33:E39) -> 0 | F41: =SUM(F33:F39) -> 0 | G41: 0 | H41: 0 | I41: 0 | J41: 0 | K41: 0 | L41: 0 | M41: 0 | N41: 0
D42: =D21 -> End Year Value (inc wrapper charge) | E42: =E41*(1-Inputs!$L$8) -> 0 | F42: =F41*(1-Inputs!$L$8) -> 0 | G42: =G41*(1-Inputs!$L$8) -> 0 | H42: =H41*(1-Inputs!$L$8) -> 0 | I42: =I41*(1-Inputs!$L$8) -> 0 | J42: =J41*(1-Inputs!$L$8) -> 0 | K42: =K41*(1-Inputs!$L$8) -> 0 | L42: =L41*(1-Inputs!$L$8) -> 0 | M42: =M41*(1-Inputs!$L$8) -> 0 | N42: =N41*(1-Inputs!$L$8) -> 0
D44: Gain | E44: =MAX(0,E42-$E$8) -> 0 | F44: =MAX(0,F42-$E$8) -> 0 | G44: 0 | H44: 0 | I44: 0 | J44: 0 | K44: 0 | L44: =MAX(0,L42-$E$8) -> 0 | M44: 0 | N44: 0
D45: Slice | E45: =E44/E32 -> 0 | F45: =F44/F32 -> 0 | G45: 0 | H45: 0 | I45: 0 | J45: 0 | K45: 0 | L45: 0 | M45: 0 | N45: 0

Sheet Onshore Bond Calcs (hidden)
A1: Before Encashment | M1: After Encashment
A3: Full Bond Gain | B3: 0 | M3: Full Bond Gain | N3: =VLOOKUP(Inputs!$C$5,Bonds!U8:AA17,2,FALSE) ->  | AI3: Slice | AJ3: =VLOOKUP(Inputs!$C$5,Bonds!U8:AA17,3,FALSE) -> 
A4: NSND in Year of encashment | B4: =Inputs!$L$11 -> 0 | M4: NSND in Year of encashment | N4: =Inputs!$L$11 -> 0 | AI4: NSND in Year of encashment | AJ4: =Inputs!$L$11 -> 0
A5: Savings in Year of encashment | B5: =Inputs!$L$12 -> 0 | M5: Savings in Year of encashment | N5: =Inputs!$L$12 -> 0 | AI5: Savings in Year of encashment | AJ5: =Inputs!$L$12 -> 0
A6: Dividend in Year of encashment | B6: =Inputs!$L$13 -> 0 | M6: Dividend in Year of encashment | N6: =Inputs!$L$13 -> 0 | AI6: Dividend in Year of encashment | AJ6: =Inputs!$L$13 -> 0
A7: Personal Allowance Adjustment | B7: =IF((B3+B4+B5+B6)<'Parameters_Inc Calcs'!$C$3,0,MIN('Parameters_Inc Calcs'!$C$2,(('Onshore Bond Calcs'!B3+'Onshore Bond Calcs'!B4+B5+B6)-'Parameters_Inc Calcs'!$C$3)/2)) -> 0 | M7: Personal Allowance Adjustment | N7: =IF((N3+N4+N5+N6)<'Parameters_Inc Calcs'!$C$3,0,MIN('Parameters_Inc Calcs'!$C$2,(('Onshore Bond Calcs'!N3+'Onshore Bond Calcs'!N4+N5+N6)-'Parameters_Inc Calcs'!$C$3)/2)) ->  | AI7: Personal Allowance Adjustment | AJ7: =IF((AJ3+AJ4+AJ5+AJ6)<'Parameters_Inc Calcs'!$C$3,0,MIN('Parameters_Inc Calcs'!$C$2,(('Onshore Bond Calcs'!AJ3+'Onshore Bond Calcs'!AJ4+AJ5+AJ6)-'Parameters_Inc Calcs'!$C$3)/2)) -> 
A8: PA to Use | B8: ='Parameters_Inc Calcs'!$C$2-'Onshore Bond Calcs'!B7 -> 12570 | M8: PA to Use | N8: ='Parameters_Inc Calcs'!$C$2-'Onshore Bond Calcs'!N7 ->  | AI8: PA to Use - Silver adjustment | AJ8: ='Parameters_Inc Calcs'!$C$2-'Onshore Bond Calcs'!AJ7 -> 
A9: Starter Rate to Use | B9: =IF(B4>B8+'Parameters_Inc Calcs'!$C$12,0,MIN('Parameters_Inc Calcs'!$C$12,'Onshore Bond Calcs'!B8+'Parameters_Inc Calcs'!$C$12-'Onshore Bond Calcs'!B4)) -> 5000 | M9: Starter Rate to Use | N9: =IF(N4>N8+'Parameters_Inc Calcs'!$C$12,0,MIN('Parameters_Inc Calcs'!$C$12,'Onshore Bond Calcs'!N8+'Parameters_Inc Calcs'!$C$12-'Onshore Bond Calcs'!N4)) ->  | AI9: Starter Rate to Use - from full calc as no silver adjustment | AJ9: =N9 -> 
A10: PSA to USE | B10: =IF(SUM(B3:B6)>'Parameters_Inc Calcs'!$C$8,'Parameters_Inc Calcs'!$C$11,IF(SUM(B3:B6)>'Parameters_Inc Calcs'!$C$5,'Parameters_Inc Calcs'!$C$10,'Parameters_Inc Calcs'!$C$9)) -> 1000 | M10: PSA to USE | N10: =IF(SUM(N3:N6)>'Parameters_Inc Calcs'!$C$8,'Parameters_Inc Calcs'!$C$11,IF(SUM(N3:N6)>'Parameters_Inc Calcs'!$C$5,'Parameters_Inc Calcs'!$C$10,'Parameters_Inc Calcs'!$C$9)) ->  | AI10: PSA to use - from full calc as no silver adjustment | AJ10: =N10 -> 
A12: Non Savings Income Apportionment | M12: Non Savings Income Apportionment | X12: Non Savings Income Apportionment | AI12: Non Savings Income Apportionment
B13: Allowances | C13: Still to tax | D13: Used | E13: Unused | G13: Amount | H13: Rate | I13: Tax | N13: Allowances | O13: Still to tax | P13: Used | Q13: Unused | S13: Amount | T13: Rate | U13: Tax | Y13: Allowances | Z13: Still to tax | AA13: Used | AB13: Unused | AD13: Amount | AE13: Rate | AF13: Tax | AJ13: Allowances | AK13: Still to tax | AL13: Used | AM13: Unused | AO13: Amount | AP13: Rate | AQ13: Tax | AU13: EXISTING POSITION
A14: Gross Pension Contributions | B14: 0 | C14: =B4 -> 0 | D14: =MIN(B14,C14) -> 0 | E14: =MAX(0,B14-D14) -> 0 | M14: Gross Pension Contributions | N14: 0 | O14: =N4 -> 0 | P14: =MIN(N14,O14) -> 0 | Q14: =MAX(0,N14-P14) -> 0 | AI14: Gross Pension Contributions | AJ14: 0 | AK14: =AJ4 -> 0 | AL14: =MIN(AJ14,AK14) -> 0 | AM14: =MAX(0,AJ14-AL14) -> 0
A15: Personal Allowance | B15: =B8 -> 12570 | C15: =MAX(0,C14-D14) -> 0 | D15: =MIN(B15,C15) -> 0 | E15: =MAX(0,B15-D15) -> 12570 | G15: =D15 -> 0 | H15: 0 | I15: =G15*H15 -> 0 | M15: Personal Allowance | N15: =N8 ->  | O15: =MAX(0,O14-P14) -> 0 | P15: =MIN(N15,O15) ->  | Q15: =MAX(0,N15-P15) ->  | S15: =P15 ->  | T15: =H15 -> 0 | U15: =S15*T15 ->  | X15: Personal Allowance | Y15: =N8 ->  | Z15: =MAX(0,N4) -> 0 | AA15: =MIN(Y15,Z15) ->  | AB15: =MAX(0,Y15-AA15) ->  | AD15: =AA15 ->  | AE15: =H15 -> 0 | AF15: =AD15*AE15 ->  | AI15: Personal Allowance | AJ15: =AJ8 ->  | AK15: =MAX(0,AK14-AL14) -> 0 | AL15: =MIN(AJ15,AK15) ->  | AM15: =MAX(0,AJ15-AL15) ->  | AO15: =AL15 ->  | AP15: =T15 -> 0 | AQ15: =AO15*AP15 ->  | AV15: Taxation of full gain | AW15: =N3 -> 
A16: Basic Rate | B16: ='Parameters_Inc Calcs'!$C$4 -> 37700 | C16: =MAX(0,C15-D15) -> 0 | D16: =MIN(B16,C16) -> 0 | E16: =MAX(0,B16-D16) -> 37700 | G16: =D16 -> 0 | H16: ='Parameters_Inc Calcs'!E4 -> 0.2 | I16: =G16*H16 -> 0 | M16: Basic Rate | N16: ='Parameters_Inc Calcs'!$C$4 -> 37700 | O16: =MAX(0,O15-P15) ->  | P16: =MIN(N16,O16) ->  | Q16: =MAX(0,N16-P16) ->  | S16: =P16 ->  | T16: =H16 -> 0.2 | U16: =S16*T16 ->  | X16: Basic Rate | Y16: ='Parameters_Inc Calcs'!$C$4 -> 37700 | Z16: =MAX(0,Z15-AA15) ->  | AA16: =MIN(Y16,Z16) ->  | AB16: =MAX(0,Y16-AA16) ->  | AD16: =AA16 ->  | AE16: =H16 -> 0.2 | AF16: =AD16*AE16 ->  | AI16: Basic Rate | AJ16: ='Parameters_Inc Calcs'!$C$4 -> 37700 | AK16: =MAX(0,AK15-AL15) ->  | AL16: =MIN(AJ16,AK16) ->  | AM16: =MAX(0,AJ16-AL16) ->  | AO16: =AL16 ->  | AP16: =T16 -> 0.2 | AQ16: =AO16*AP16 ->  | AZ16: Tax
A17: Higher Rate | B17: ='Parameters_Inc Calcs'!$C$7 -> 87440 | C17: =MAX(0,C16-D16) -> 0 | D17: 0 | E17: 87440 | G17: 0 | H17: ='Parameters_Inc Calcs'!E5 -> 0.4 | I17: 0 | M17: Higher Rate | N17: ='Parameters_Inc Calcs'!$C$7 -> 87440 | O17: =MAX(0,O16-P16) ->  | T17: 0.4 | X17: Higher Rate | Y17: ='Parameters_Inc Calcs'!$C$7 -> 87440 | Z17: =MAX(0,Z16-AA16) ->  | AA17: =MIN(Y17,Z17) ->  | AB17: =MAX(0,Y17-AA17) ->  | AE17: =H17 -> 0.4 | AI17: Higher Rate | AJ17: ='Parameters_Inc Calcs'!$C$7 -> 87440 | AK17: =MAX(0,AK16-AL16) ->  | AP17: =T17 -> 0.4 | AU17: Step 1 | AV17: Personal Allowance | AW17: =AA57 ->  | AX17: @ | AY17: =AP22 -> 0 | AZ17: =AW17*AY17 -> 
A18: Additional Rate | C18: =MAX(0,C17-D17) -> 0 | D18: =MIN(B18,C18) -> 0 | E18: NA | G18: 0 | H18: ='Parameters_Inc Calcs'!E8 -> 0.45 | I18: 0 | J18: =SUM(I15:I18) -> 0 | M18: Additional Rate | O18: =MAX(0,O17-P17) ->  | Q18: NA | T18: 0.45 | V18: =SUM(U15:U18) ->  | X18: Additional Rate | Z18: =MAX(0,Z17-AA17) ->  | AA18: =MIN(Y18,Z18) ->  | AE18: =H18 -> 0.45 | AG18: =SUM(AF15:AF18) ->  | AI18: Additional Rate | AK18: =MAX(0,AK17-AL17) ->  | AM18: NA | AP18: =T18 -> 0.45 | AR18: =SUM(AQ15:AQ18) ->  | AV18: Starting Rate | AX18: @ | AY18: =AP23 -> 0
AV19: Personal Savings Allowance | AX19: @ | AY19: 0
A20: Savings Income Tax Band Apportionment | M20: Savings Income Tax Band Apportionment | X20: Savings Income Tax Band Apportionment | AI20: Savings Income Tax Band Apportionment | AV20: Basic Rate | AX20: @ | AY20: 0.2
B21: Allowances | C21: Still to tax | D21: Used | E21: Unused | G21: Amount | H21: Rate | I21: Tax | N21: Allowances | O21: Still to tax | P21: Used | Q21: Unused | S21: Amount | T21: Rate | U21: Tax | Y21: Allowances | Z21: Still to tax | AA21: Used | AB21: Unused | AD21: Amount | AE21: Rate | AF21: Tax | AJ21: Allowances | AK21: Still to tax | AL21: Used | AM21: Unused | AO21: Amount | AP21: Rate | AQ21: Tax | AV21: Higher Rate | AX21: @ | AY21: 0.4
A22: Starting Rate | B22: =B9 -> 5000 | C22: =B5 -> 0 | D22: =MIN(B22,C22) -> 0 | E22: =MAX(0,B22-D22) -> 5000 | G22: =D22 -> 0 | H22: =H15 -> 0 | I22: 0 | M22: Starting Rate | N22: =N9 ->  | O22: =N5 -> 0 | P22: =MIN(N22,O22) ->  | Q22: =MAX(0,N22-P22) ->  | S22: =P22 ->  | T22: =T15 -> 0 | U22: =S22*T22 ->  | X22: Personal Allowance | Y22: =AB15 ->  | Z22: =N5 -> 0 | AA22: =MIN(Y22,Z22) ->  | AB22: =MAX(0,Y22-AA22) ->  | AD22: =AA22 ->  | AE22: =AE15 -> 0 | AF22: =AD22*AE22 ->  | AI22: Personal Allowance | AJ22: =AM15 ->  | AK22: =AJ5 -> 0 | AL22: =MIN(AJ22,AK22) ->  | AM22: =MAX(0,AJ22-AL22) ->  | AO22: =AL22 ->  | AP22: =AP15 -> 0 | AQ22: =AO22*AP22 ->  | AV22: Additional Rate | AX22: @ | AY22: 0.45
A23: Personal Savings Allowance | B23: =B10 -> 1000 | C23: =MAX(0,C22-D22) -> 0 | D23: 0 | E23: 1000 | G23: 0 | H23: =H15 -> 0 | I23: 0 | M23: Personal Savings Allowance | N23: =N10 ->  | O23: =MAX(0,O22-P22) ->  | T23: =T15 -> 0 | X23: Starting Rate | Y23: =N9 ->  | Z23: =MAX(0,Z22-AA22) ->  | AA23: =MIN(Y23,Z23) ->  | AB23: =MAX(0,Y23-AA23) ->  | AE23: =AE15 -> 0 | AI23: Starting Rate | AJ23: =AJ9 ->  | AK23: =MAX(0,AK22-AL22) ->  | AP23: =AP15 -> 0 | AV23: Total Liability | AZ23: =SUM(AZ17:AZ22) -> 
A24: Personal Allowance | B24: =E15 -> 12570 | C24: =MAX(0,C23-D23) -> 0 | D24: 0 | E24: 12570 | G24: 0 | H24: =H15 -> 0 | I24: 0 | M24: Personal Allowance | N24: =Q15 ->  | O24: =MAX(0,O23-P23) ->  | T24: =T15 -> 0 | X24: Personal Savings Allowance | Y24: =N10 ->  | Z24: =MAX(0,Z23-AA23) ->  | AA24: =MIN(Y24,Z24) ->  | AB24: =MAX(0,Y24-AA24) ->  | AE24: =AE15 -> 0 | AI24: Personal Savings Allowance | AJ24: =AJ10 ->  | AK24: =MAX(0,AK23-AL23) ->  | AP24: =AP15 -> 0 | AU24: Step 2 | AV24: Tax Credit | AZ24: =(AW15-AW17)*AY20 -> 
A25: Basic Rate | B25: =MAX(0,E16-SUM(D22:D23)) -> 37700 | C25: =MAX(0,C24-D24) -> 0 | D25: 0 | E25: 37700 | G25: 0 | H25: =H16 -> 0.2 | I25: 0 | M25: Basic Rate | N25: =MAX(0,Q16-SUM(P22:P23)) ->  | O25: =MAX(0,O24-P24) ->  | T25: =T16 -> 0.2 | X25: Basic Rate | Y25: =MAX(0,AB16-SUM(AA23:AA24)) ->  | Z25: =MAX(0,Z24-AA24) ->  | AA25: =MIN(Y25,Z25) ->  | AB25: =MAX(0,Y25-AA25) ->  | AE25: =AE16 -> 0.2 | AI25: Basic Rate | AJ25: =MAX(0,AM16-SUM(AL23:AL24)) ->  | AK25: =MAX(0,AK24-AL24) ->  | AP25: =AP16 -> 0.2 | AV25: Relieved liability on gain | AZ25: =MAX(0,AZ23-AZ24) -> 
A26: Higher Rate | B26: =E17-F26 -> 87440 | C26: =MAX(0,C25-D25) -> 0 | D26: 0 | E26: =MAX(0,B26-D26) -> 87440 | F26: =MIN(E17,MAX(0,D23-E16)) -> 0 | G26: 0 | H26: =H17 -> 0.4 | I26: 0 | M26: Higher Rate | N26: =Q17-R26 ->  | O26: =MAX(0,O25-P25) ->  | Q26: =MAX(0,N26-P26) ->  | R26: =MIN(Q17,MAX(0,P23-Q16)) ->  | T26: =T17 -> 0.4 | X26: Higher Rate | Y26: =AB17-AC26 ->  | AC26: =MIN(AB17,MAX(0,AA24-AB16)) ->  | AE26: =AE17 -> 0.4 | AI26: Higher Rate | AJ26: =AM17-AN26 ->  | AK26: =MAX(0,AK25-AL25) ->  | AM26: =MAX(0,AJ26-AL26) ->  | AN26: =MIN(AM17,MAX(0,AL24-AM16)) ->  | AP26: =AP17 -> 0.4
A27: Additional Rate | C27: =MAX(0,C26-D26) -> 0 | D27: 0 | E27: NA | G27: 0 | H27: 0.45 | I27: 0 | J27: =SUM(I22:I27) -> 0 | M27: Additional Rate | O27: =MAX(0,O26-P26) ->  | Q27: NA | T27: 0.45 | V27: =SUM(U22:U27) ->  | X27: Additional Rate | Z27: =MAX(0,Z26-AA26) ->  | AA27: =MIN(Y27,Z27) ->  | AE27: 0.45 | AG27: =SUM(AF22:AF27) ->  | AI27: Additional Rate | AK27: =MAX(0,AK26-AL26) ->  | AM27: NA | AP27: 0.45 | AR27: =SUM(AQ22:AQ27) -> 
AU28: Step 3 | AV28: Taxation of slice | AW28: =AJ3 -> 
A29: Offshore Bond Gain Tax Band Apportionment | M29: Offshore Bond Gain Tax Band Apportionment | X29: Offshore Bond Gain Tax Band Apportionment - set to £0 as included at total gain below | AI29: Offshore Bond Gain Tax Band Apportionment - Set to £0 for slicing calcs as fit into total onshore gain | AZ29: Tax
B30: Allowances | C30: Still to tax | D30: Used | E30: Unused | G30: Amount | H30: Rate | I30: Tax | N30: Allowances | O30: Still to tax | P30: Used | Q30: Unused | S30: Amount | T30: Rate | U30: Tax | Y30: Allowances | Z30: Still to tax | AA30: Used | AB30: Unused | AD30: Amount | AE30: Rate | AF30: Tax | AJ30: Allowances | AK30: Still to tax | AL30: Used | AM30: Unused | AO30: Amount | AP30: Rate | AQ30: Tax | AU30: Step 4 | AV30: Personal Allowance | AW30: =AL57 ->  | AX30: @ | AY30: =AY17 -> 0 | AZ30: =AY30*AW30 -> 
A31: Starting Rate | B31: =E22 -> 5000 | C31: 0 | D31: 0 | E31: =MAX(0,B31-D31) -> 5000 | G31: 0 | H31: =H22 -> 0 | I31: 0 | M31: Starting Rate | N31: =Q22 ->  | O31: 0 | P31: 0 | Q31: =MAX(0,N31-P31) ->  | S31: =P31 -> 0 | T31: =T22 -> 0 | U31: =S31*T31 -> 0 | X31: Personal Allowance | Y31: =AB22 ->  | Z31: 0 | AA31: =MIN(Y31,Z31) ->  | AB31: =MAX(0,Y31-AA31) ->  | AD31: =AA31 ->  | AE31: =AE22 -> 0 | AF31: =AD31*AE31 ->  | AI31: Personal Allowance | AJ31: =AM22 ->  | AK31: 0 | AL31: 0 | AM31: =MAX(0,AJ31-AL31) ->  | AO31: =AL31 -> 0 | AP31: =AP22 -> 0 | AQ31: =AO31*AP31 -> 0 | AV31: Starting Rate | AW31: =AL58 ->  | AX31: @ | AY31: 0
A32: Personal Savings Allowance | B32: =E23 -> 1000 | C32: =MAX(0,C31-D31) -> 0 | D32: 0 | E32: 1000 | G32: 0 | H32: =H23 -> 0 | I32: 0 | M32: Personal Savings Allowance | N32: =Q23 ->  | O32: =MAX(0,O31-P31) -> 0 | P32: 0 | S32: 0 | T32: =T23 -> 0 | U32: 0 | X32: Starting Rate | Y32: =AB23 ->  | Z32: =MAX(0,Z31-AA31) ->  | AA32: =MIN(Y32,Z32) ->  | AB32: =MAX(0,Y32-AA32) ->  | AE32: =AE23 -> 0 | AI32: Starting Rate | AJ32: =AM23 ->  | AK32: =MAX(0,AK31-AL31) -> 0 | AL32: 0 | AO32: 0 | AP32: =AP23 -> 0 | AQ32: 0 | AV32: Personal Savings Allowance | AW32: =AL59 ->  | AX32: @ | AY32: 0
A33: Personal Allowance | B33: =E24 -> 12570 | C33: 0 | D33: 0 | E33: 12570 | G33: 0 | H33: 0 | I33: 0 | M33: Personal Allowance | N33: =Q24 ->  | O33: 0 | P33: 0 | S33: 0 | T33: 0 | U33: 0 | X33: Personal Savings Allowance | Y33: =AB24 ->  | Z33: =MAX(0,Z32-AA32) ->  | AA33: =MIN(Y33,Z33) ->  | AB33: =MAX(0,Y33-AA33) ->  | AE33: 0 | AI33: Personal Savings Allowance | AJ33: =AM24 ->  | AK33: 0 | AL33: 0 | AO33: 0 | AP33: 0 | AQ33: 0 | AV33: Basic Rate | AW33: =AL60 ->  | AX33: @ | AY33: 0.2
A34: Basic Rate | B34: =MAX(0,E25-SUM(D31:D32)) -> 37700 | C34: 0 | D34: 0 | E34: 37700 | G34: 0 | H34: 0.2 | I34: 0 | M34: Basic Rate | N34: =MAX(0,Q25-SUM(P31:P32)) ->  | O34: 0 | P34: 0 | S34: 0 | T34: 0.2 | U34: 0 | X34: Basic Rate | Y34: =MAX(0,AB25-SUM(AA32:AA33)) ->  | AA34: =MIN(Y34,Z34) ->  | AB34: =MAX(0,Y34-AA34) ->  | AE34: 0.2 | AI34: Basic Rate | AJ34: =MAX(0,AM25-SUM(AL31:AL32)) ->  | AK34: 0 | AL34: 0 | AO34: 0 | AP34: 0.2 | AQ34: 0 | AV34: Higher Rate | AX34: @ | AY34: 0.4
A35: Higher Rate | B35: =E26-F35 -> 87440 | C35: 0 | D35: 0 | E35: 87440 | F35: =MIN(E26,MAX(0,D32-E25)) -> 0 | G35: 0 | H35: 0.4 | I35: 0 | M35: Higher Rate | N35: =Q26-R35 ->  | O35: 0 | P35: 0 | R35: =MIN(Q26,MAX(0,P32-Q25)) ->  | S35: 0 | T35: 0.4 | U35: 0 | X35: Higher Rate | Y35: =AB26-AC35 ->  | AC35: =MIN(AB26,MAX(0,AA33-AB25)) ->  | AE35: 0.4 | AI35: Higher Rate | AJ35: =AM26-AN35 ->  | AK35: 0 | AL35: 0 | AN35: =MIN(AM26,MAX(0,AL32-AM25)) ->  | AO35: 0 | AP35: 0.4 | AQ35: 0 | AV35: Additional Rate | AX35: @ | AY35: 0.45
A36: Additional Rate | C36: 0 | D36: 0 | E36: NA | G36: 0 | H36: 0.45 | I36: 0 | J36: =SUM(I31:I36) -> 0 | M36: Additional Rate | O36: 0 | P36: 0 | Q36: NA | S36: 0 | T36: 0.45 | U36: 0 | V36: =SUM(U31:U36) -> 0 | X36: Additional Rate | Z36: =MAX(0,Z35-AA35) ->  | AA36: =MIN(Y36,Z36) ->  | AE36: 0.45 | AG36: =SUM(AF31:AF36) ->  | AI36: Additional Rate | AK36: 0 | AL36: 0 | AM36: NA | AO36: 0 | AP36: 0.45 | AQ36: 0 | AR36: =SUM(AQ31:AQ36) -> 0 | AV36: Total Liability | AZ36: =SUM(AZ31:AZ35) -> 
AV37: Tax Credit | AZ37: =(AW28-AW30)*AY33 -> 
AV38: Relieved Liability on Slice | AZ38: =MAX(0,AZ36-AZ37) -> 
A39: Dividend Income Tax Band Apportionment | M39: Dividend Income Tax Band Apportionment | X39: Dividend Income Tax Band Apportionment | AI39: Dividend Income Tax Band Apportionment | AV39: Derived years (N) | AZ39: =IF(AW15=0,0,AW15/AW28) -> 
B40: Allowances | C40: Still to tax | D40: Used | E40: Unused | G40: Amount | H40: Rate | I40: Tax | N40: Allowances | O40: Still to tax | P40: Used | Q40: Unused | S40: Amount | T40: Rate | U40: Tax | AD40: Amount | AE40: Rate | AF40: Tax | AJ40: Allowances | AK40: Still to tax | AL40: Used | AM40: Unused | AO40: Amount | AP40: Rate | AQ40: Tax | AV40: Relieved Liability on Slice x N | AZ40: =AZ38*AZ39 -> 
A41: Dividend Allowance | B41: ='Parameters_Inc Calcs'!$C$17 -> 500 | C41: =B6 -> 0 | D41: =MIN(B41,C41) -> 0 | E41: =MAX(0,B41-D41) -> 500 | G41: 0 | H41: =H31 -> 0 | I41: 0 | M41: Dividend Allowance | N41: ='Parameters_Inc Calcs'!$C$17 -> 500 | O41: =N6 -> 0 | P41: =MIN(N41,O41) -> 0 | Q41: =MAX(0,N41-P41) -> 500 | S41: =P41 -> 0 | T41: =H41 -> 0 | U41: =S41*T41 -> 0 | X41: Personal Allowance | Y41: =AB31 ->  | Z41: =N6 -> 0 | AA41: =MIN(Y41,Z41) ->  | AB41: =MAX(0,Y41-AA41) ->  | AD41: =AA41 ->  | AE41: =H41 -> 0 | AF41: =AD41*AE41 ->  | AI41: Personal Allowance | AJ41: =AM31 ->  | AK41: =AJ6 -> 0 | AL41: =MIN(AJ41,AK41) ->  | AM41: =MAX(0,AJ41-AL41) ->  | AO41: =AL41 ->  | AP41: =T41 -> 0 | AQ41: =AO41*AP41 -> 
A42: Personal Allowance | B42: =E33 -> 12570 | C42: =MAX(0,C41-D41) -> 0 | D42: 0 | E42: 12570 | G42: 0 | H42: =H33 -> 0 | I42: 0 | M42: Personal Allowance | N42: =Q33 ->  | O42: =MAX(0,O41-P41) -> 0 | T42: =H42 -> 0 | X42: Dividend Allowance | Y42: ='Parameters_Inc Calcs'!$C$17 -> 500 | Z42: =MAX(0,Z41-AA41) ->  | AE42: =H42 -> 0 | AI42: Dividend Allowance | AJ42: ='Parameters_Inc Calcs'!$C$17 -> 500 | AK42: =MAX(0,AK41-AL41) ->  | AP42: =T42 -> 0 | AV42: Top Slicing Relief
A43: Basic Rate | B43: =MAX(0,E34-D41) -> 37700 | C43: 0 | D43: 0 | E43: 37700 | G43: 0 | H43: ='Parameters_Inc Calcs'!D4 -> 0.0875 | I43: 0 | M43: Basic Rate | N43: =MAX(0,Q34-P41) ->  | T43: =H43 -> 0.0875 | X43: Basic Rate | Y43: =MAX(0,AB34-AA42) ->  | AE43: =H43 -> 0.0875 | AI43: Basic Rate | AJ43: =MAX(0,AM34-AL42) ->  | AP43: =T43 -> 0.0875 | AU43: Step 5 | AV43: Relieved liability on full gain | AZ43: =AZ25 ->  | BA43: a
A44: Higher Rate | B44: =E35-F44 -> 87440 | C44: 0 | D44: 0 | E44: 87440 | F44: =MIN(E35,MAX(0,D41-E34)) -> 0 | G44: 0 | H44: ='Parameters_Inc Calcs'!D5 -> 0.3375 | I44: 0 | M44: Higher Rate | N44: =Q35-R44 ->  | R44: =MIN(Q35,MAX(0,P41-Q34)) ->  | T44: =H44 -> 0.3375 | X44: Higher Rate | Y44: =AB35-AC44 ->  | AC44: =MIN(AB35,MAX(0,AA42-AB34)) ->  | AE44: =H44 -> 0.3375 | AI44: Higher Rate | AJ44: =AM35-AN44 ->  | AN44: =MIN(AM35,MAX(0,AL41-AM34)) ->  | AP44: =T44 -> 0.3375 | AV44: =AV40 -> Relieved Liability on Slice x N | AZ44: =AZ40 ->  | BA44: b
A45: Additional Rate | C45: 0 | D45: 0 | E45: NA | G45: 0 | H45: ='Parameters_Inc Calcs'!D8 -> 0.3935 | I45: 0 | J45: =SUM(I41:I45) -> 0 | M45: Additional Rate | Q45: NA | T45: =H45 -> 0.3935 | V45: =SUM(U41:U45) ->  | X45: Additional Rate | AE45: =H45 -> 0.3935 | AG45: =SUM(AF41:AF45) ->  | AI45: Additional Rate | AM45: NA | AP45: =T45 -> 0.3935 | AR45: =SUM(AQ41:AQ45) ->  | AV45: Top Slice Relief (a-b) | AZ45: =MAX(0,AZ43-AZ44) -> 
A47: Redundancy Payment Tax Band Apportionment | M47: Redundancy Payment Tax Band Apportionment | X47: Redundancy Payment Tax Band Apportionment - set to £0 as excluded from calcs | AI47: Redundancy Payment Tax Band Apportionment
B48: Allowances | C48: Still to tax | D48: Used | E48: Unused | G48: Amount | H48: Rate | I48: Tax | N48: Allowances | O48: Still to tax | P48: Used | Q48: Unused | S48: Amount | T48: Rate | U48: Tax | AD48: Amount | AE48: Rate | AF48: Tax | AJ48: Allowances | AK48: Still to tax | AL48: Used | AM48: Unused | AO48: Amount | AP48: Rate | AQ48: Tax
A49: Gross Pension Contributions | B49: =E14 -> 0 | C49: 0 | D49: =MIN(B49,C49) -> 0 | E49: =MAX(0,B49-D49) -> 0 | G49: 0 | H49: =H41 -> 0 | I49: 0 | M49: Gross Pension Contributions | N49: =Q14 -> 0 | O49: 0 | P49: =MIN(N49,O49) -> 0 | Q49: =MAX(0,N49-P49) -> 0 | S49: =P49 -> 0 | T49: =T41 -> 0 | U49: =S49*T49 -> 0 | X49: Gross Pension Contributions | AD49: =AA49 -> 0 | AE49: =AE41 -> 0 | AF49: =AD49*AE49 -> 0 | AI49: Gross Pension Contributions | AJ49: =AM14 -> 0 | AK49: 0 | AL49: =MIN(AJ49,AK49) -> 0 | AM49: =MAX(0,AJ49-AL49) -> 0 | AO49: =AL49 -> 0 | AP49: =AP41 -> 0 | AQ49: =AO49*AP49 -> 0
A50: Personal Allowance | B50: =E42 -> 12570 | C50: =MAX(0,C49-D49) -> 0 | D50: 0 | E50: 12570 | G50: 0 | H50: =H42 -> 0 | I50: 0 | M50: Personal Allowance | N50: =Q42 ->  | O50: =MAX(0,O49-P49) -> 0 | T50: =T42 -> 0 | X50: Personal Allowance | Y50: =AB41 ->  | Z50: 0 | AA50: =MIN(Y50,Z50) ->  | AB50: =MAX(0,Y50-AA50) ->  | AE50: =AE42 -> 0 | AI50: Personal Allowance | AJ50: =AM41 ->  | AK50: =MAX(0,AK49-AL49) -> 0 | AP50: =AP42 -> 0
A51: Basic Rate | B51: =E43 -> 37700 | C51: 0 | D51: 0 | E51: 37700 | G51: 0 | H51: =H34 -> 0.2 | I51: 0 | M51: Basic Rate | N51: =Q43 ->  | T51: =T34 -> 0.2 | X51: Basic Rate | Y51: =AB42 ->  | Z51: 0 | AE51: =AE34 -> 0.2 | AI51: Basic Rate | AJ51: =AM43 ->  | AP51: =AP34 -> 0.2
A52: Higher Rate | B52: =E44 -> 87440 | C52: 0 | D52: 0 | E52: 87440 | G52: 0 | H52: =H35 -> 0.4 | I52: 0 | M52: Higher Rate | N52: =Q44 ->  | T52: =T35 -> 0.4 | X52: Higher Rate | Z52: 0 | AE52: =AE35 -> 0.4 | AI52: Higher Rate | AJ52: =AM44 ->  | AP52: =AP35 -> 0.4
A53: Additional Rate | C53: 0 | D53: 0 | E53: NA | G53: 0 | H53: 0.45 | I53: 0 | J53: =SUM(I49:I53) -> 0 | M53: Additional Rate | Q53: NA | T53: 0.45 | V53: =SUM(U49:U53) ->  | X53: Additional Rate | AA53: 0 | AD53: 0 | AE53: 0.45 | AF53: 0 | AG53: =SUM(AF49:AF53) ->  | AI53: Additional Rate | AM53: NA | AP53: 0.45 | AR53: =SUM(AQ49:AQ53) -> 
A55: Onshore Bond Gain Tax Band Apportionment | M55: Onshore Bond Gain Tax Band Apportionment | X55: Total Gain Tax Band Apportionment | AI55: Onshore Bond Gain Tax Band Apportionment
B56: Allowances | C56: Still to tax | D56: Used | E56: Unused | G56: Amount | H56: Rate | I56: Tax | N56: Allowances | O56: Still to tax | P56: Used | Q56: Unused | S56: Amount | T56: Rate | U56: Tax | AD56: Amount | AE56: Rate | AF56: Tax | AJ56: Allowances | AK56: Still to tax | AL56: Used | AM56: Unused | AO56: Amount | AP56: Rate | AQ56: Tax
A57: Starting Rate | B57: =MAX(0,E31-F57) -> 5000 | C57: =B3 -> 0 | D57: =MIN(B57,C57) -> 0 | E57: =MAX(0,B57-D57) -> 5000 | F57: =D41+D43+D51 -> 0 | G57: 0 | H57: =H31 -> 0 | I57: 0 | M57: Starting Rate | N57: =MAX(0,Q31-R57) ->  | O57: =N3 ->  | P57: =MIN(N57,O57) ->  | Q57: =MAX(0,N57-P57) ->  | R57: =P41+P43+P51 ->  | S57: =P57 ->  | T57: =T31 -> 0 | U57: =S57*T57 ->  | X57: Personal Allowance | Y57: =AB41 ->  | Z57: =N3 ->  | AA57: =MIN(Y57,Z57) ->  | AB57: =MAX(0,Y57-AA57) ->  | AD57: =AA57 ->  | AE57: =AE31 -> 0 | AF57: =AD57*AE57 ->  | AI57: Personal Allowance | AJ57: =AM50 ->  | AK57: =AJ3 ->  | AL57: =MIN(AJ57,AK57) ->  | AM57: =MAX(0,AJ57-AL57) ->  | AO57: =AL57 ->  | AP57: =AP31 -> 0 | AQ57: =AO57*AP57 -> 
A58: Personal Savings Allowance | B58: =E32 -> 1000 | C58: =MAX(0,C57-D57) -> 0 | D58: 0 | E58: 1000 | G58: 0 | H58: =H33 -> 0 | I58: 0 | M58: Personal Savings Allowance | N58: =Q32 ->  | O58: =MAX(0,O57-P57) ->  | T58: =T33 -> 0 | X58: Starting Rate | Y58: =MAX(0,AB32-AC58) ->  | Z58: =MAX(0,Z57-AA57) ->  | AA58: =MIN(Y58,Z58) ->  | AB58: =MAX(0,Y58-AA58) ->  | AC58: =AA42+AA43 ->  | AE58: =AE33 -> 0 | AI58: Starting Rate | AJ58: =MAX(0,AM32-AN58) ->  | AK58: =MAX(0,AK57-AL57) ->  | AN58: =AL42+AL43+AL51 ->  | AP58: =AP33 -> 0
A59: Personal Allowance | B59: =E50 -> 12570 | C59: 0 | D59: 0 | E59: 12570 | G59: 0 | H59: =H50 -> 0 | I59: 0 | M59: Personal Allowance | N59: =Q50 ->  | T59: =T50 -> 0 | X59: Personal Savings Allowance | Y59: =AB33 ->  | AE59: =AE50 -> 0 | AI59: Personal Savings Allowance | AJ59: =AM33 ->  | AP59: =AP50 -> 0
A60: Basic Rate | B60: =MAX(0,E51-(SUM(D57:D58))) -> 37700 | C60: 0 | D60: 0 | E60: 37700 | G60: 0 | H60: =H51 -> 0.2 | I60: 0 | M60: Basic Rate | N60: =MAX(0,Q51-(SUM(P57:P58))) ->  | T60: =T51 -> 0.2 | X60: Basic Rate | Y60: =MAX(0,AB43-SUM(AA58:AA59)) ->  | AE60: =AE51 -> 0.2 | AI60: Basic Rate | AJ60: =MAX(0,AM43-(SUM(AL58:AL59))) ->  | AP60: =AP51 -> 0.2
A61: Higher Rate | B61: =E52-F61 -> 87440 | C61: 0 | D61: 0 | E61: 87440 | F61: =MIN(E52,MAX(0,D58-E51)) -> 0 | G61: 0 | H61: 0.4 | I61: 0 | M61: Higher Rate | N61: =Q52-R61 ->  | R61: =MIN(Q52,MAX(0,P58-Q51)) ->  | T61: 0.4 | X61: Higher Rate | Y61: =AB44-AC61 ->  | AC61: =MIN(AB44,MAX(0,AA59-AB43)) ->  | AE61: 0.4 | AI61: Higher Rate | AJ61: =AM52-AN61 ->  | AN61: =MIN(AM52,MAX(0,AL58-AM51)) ->  | AP61: 0.4
A62: Additional Rate | C62: 0 | D62: 0 | E62: NA | G62: 0 | H62: 0.45 | I62: 0 | J62: =SUM(I57:I62) -> 0 | M62: Additional Rate | P62: =O62 ->  | Q62: NA | T62: 0.45 | V62: =SUM(U57:U62) ->  | X62: Additional Rate | AE62: 0.45 | AG62: =SUM(AF57:AF62) ->  | AI62: Additional Rate | AM62: NA | AP62: 0.45 | AR62: =SUM(AQ57:AQ62) -> 
J64: =SUM(J14:J63) -> 0 | V64: =SUM(V14:V63) ->  | AG64: =SUM(AG14:AG63) ->  | AR64: =SUM(AR14:AR63) -> 
A66: Personal Allowance | B66: =D15+D24+D33+D42+D50+D59 -> 0 | M66: Personal Allowance | N66: =P15+P24+P33+P42+P50+P59 ->  | Q66: Less Onshore Bond Tax Credit | U66: =(O57-P59)*T60 -> 
A67: Basic Rate | B67: =D60+D51+D43+D34+D25+D16 -> 0 | M67: Basic Rate | N67: =P60+P51+P43+P34+P25+P16 ->  | Q67: Less Top Slicing Relief | U67: =AZ45 ->  | V67: =SUM(U66:U67) -> 
A68: Higher Rate | B68: =D61+D52+D44+D35+D26+D17 -> 0 | M68: Higher Rate | N68: =P61+P52+P44+P35+P26+P17 -> 
A69: Additional Rate | B69: =D62+D53+D45+D36+D27+D18 -> 0 | F69: Income Tax payable | J69: =J64 -> 0 | M69: Additional Rate | N69: =P62+P53+P45+P36+P27+P18 ->  | R69: Income Tax payable | V69: =MAX(0,V64-V67) -> 
F74: Increase in Tax Bill | J74: =V69-J69 -> 
F75: EOY value | J75: =VLOOKUP(Inputs!$C$5,Bonds!U8:AA17,4,FALSE) -> 
F76: Net Benefit | J76: =J75-J74 -> 

Sheet Offshore Bond Calcs (hidden)
A1: Before Encashment | M1: After Encashment
M2: Full gain | Y2: Calcs for slicing
A3: Full Bond Gain | B3: 0 | M3: Full Bond Gain | N3: =VLOOKUP(Inputs!$C$5,Bonds!U8:AA17,5,FALSE) ->  | Y3: Full Bond Gain | Z3: =VLOOKUP(Inputs!$C$5,Bonds!U8:AA17,5,FALSE) ->  | AJ3: Slice | AK3: =VLOOKUP(Inputs!$C$5,Bonds!U8:AA17,6,FALSE) -> 
A4: NSND in Year of encashment | B4: =Inputs!$L$11 -> 0 | M4: NSND in Year of encashment | N4: =Inputs!$L$11 -> 0 | Y4: NSND in Year of encashment | Z4: =Inputs!$L$11 -> 0 | AJ4: NSND in Year of encashment | AK4: =Inputs!$L$11 -> 0
A5: Savings in Year of encashment | B5: =Inputs!$L$12 -> 0 | M5: Savings in Year of encashment | N5: =Inputs!$L$12 -> 0 | Y5: Savings in Year of encashment | Z5: =Inputs!$L$12 -> 0 | AJ5: Savings in Year of encashment | AK5: =Inputs!$L$12 -> 0
A6: Dividend in Year of encashment | B6: =Inputs!$L$13 -> 0 | M6: Dividend in Year of encashment | N6: =Inputs!$L$13 -> 0 | Y6: Dividend in Year of encashment | Z6: =Inputs!$L$13 -> 0 | AJ6: Dividend in Year of encashment | AK6: =Inputs!$L$13 -> 0
A7: Personal Allowance Adjustment | B7: =IF((B3+B4+B5+B6)<'Parameters_Inc Calcs'!$C$3,0,MIN('Parameters_Inc Calcs'!$C$2,(('Offshore Bond Calcs'!B3+'Offshore Bond Calcs'!B4+B5+B6)-'Parameters_Inc Calcs'!$C$3)/2)) -> 0 | M7: Personal Allowance Adjustment | N7: =IF((N3+N4+N5+N6)<'Parameters_Inc Calcs'!$C$3,0,MIN('Parameters_Inc Calcs'!$C$2,(('Offshore Bond Calcs'!N3+'Offshore Bond Calcs'!N4+N5+N6)-'Parameters_Inc Calcs'!$C$3)/2)) ->  | Y7: Personal Allowance Adjustment | Z7: =IF((Z3+Z4+Z5+Z6)<'Parameters_Inc Calcs'!$C$3,0,MIN('Parameters_Inc Calcs'!$C$2,(('Offshore Bond Calcs'!Z3+'Offshore Bond Calcs'!Z4+Z5+Z6)-'Parameters_Inc Calcs'!$C$3)/2)) ->  | AJ7: Personal Allowance Adjustment | AK7: =IF((AK3+AK4+AK5+AK6)<'Parameters_Inc Calcs'!$C$3,0,MIN('Parameters_Inc Calcs'!$C$2,(('Offshore Bond Calcs'!AK3+'Offshore Bond Calcs'!AK4+AK5+AK6)-'Parameters_Inc Calcs'!$C$3)/2)) -> 
A8: PA to Use | B8: ='Parameters_Inc Calcs'!$C$2-'Offshore Bond Calcs'!B7 -> 12570 | M8: PA to Use | N8: ='Parameters_Inc Calcs'!$C$2-'Offshore Bond Calcs'!N7 ->  | Y8: PA to Use | Z8: ='Parameters_Inc Calcs'!$C$2-'Offshore Bond Calcs'!Z7 ->  | AJ8: PA to Use - Silver adjustment | AK8: ='Parameters_Inc Calcs'!$C$2-'Offshore Bond Calcs'!AK7 -> 
A9: Starter Rate to Use | B9: =IF(B4>B8+'Parameters_Inc Calcs'!$C$12,0,MIN('Parameters_Inc Calcs'!$C$12,'Offshore Bond Calcs'!B8+'Parameters_Inc Calcs'!$C$12-'Offshore Bond Calcs'!B4)) -> 5000 | M9: Starter Rate to Use | N9: =IF(N4>N8+'Parameters_Inc Calcs'!$C$12,0,MIN('Parameters_Inc Calcs'!$C$12,'Offshore Bond Calcs'!N8+'Parameters_Inc Calcs'!$C$12-'Offshore Bond Calcs'!N4)) ->  | Y9: Starter Rate to Use | Z9: =IF(Z4>Z8+'Parameters_Inc Calcs'!$C$12,0,MIN('Parameters_Inc Calcs'!$C$12,'Offshore Bond Calcs'!Z8+'Parameters_Inc Calcs'!$C$12-'Offshore Bond Calcs'!Z4)) ->  | AJ9: Starter Rate to Use - from full calc as no silver adjustment | AK9: =Z9 -> 
A10: PSA to USE | B10: =IF(SUM(B3:B6)>'Parameters_Inc Calcs'!$C$8,'Parameters_Inc Calcs'!$C$11,IF(SUM(B3:B6)>'Parameters_Inc Calcs'!$C$5,'Parameters_Inc Calcs'!$C$10,'Parameters_Inc Calcs'!$C$9)) -> 1000 | M10: PSA to USE | N10: =IF(SUM(N3:N6)>'Parameters_Inc Calcs'!$C$8,'Parameters_Inc Calcs'!$C$11,IF(SUM(N3:N6)>'Parameters_Inc Calcs'!$C$5,'Parameters_Inc Calcs'!$C$10,'Parameters_Inc Calcs'!$C$9)) ->  | Y10: PSA to USE | Z10: =IF(SUM(Z3:Z6)>'Parameters_Inc Calcs'!$C$8,'Parameters_Inc Calcs'!$C$11,IF(SUM(Z3:Z6)>'Parameters_Inc Calcs'!$C$5,'Parameters_Inc Calcs'!$C$10,'Parameters_Inc Calcs'!$C$9)) ->  | AJ10: PSA to use - from full calc as no silver adjustment | AK10: =Z10 -> 
A12: Non Savings Income Apportionment | M12: Non Savings Income Apportionment | Y12: Non Savings Income Apportionment | AJ12: Non Savings Income Apportionment
B13: Allowances | C13: Still to tax | D13: Used | E13: Unused | G13: Amount | H13: Rate | I13: Tax | N13: Allowances | O13: Still to tax | P13: Used | Q13: Unused | S13: Amount | T13: Rate | U13: Tax | Z13: Allowances | AA13: Still to tax | AB13: Used | AC13: Unused | AE13: Amount | AF13: Rate | AG13: Tax | AK13: Allowances | AL13: Still to tax | AM13: Used | AN13: Unused | AP13: Amount | AQ13: Rate | AR13: Tax | AV13: EXISTING POSITION
A14: Gross Pension Contributions | B14: 0 | C14: =B4 -> 0 | D14: =MIN(B14,C14) -> 0 | E14: =MAX(0,B14-D14) -> 0 | M14: Gross Pension Contributions | N14: 0 | O14: =N4 -> 0 | P14: =MIN(N14,O14) -> 0 | Q14: =MAX(0,N14-P14) -> 0 | AJ14: Gross Pension Contributions | AK14: 0 | AL14: =AK4 -> 0 | AM14: =MIN(AK14,AL14) -> 0 | AN14: =MAX(0,AK14-AM14) -> 0
A15: Personal Allowance | B15: =B8 -> 12570 | C15: =MAX(0,C14-D14) -> 0 | D15: =MIN(B15,C15) -> 0 | E15: =MAX(0,B15-D15) -> 12570 | G15: =D15 -> 0 | H15: 0 | I15: =G15*H15 -> 0 | M15: Personal Allowance | N15: =N8 ->  | O15: =MAX(0,O14-P14) -> 0 | P15: =MIN(N15,O15) ->  | Q15: =MAX(0,N15-P15) ->  | S15: =P15 ->  | T15: =H15 -> 0 | U15: =S15*T15 ->  | Y15: Personal Allowance | Z15: =Z8 ->  | AA15: =Z4 -> 0 | AB15: =MIN(Z15,AA15) ->  | AC15: =MAX(0,Z15-AB15) ->  | AE15: =AB15 ->  | AF15: =H15 -> 0 | AG15: =AE15*AF15 ->  | AJ15: Personal Allowance | AK15: =AK8 ->  | AL15: =MAX(0,AL14-AM14) -> 0 | AM15: =MIN(AK15,AL15) ->  | AN15: =MAX(0,AK15-AM15) ->  | AP15: =AM15 ->  | AQ15: =T15 -> 0 | AR15: =AP15*AQ15 ->  | AW15: Taxation of full gain | AX15: =Z3 -> 
A16: Basic Rate | B16: ='Parameters_Inc Calcs'!$C$4 -> 37700 | C16: =MAX(0,C15-D15) -> 0 | D16: =MIN(B16,C16) -> 0 | E16: =MAX(0,B16-D16) -> 37700 | G16: =D16 -> 0 | H16: ='Parameters_Inc Calcs'!E4 -> 0.2 | I16: =G16*H16 -> 0 | M16: Basic Rate | N16: ='Parameters_Inc Calcs'!$C$4 -> 37700 | O16: =MAX(0,O15-P15) ->  | P16: =MIN(N16,O16) ->  | Q16: =MAX(0,N16-P16) ->  | S16: =P16 ->  | T16: =H16 -> 0.2 | U16: =S16*T16 ->  | Y16: Basic Rate | Z16: ='Parameters_Inc Calcs'!$C$4 -> 37700 | AA16: =MAX(0,AA15-AB15) ->  | AB16: =MIN(Z16,AA16) ->  | AC16: =MAX(0,Z16-AB16) ->  | AE16: =AB16 ->  | AF16: =H16 -> 0.2 | AG16: =AE16*AF16 ->  | AJ16: Basic Rate | AK16: ='Parameters_Inc Calcs'!$C$4 -> 37700 | AL16: =MAX(0,AL15-AM15) ->  | AM16: =MIN(AK16,AL16) ->  | AN16: =MAX(0,AK16-AM16) ->  | AP16: =AM16 ->  | AQ16: =T16 -> 0.2 | AR16: =AP16*AQ16 ->  | BA16: Tax
A17: Higher Rate | B17: ='Parameters_Inc Calcs'!$C$7 -> 87440 | C17: =MAX(0,C16-D16) -> 0 | D17: 0 | E17: 87440 | G17: 0 | H17: ='Parameters_Inc Calcs'!E5 -> 0.4 | I17: 0 | M17: Higher Rate | N17: ='Parameters_Inc Calcs'!$C$7 -> 87440 | O17: =MAX(0,O16-P16) ->  | T17: 0.4 | Y17: Higher Rate | Z17: ='Parameters_Inc Calcs'!$C$7 -> 87440 | AA17: =MAX(0,AA16-AB16) ->  | AB17: =MIN(Z17,AA17) ->  | AC17: =MAX(0,Z17-AB17) ->  | AF17: =H17 -> 0.4 | AJ17: Higher Rate | AK17: ='Parameters_Inc Calcs'!$C$7 -> 87440 | AL17: =MAX(0,AL16-AM16) ->  | AQ17: =T17 -> 0.4 | AV17: Step 1 | AW17: Personal Allowance | AX17: =AB57 ->  | AY17: @ | AZ17: =AQ22 -> 0 | BA17: =AX17*AZ17 -> 
A18: Additional Rate | C18: =MAX(0,C17-D17) -> 0 | D18: =MIN(B18,C18) -> 0 | E18: NA | G18: 0 | H18: ='Parameters_Inc Calcs'!E8 -> 0.45 | I18: 0 | J18: =SUM(I15:I18) -> 0 | M18: Additional Rate | O18: =MAX(0,O17-P17) ->  | Q18: NA | T18: 0.45 | V18: =SUM(U15:U18) ->  | Y18: Additional Rate | AA18: =MAX(0,AA17-AB17) ->  | AB18: =MIN(Z18,AA18) ->  | AF18: =H18 -> 0.45 | AH18: =SUM(AG15:AG18) ->  | AJ18: Additional Rate | AL18: =MAX(0,AL17-AM17) ->  | AN18: NA | AQ18: =T18 -> 0.45 | AS18: =SUM(AR15:AR18) ->  | AW18: Starting Rate | AX18: =AB58 ->  | AY18: @ | AZ18: =AQ23 -> 0
AW19: Personal Savings Allowance | AX19: =AB59 ->  | AY19: @ | AZ19: 0
A20: Savings Income Tax Band Apportionment | M20: Savings Income Tax Band Apportionment | Y20: Savings Income Tax Band Apportionment | AJ20: Savings Income Tax Band Apportionment | AW20: Basic Rate | AX20: =AB60 ->  | AY20: @ | AZ20: =AQ25 -> 0.2
B21: Allowances | C21: Still to tax | D21: Used | E21: Unused | G21: Amount | H21: Rate | I21: Tax | N21: Allowances | O21: Still to tax | P21: Used | Q21: Unused | S21: Amount | T21: Rate | U21: Tax | Z21: Allowances | AA21: Still to tax | AB21: Used | AC21: Unused | AE21: Amount | AF21: Rate | AG21: Tax | AK21: Allowances | AL21: Still to tax | AM21: Used | AN21: Unused | AP21: Amount | AQ21: Rate | AR21: Tax | AW21: Higher Rate | AY21: @ | AZ21: 0.4
A22: Starting Rate | B22: =B9 -> 5000 | C22: =B5 -> 0 | D22: =MIN(B22,C22) -> 0 | E22: =MAX(0,B22-D22) -> 5000 | G22: =D22 -> 0 | H22: =H15 -> 0 | I22: 0 | M22: Starting Rate | N22: =N9 ->  | O22: =N5 -> 0 | P22: =MIN(N22,O22) ->  | Q22: =MAX(0,N22-P22) ->  | S22: =P22 ->  | T22: =T15 -> 0 | U22: =S22*T22 ->  | Y22: Personal Allowance | Z22: =AC15 ->  | AA22: =Z5 -> 0 | AB22: =MIN(Z22,AA22) ->  | AC22: =MAX(0,Z22-AB22) ->  | AE22: =AB22 ->  | AF22: =AF15 -> 0 | AG22: =AE22*AF22 ->  | AJ22: Personal Allowance | AK22: =AN15 ->  | AL22: =AK5 -> 0 | AM22: =MIN(AK22,AL22) ->  | AN22: =MAX(0,AK22-AM22) ->  | AP22: =AM22 ->  | AQ22: =AQ15 -> 0 | AR22: =AP22*AQ22 ->  | AW22: Additional Rate | AY22: @ | AZ22: 0.45
A23: Personal Savings Allowance | B23: =B10 -> 1000 | C23: =MAX(0,C22-D22) -> 0 | D23: 0 | E23: 1000 | G23: 0 | H23: =H15 -> 0 | I23: 0 | M23: Personal Savings Allowance | N23: =N10 ->  | O23: =MAX(0,O22-P22) ->  | T23: =T15 -> 0 | Y23: Starting Rate | Z23: =Z9 ->  | AA23: =MAX(0,AA22-AB22) ->  | AB23: =MIN(Z23,AA23) ->  | AC23: =MAX(0,Z23-AB23) ->  | AF23: =AF15 -> 0 | AJ23: Starting Rate | AK23: =AK9 ->  | AL23: =MAX(0,AL22-AM22) ->  | AQ23: =AQ15 -> 0 | AW23: Total Liability | BA23: =SUM(BA17:BA22) -> 
A24: Personal Allowance | B24: =E15 -> 12570 | C24: =MAX(0,C23-D23) -> 0 | D24: 0 | E24: 12570 | G24: 0 | H24: =H15 -> 0 | I24: 0 | M24: Personal Allowance | N24: =Q15 ->  | O24: =MAX(0,O23-P23) ->  | T24: =T15 -> 0 | Y24: Personal Savings Allowance | Z24: =Z10 ->  | AA24: =MAX(0,AA23-AB23) ->  | AB24: =MIN(Z24,AA24) ->  | AC24: =MAX(0,Z24-AB24) ->  | AF24: =AF15 -> 0 | AJ24: Personal Savings Allowance | AK24: =AK10 ->  | AL24: =MAX(0,AL23-AM23) ->  | AQ24: =AQ15 -> 0 | AV24: Step 2 | AW24: Tax Credit | BA24: =(AX15-AX17)*AZ20 -> 
A25: Basic Rate | B25: =MAX(0,E16-SUM(D22:D23)) -> 37700 | C25: =MAX(0,C24-D24) -> 0 | D25: 0 | E25: 37700 | G25: 0 | H25: =H16 -> 0.2 | I25: 0 | M25: Basic Rate | N25: =MAX(0,Q16-SUM(P22:P23)) ->  | O25: =MAX(0,O24-P24) ->  | T25: =T16 -> 0.2 | Y25: Basic Rate | Z25: =MAX(0,AC16-SUM(AB23:AB24)) ->  | AA25: =MAX(0,AA24-AB24) ->  | AB25: =MIN(Z25,AA25) ->  | AC25: =MAX(0,Z25-AB25) ->  | AF25: =AF16 -> 0.2 | AJ25: Basic Rate | AK25: =MAX(0,AN16-SUM(AM23:AM24)) ->  | AL25: =MAX(0,AL24-AM24) ->  | AQ25: =AQ16 -> 0.2 | AW25: Relieved liability on gain | BA25: =MAX(0,BA23-BA24) -> 
A26: Higher Rate | B26: =E17-F26 -> 87440 | C26: =MAX(0,C25-D25) -> 0 | D26: 0 | E26: =MAX(0,B26-D26) -> 87440 | F26: =MIN(E17,MAX(0,D23-E16)) -> 0 | G26: 0 | H26: =H17 -> 0.4 | I26: 0 | M26: Higher Rate | N26: =Q17-R26 ->  | O26: =MAX(0,O25-P25) ->  | Q26: =MAX(0,N26-P26) ->  | R26: =MIN(Q17,MAX(0,P23-Q16)) ->  | T26: =T17 -> 0.4 | Y26: Higher Rate | Z26: =AC17-AD26 ->  | AD26: =MIN(AC17,MAX(0,AB24-AC16)) ->  | AF26: =AF17 -> 0.4 | AJ26: Higher Rate | AK26: =AN17-AO26 ->  | AL26: =MAX(0,AL25-AM25) ->  | AN26: =MAX(0,AK26-AM26) ->  | AO26: =MIN(AN17,MAX(0,AM24-AN16)) ->  | AQ26: =AQ17 -> 0.4
A27: Additional Rate | C27: =MAX(0,C26-D26) -> 0 | D27: =MIN(B27,C27) -> 0 | E27: NA | G27: 0 | H27: 0.45 | I27: 0 | J27: =SUM(I22:I27) -> 0 | M27: Additional Rate | O27: =MAX(0,O26-P26) ->  | Q27: NA | T27: 0.45 | V27: =SUM(U22:U27) ->  | Y27: Additional Rate | AA27: =MAX(0,AA26-AB26) ->  | AB27: =MIN(Z27,AA27) ->  | AF27: 0.45 | AH27: =SUM(AG22:AG27) ->  | AJ27: Additional Rate | AL27: =MAX(0,AL26-AM26) ->  | AN27: NA | AQ27: 0.45 | AS27: =SUM(AR22:AR27) -> 
AV28: Step 3 | AW28: Taxation of slice | AX28: =AK3 -> 
A29: Offshore Bond Gain Tax Band Apportionment | M29: Offshore Bond Gain Tax Band Apportionment set to zero for slicing | Y29: Offshore Bond Gain Tax Band Apportionment - set to £0 as included at total gain below | AJ29: Offshore Bond Gain Tax Band Apportionment - Set to £0 for slicing calcs as fit into total onshore gain | BA29: Tax
B30: Allowances | C30: Still to tax | D30: Used | E30: Unused | G30: Amount | H30: Rate | I30: Tax | N30: Allowances | O30: Still to tax | P30: Used | Q30: Unused | S30: Amount | T30: Rate | U30: Tax | Z30: Allowances | AA30: Still to tax | AB30: Used | AC30: Unused | AE30: Amount | AF30: Rate | AG30: Tax | AK30: Allowances | AL30: Still to tax | AM30: Used | AN30: Unused | AP30: Amount | AQ30: Rate | AR30: Tax | AV30: Step 4 | AW30: Personal Allowance | AX30: =AM57 ->  | AY30: @ | AZ30: =AZ17 -> 0 | BA30: =AZ30*AX30 -> 
A31: Starting Rate | B31: =E22 -> 5000 | C31: 0 | D31: 0 | E31: =MAX(0,B31-D31) -> 5000 | G31: 0 | H31: =H22 -> 0 | I31: 0 | M31: Starting Rate | N31: =Q22 ->  | O31: =N3 ->  | P31: =MIN(N31,O31) ->  | Q31: =MAX(0,N31-P31) ->  | S31: =P31 ->  | T31: =T22 -> 0 | U31: =S31*T31 ->  | Y31: Personal Allowance | Z31: =AC22 ->  | AA31: 0 | AB31: =MIN(Z31,AA31) ->  | AC31: =MAX(0,Z31-AB31) ->  | AE31: =AB31 ->  | AF31: =AF22 -> 0 | AG31: =AE31*AF31 ->  | AJ31: Personal Allowance | AK31: =AN22 ->  | AL31: 0 | AM31: 0 | AN31: =MAX(0,AK31-AM31) ->  | AP31: =AM31 -> 0 | AQ31: =AQ22 -> 0 | AR31: =AP31*AQ31 -> 0 | AW31: Starting Rate | AX31: =AM58 ->  | AY31: @ | AZ31: 0
A32: Personal Savings Allowance | B32: =E23 -> 1000 | C32: =MAX(0,C31-D31) -> 0 | D32: 0 | E32: =MAX(0,B32-D32) -> 1000 | G32: 0 | H32: =H23 -> 0 | I32: 0 | M32: Personal Savings Allowance | N32: =Q23 ->  | O32: =MAX(0,O31-P31) ->  | T32: =T23 -> 0 | Y32: Starting Rate | Z32: =AC23 ->  | AA32: =MAX(0,AA31-AB31) ->  | AB32: =MIN(Z32,AA32) ->  | AC32: =MAX(0,Z32-AB32) ->  | AF32: =AF23 -> 0 | AJ32: Starting Rate | AK32: =AN23 ->  | AL32: =MAX(0,AL31-AM31) -> 0 | AM32: 0 | AP32: 0 | AQ32: =AQ23 -> 0 | AR32: 0 | AW32: Personal Savings Allowance | AX32: =AM59 ->  | AY32: @ | AZ32: 0
A33: Personal Allowance | B33: =E24 -> 12570 | C33: 0 | D33: 0 | E33: 12570 | G33: 0 | H33: 0 | I33: 0 | M33: Personal Allowance | N33: =Q24 ->  | T33: 0 | Y33: Personal Savings Allowance | Z33: =AC24 ->  | AA33: =MAX(0,AA32-AB32) ->  | AB33: =MIN(Z33,AA33) ->  | AC33: =MAX(0,Z33-AB33) ->  | AF33: 0 | AJ33: Personal Savings Allowance | AK33: =AN24 ->  | AL33: 0 | AM33: 0 | AP33: 0 | AQ33: 0 | AR33: 0 | AW33: Basic Rate | AX33: =AM60 ->  | AY33: @ | AZ33: 0.2
A34: Basic Rate | B34: =MAX(0,E25-SUM(D31:D32)) -> 37700 | C34: 0 | D34: 0 | E34: 37700 | G34: 0 | H34: 0.2 | I34: 0 | M34: Basic Rate | N34: =MAX(0,Q25-SUM(P31:P32)) ->  | T34: 0.2 | Y34: Basic Rate | Z34: =MAX(0,AC25-SUM(AB32:AB33)) ->  | AB34: =MIN(Z34,AA34) ->  | AC34: =MAX(0,Z34-AB34) ->  | AF34: 0.2 | AJ34: Basic Rate | AK34: =MAX(0,AN25-SUM(AM31:AM32)) ->  | AL34: 0 | AM34: 0 | AP34: 0 | AQ34: 0.2 | AR34: 0 | AW34: Higher Rate | AY34: @ | AZ34: 0.4
A35: Higher Rate | B35: =E26-F35 -> 87440 | C35: 0 | D35: 0 | E35: 87440 | F35: =MIN(E26,MAX(0,D32-E25)) -> 0 | G35: 0 | H35: 0.4 | I35: 0 | M35: Higher Rate | N35: =Q26-R35 ->  | R35: =MIN(Q26,MAX(0,P32-Q25)) ->  | T35: 0.4 | Y35: Higher Rate | Z35: =AC26-AD35 ->  | AD35: =MIN(AC26,MAX(0,AB33-AC25)) ->  | AF35: 0.4 | AJ35: Higher Rate | AK35: =AN26-AO35 ->  | AL35: 0 | AM35: 0 | AO35: =MIN(AN26,MAX(0,AM32-AN25)) ->  | AP35: 0 | AQ35: 0.4 | AR35: 0 | AW35: Additional Rate | AY35: @ | AZ35: 0.45
A36: Additional Rate | C36: 0 | D36: 0 | E36: NA | G36: 0 | H36: 0.45 | I36: 0 | J36: =SUM(I31:I36) -> 0 | M36: Additional Rate | Q36: NA | T36: 0.45 | V36: =SUM(U31:U36) ->  | Y36: Additional Rate | AA36: =MAX(0,AA35-AB35) ->  | AB36: =MIN(Z36,AA36) ->  | AF36: 0.45 | AH36: =SUM(AG31:AG36) ->  | AJ36: Additional Rate | AL36: 0 | AM36: 0 | AN36: NA | AP36: 0 | AQ36: 0.45 | AR36: 0 | AS36: =SUM(AR31:AR36) -> 0 | AW36: Total Liability | BA36: =SUM(BA31:BA35) -> 
AW37: Tax Credit | BA37: =(AX28-AX30)*AZ33 -> 
AW38: Relieved Liability on Slice | BA38: =MAX(0,BA36-BA37) -> 
A39: Dividend Income Tax Band Apportionment | M39: Dividend Income Tax Band Apportionment | Y39: Dividend Income Tax Band Apportionment | AJ39: Dividend Income Tax Band Apportionment | AW39: Derived years (N) | BA39: =IF(AX15=0,0,AX15/AX28) -> 
B40: Allowances | C40: Still to tax | D40: Used | E40: Unused | G40: Amount | H40: Rate | I40: Tax | N40: Allowances | O40: Still to tax | P40: Used | Q40: Unused | S40: Amount | T40: Rate | U40: Tax | AE40: Amount | AF40: Rate | AG40: Tax | AK40: Allowances | AL40: Still to tax | AM40: Used | AN40: Unused | AP40: Amount | AQ40: Rate | AR40: Tax | AW40: Relieved Liability on Slice x N | BA40: =BA38*BA39 -> 
A41: Dividend Allowance | B41: ='Parameters_Inc Calcs'!$C$17 -> 500 | C41: =B6 -> 0 | D41: =MIN(B41,C41) -> 0 | E41: =MAX(0,B41-D41) -> 500 | G41: 0 | H41: =H31 -> 0 | I41: 0 | M41: Dividend Allowance | N41: ='Parameters_Inc Calcs'!$C$17 -> 500 | O41: =N6 -> 0 | P41: =MIN(N41,O41) -> 0 | Q41: =MAX(0,N41-P41) -> 500 | S41: =P41 -> 0 | T41: =H41 -> 0 | U41: =S41*T41 -> 0 | Y41: Personal Allowance | Z41: =AC31 ->  | AA41: =Z6 -> 0 | AB41: =MIN(Z41,AA41) ->  | AC41: =MAX(0,Z41-AB41) ->  | AE41: =AB41 ->  | AF41: =H41 -> 0 | AG41: =AE41*AF41 ->  | AJ41: Personal Allowance | AK41: =AN31 ->  | AL41: =AK6 -> 0 | AM41: =MIN(AK41,AL41) ->  | AN41: =MAX(0,AK41-AM41) ->  | AP41: =AM41 ->  | AQ41: =T41 -> 0 | AR41: =AP41*AQ41 -> 
A42: Personal Allowance | B42: =E33 -> 12570 | C42: =MAX(0,C41-D41) -> 0 | D42: 0 | E42: 12570 | G42: 0 | H42: =H33 -> 0 | I42: 0 | M42: Personal Allowance | N42: =Q33 ->  | O42: =MAX(0,O41-P41) -> 0 | T42: =H42 -> 0 | Y42: Dividend Allowance | Z42: ='Parameters_Inc Calcs'!$C$17 -> 500 | AA42: =MAX(0,AA41-AB41) ->  | AF42: =H42 -> 0 | AJ42: Dividend Allowance | AK42: ='Parameters_Inc Calcs'!$C$17 -> 500 | AL42: =MAX(0,AL41-AM41) ->  | AQ42: =T42 -> 0 | AW42: Top Slicing Relief
A43: Basic Rate | B43: =MAX(0,E34-D41) -> 37700 | C43: 0 | D43: 0 | E43: 37700 | G43: 0 | H43: ='Parameters_Inc Calcs'!D4 -> 0.0875 | I43: 0 | M43: Basic Rate | N43: =MAX(0,Q34-P41) ->  | T43: 0.0875 | Y43: Basic Rate | Z43: =MAX(0,AC34-AB42) ->  | AF43: =H43 -> 0.0875 | AJ43: Basic Rate | AK43: =MAX(0,AN34-AM42) ->  | AQ43: =T43 -> 0.0875 | AV43: Step 5 | AW43: Relieved liability on full gain | BA43: =BA25 ->  | BB43: a
A44: Higher Rate | B44: =E35-F44 -> 87440 | C44: 0 | D44: 0 | E44: 87440 | F44: =MIN(E35,MAX(0,D41-E34)) -> 0 | G44: 0 | H44: ='Parameters_Inc Calcs'!D5 -> 0.3375 | I44: 0 | M44: Higher Rate | N44: =Q35-R44 ->  | R44: =MIN(Q35,MAX(0,P41-Q34)) ->  | T44: 0.3375 | Y44: Higher Rate | Z44: =AC35-AD44 ->  | AD44: =MIN(AC35,MAX(0,AB42-AC34)) ->  | AF44: =H44 -> 0.3375 | AJ44: Higher Rate | AK44: =AN35-AO44 ->  | AO44: =MIN(AN35,MAX(0,AM41-AN34)) ->  | AQ44: =T44 -> 0.3375 | AW44: =AW40 -> Relieved Liability on Slice x N | BA44: =BA40 ->  | BB44: b
A45: Additional Rate | C45: 0 | D45: 0 | E45: NA | G45: 0 | H45: ='Parameters_Inc Calcs'!D8 -> 0.3935 | I45: 0 | J45: =SUM(I41:I45) -> 0 | M45: Additional Rate | Q45: NA | T45: 0.3935 | V45: =SUM(U41:U45) ->  | Y45: Additional Rate | AF45: =H45 -> 0.3935 | AH45: =SUM(AG41:AG45) ->  | AJ45: Additional Rate | AN45: NA | AQ45: =T45 -> 0.3935 | AS45: =SUM(AR41:AR45) ->  | AW45: Top Slice Relief (a-b) | BA45: =MAX(0,BA43-BA44) -> 
A47: Redundancy Payment Tax Band Apportionment | M47: Redundancy Payment Tax Band Apportionment | Y47: Redundancy Payment Tax Band Apportionment - set to £0 as excluded from calcs | AJ47: Redundancy Payment Tax Band Apportionment
B48: Allowances | C48: Still to tax | D48: Used | E48: Unused | G48: Amount | H48: Rate | I48: Tax | N48: Allowances | O48: Still to tax | P48: Used | Q48: Unused | S48: Amount | T48: Rate | U48: Tax | AE48: Amount | AF48: Rate | AG48: Tax | AK48: Allowances | AL48: Still to tax | AM48: Used | AN48: Unused | AP48: Amount | AQ48: Rate | AR48: Tax
A49: Gross Pension Contributions | B49: =E14 -> 0 | C49: 0 | D49: =MIN(B49,C49) -> 0 | E49: =MAX(0,B49-D49) -> 0 | G49: 0 | H49: =H41 -> 0 | I49: 0 | M49: Gross Pension Contributions | N49: =Q14 -> 0 | O49: 0 | P49: =MIN(N49,O49) -> 0 | Q49: =MAX(0,N49-P49) -> 0 | S49: =P49 -> 0 | T49: =T41 -> 0 | U49: =S49*T49 -> 0 | Y49: Gross Pension Contributions | AA49: =AA14 -> 0 | AE49: =AB49 -> 0 | AF49: =AF41 -> 0 | AG49: =AE49*AF49 -> 0 | AJ49: Gross Pension Contributions | AK49: =AN14 -> 0 | AL49: 0 | AM49: =MIN(AK49,AL49) -> 0 | AN49: =MAX(0,AK49-AM49) -> 0 | AP49: =AM49 -> 0 | AQ49: =AQ41 -> 0 | AR49: =AP49*AQ49 -> 0
A50: Personal Allowance | B50: =E42 -> 12570 | C50: =MAX(0,C49-D49) -> 0 | D50: 0 | E50: 12570 | G50: 0 | H50: =H42 -> 0 | I50: 0 | M50: Personal Allowance | N50: =Q42 ->  | O50: =MAX(0,O49-P49) -> 0 | T50: =T42 -> 0 | Y50: Personal Allowance | Z50: =AC41 ->  | AA50: =MAX(0,AA49-AB49) -> 0 | AB50: =MIN(Z50,AA50) ->  | AC50: =MAX(0,Z50-AB50) ->  | AF50: =AF42 -> 0 | AJ50: Personal Allowance | AK50: =AN41 ->  | AL50: =MAX(0,AL49-AM49) -> 0 | AQ50: =AQ42 -> 0
A51: Basic Rate | B51: =E43 -> 37700 | C51: 0 | D51: 0 | E51: 37700 | G51: 0 | H51: =H34 -> 0.2 | I51: 0 | M51: Basic Rate | N51: =Q43 ->  | T51: =T34 -> 0.2 | Y51: Basic Rate | Z51: =AC43 ->  | AF51: =AF34 -> 0.2 | AJ51: Basic Rate | AK51: =AN43 ->  | AQ51: =AQ34 -> 0.2
A52: Higher Rate | B52: =E44 -> 87440 | C52: 0 | D52: 0 | E52: 87440 | G52: 0 | H52: =H35 -> 0.4 | I52: 0 | M52: Higher Rate | N52: =Q44 ->  | T52: =T35 -> 0.4 | Y52: Higher Rate | Z52: =AC44 ->  | AA52: =MAX(0,AA51-AB51) ->  | AB52: =MIN(Z52,AA52) ->  | AF52: =AF35 -> 0.4 | AJ52: Higher Rate | AK52: =AN44 ->  | AQ52: =AQ35 -> 0.4
A53: Additional Rate | C53: 0 | D53: 0 | E53: NA | G53: 0 | H53: 0.45 | I53: 0 | J53: =SUM(I49:I53) -> 0 | M53: Additional Rate | Q53: NA | T53: 0.45 | V53: =SUM(U49:U53) ->  | Y53: Additional Rate | AF53: 0.45 | AH53: =SUM(AG49:AG53) ->  | AJ53: Additional Rate | AN53: NA | AQ53: 0.45 | AS53: =SUM(AR49:AR53) -> 
A55: Onshore Bond Gain Tax Band Apportionment | M55: Onshore Bond Gain Tax Band Apportionment - set to zero | Y55: Total Gain Tax Band Apportionment | AJ55: Onshore Bond Gain Tax Band Apportionment
B56: Allowances | C56: Still to tax | D56: Used | E56: Unused | G56: Amount | H56: Rate | I56: Tax | N56: Allowances | O56: Still to tax | P56: Used | Q56: Unused | S56: Amount | T56: Rate | U56: Tax | AE56: Amount | AF56: Rate | AG56: Tax | AK56: Allowances | AL56: Still to tax | AM56: Used | AN56: Unused | AP56: Amount | AQ56: Rate | AR56: Tax
A57: Starting Rate | B57: =MAX(0,E31-F57) -> 5000 | C57: =B3 -> 0 | D57: =MIN(B57,C57) -> 0 | E57: =MAX(0,B57-D57) -> 5000 | F57: =D41+D43+D51 -> 0 | G57: 0 | H57: =H31 -> 0 | I57: 0 | M57: Starting Rate | N57: =MAX(0,Q31-R57) ->  | O57: 0 | P57: =MIN(N57,O57) ->  | Q57: =MAX(0,N57-P57) ->  | R57: =P41+P43+P51 ->  | S57: =P57 ->  | T57: =T31 -> 0 | U57: =S57*T57 ->  | Y57: Personal Allowance | Z57: =AC41 ->  | AA57: =Z3 ->  | AB57: =MIN(Z57,AA57) ->  | AC57: =MAX(0,Z57-AB57) ->  | AE57: =AB57 ->  | AF57: =AF31 -> 0 | AG57: =AE57*AF57 ->  | AJ57: Personal Allowance | AK57: =AN50 ->  | AL57: =AK3 ->  | AM57: =MIN(AK57,AL57) ->  | AN57: =MAX(0,AK57-AM57) ->  | AP57: =AM57 ->  | AQ57: =AQ31 -> 0 | AR57: =AP57*AQ57 -> 
A58: Personal Savings Allowance | B58: =E32 -> 1000 | C58: =MAX(0,C57-D57) -> 0 | D58: 0 | E58: 1000 | G58: 0 | H58: =H33 -> 0 | I58: 0 | M58: Personal Savings Allowance | N58: =Q32 ->  | O58: =MAX(0,O57-P57) ->  | T58: =T33 -> 0 | Y58: Starting Rate | Z58: =MAX(0,AC32-AD58) ->  | AA58: =MAX(0,AA57-AB57) ->  | AD58: =AB42+AB43 ->  | AF58: =AF33 -> 0 | AJ58: Starting Rate | AK58: =MAX(0,AN32-AO58) ->  | AL58: =MAX(0,AL57-AM57) ->  | AO58: =AM42+AM43+AM51 ->  | AQ58: =AQ33 -> 0
A59: Personal Allowance | B59: =E50 -> 12570 | C59: 0 | D59: 0 | E59: 12570 | G59: 0 | H59: =H50 -> 0 | I59: 0 | M59: Personal Allowance | N59: =Q50 ->  | T59: =T50 -> 0 | Y59: Personal Savings Allowance | Z59: =AC33 ->  | AF59: =AF50 -> 0 | AJ59: Personal Savings Allowance | AK59: =AN33 ->  | AQ59: =AQ50 -> 0
A60: Basic Rate | B60: =MAX(0,E51-(SUM(D57:D58))) -> 37700 | C60: 0 | D60: 0 | E60: 37700 | G60: 0 | H60: =H51 -> 0.2 | I60: 0 | M60: Basic Rate | N60: =MAX(0,Q51-(SUM(P57:P58))) ->  | T60: =T51 -> 0.2 | Y60: Basic Rate | Z60: =MAX(0,AC43-SUM(AB58:AB59)) ->  | AF60: =AF51 -> 0.2 | AJ60: Basic Rate | AK60: =MAX(0,AN43-(SUM(AM58:AM59))) ->  | AQ60: =AQ51 -> 0.2
A61: Higher Rate | B61: =E52-F61 -> 87440 | C61: 0 | D61: 0 | E61: 87440 | F61: =MIN(E52,MAX(0,D58-E51)) -> 0 | G61: 0 | H61: 0.4 | I61: 0 | M61: Higher Rate | N61: =Q52-R61 ->  | R61: =MIN(Q52,MAX(0,P58-Q51)) ->  | T61: 0.4 | Y61: Higher Rate | Z61: =AC44-AD61 ->  | AD61: =MIN(AC44,MAX(0,AB59-AC43)) ->  | AF61: 0.4 | AJ61: Higher Rate | AK61: =AN52-AO61 ->  | AO61: =MIN(AN52,MAX(0,AM58-AN51)) ->  | AQ61: 0.4
A62: Additional Rate | C62: 0 | D62: 0 | E62: NA | G62: 0 | H62: 0.45 | I62: 0 | J62: =SUM(I57:I62) -> 0 | M62: Additional Rate | Q62: NA | T62: 0.45 | V62: =SUM(U57:U62) ->  | Y62: Additional Rate | AF62: 0.45 | AH62: =SUM(AG57:AG62) ->  | AJ62: Additional Rate | AN62: NA | AQ62: 0.45 | AS62: =SUM(AR57:AR62) -> 
J64: =SUM(J14:J63) -> 0 | V64: =SUM(V14:V63) ->  | AH64: =SUM(AH14:AH63) ->  | AS64: =SUM(AS14:AS63) -> 
A66: Personal Allowance | B66: =D15+D24+D33+D42+D50+D59 -> 0 | M66: Personal Allowance | N66: =P15+P24+P33+P42+P50+P59 ->  | Q66: Less Onshore Bond Tax Credit | U66: 0 | Y66: Personal Allowance | Z66: =AB15+AB24+AB33+AB42+AB50+AB59 -> 
A67: Basic Rate | B67: =D60+D51+D43+D34+D25+D16 -> 0 | M67: Basic Rate | N67: =P60+P51+P43+P34+P25+P16 ->  | Q67: Less Top Slicing Relief | U67: =BA45 ->  | V67: =SUM(U66:U67) ->  | Y67: Basic Rate | Z67: =AB60+AB51+AB43+AB34+AB25+AB16 -> 
A68: Higher Rate | B68: =D61+D52+D44+D35+D26+D17 -> 0 | M68: Higher Rate | N68: =P61+P52+P44+P35+P26+P17 ->  | Y68: Higher Rate | Z68: =AB61+AB52+AB44+AB35+AB26+AB17 -> 
A69: Additional Rate | B69: =D62+D53+D45+D36+D27+D18 -> 0 | F69: Income Tax payable | J69: =J64 -> 0 | M69: Additional Rate | N69: =P62+P53+P45+P36+P27+P18 ->  | R69: Income Tax payable | V69: =MAX(0,V64-V67) ->  | Y69: Additional Rate | Z69: =AB62+AB53+AB45+AB36+AB27+AB18 -> 
E74: Increase in Tax Bill | I74: =V69-J69 -> 
E75: EOY value | I75: =VLOOKUP(Inputs!$C$5,Bonds!U8:AA17,7,FALSE) -> 
E76: Net Benefit | I76: =I75-I74 -> 

Sheet Port Analysis (hidden)
F2: The gain is only on year 1 basis in cell F9?
B4: Inputs | E4: UK (Onshore) Bond
B5: Invested amount | C5: =Inputs!C3 -> 0
B6: Term | C6: 10 | F6: Amount | G6: Rate | H6: Tax
B7: Yields: | E7: Savings | F7: =C8*$C$5 -> 0 | G7: 0.2 | H7: =F7*G7 -> 0
B8: Savings income | C8: =Inputs!L4 -> 0 | E8: Dividend | F8: =C9*$C$5 -> 0 | G8: 0 | H8: =F8*G8 -> 0
B9: Dividend Return | C9: =Inputs!L5 -> 0 | E9: Capital Gain | F9: =C10*$C$5 -> 0 | G9: 0.2 | H9: =F9*G9 -> 0
B10: Capital Gain | C10: =Inputs!L6 -> 0 | F10: =SUM(F7:F9) -> 0 | H10: =SUM(H7:H9) -> 0
B11: Exisiting income
B12: Non Savings Non Dividend Income | C12: =Inputs!C11 -> 0 | E12: Bond Internal Tax Rate | F12: =H10/F10 -> 
B13: Savings income | C13: =Inputs!C12 -> 0
B14: Dividend | C14: =Inputs!C13 -> 0 | G14: =1-F12 ->  | H14: =SUM(C8:C10)*G14 ->  | I14: =C5*(1+H14) -> 
